Organisation name,Organisation Code,Effective date,Directorate / service where expenditure incurred,Service Category label,Service category URI,Supplier (Beneficiary) name,Local supplier (beneficiary) internal reference,Supplier,Supplier registered charity number,VCSE grant,Payment date - G/L Date,Transaction number,Net Amount,Irrecoverable VAT,purpose_of_spend,Procurement classification / merchant category: Council�s procurement category name,Procurement classification / merchant category: CPV label,Procurement classification / merchant category: CPV code,Procurement classification / merchant category: Proclass label,Procurement classification / merchant category: Proclass code,card_transaction
The Royal Borough of Kensington and Chelsea,RBKC,,Adult Social Care & Health,Adult Social Care,,Medequip Assistive Technology Ltd ,1234994,,,,22/07/2020,2200110400,"107,604.19",,Hired and Contracted Services,,,,,,No
The Royal Borough of Kensington and Chelsea,RBKC,,Adult Social Care & Health,Adult Social Care,,Medequip Assistive Technology Ltd ,1234994,,,,23/07/2020,2200110600,"4,747.00",,Hired and Contracted Services,,,,,,No
The Royal Borough of Kensington and Chelsea,RBKC,,Adult Social Care & Health,Adult Social Care,,Medequip Assistive Technology Ltd ,1234994,,,,23/07/2020,2200110603,"10,142.20",,Hired and Contracted Services,,,,,,No
The Royal Borough of Kensington and Chelsea,RBKC,,Adult Social Care & Health,Adult Social Care,,Medequip Assistive Technology Ltd ,1234994,,,,18/08/2020,2200115010,"129,257.87",,Hired and Contracted Services,,,,,,No
The Royal Borough of Kensington and Chelsea,RBKC,,Adult Social Care & Health,Adult Social Care,,Medequip Assistive Technology Ltd ,1234994,,,,18/08/2020,2200115013,732.00,,Hired and Contracted Services,,,,,,No
The Royal Borough of Kensington and Chelsea,RBKC,,Adult Social Care & Health,Adult Social Care,,Medequip Assistive Technology Ltd ,1234994,,,,18/08/2020,2200115014,"1,911.42",,Hired and Contracted Services,,,,,,No
The Royal Borough of Kensington and Chelsea,RBKC,,Adult Social Care & Health,Adult Social Care,,Medequip Assistive Technology Ltd ,1234994,,,,18/08/2020,2200115015,"3,042.00",,Hired and Contracted Services,,,,,,No
The Royal Borough of Kensington and Chelsea,RBKC,,Adult Social Care & Health,Adult Social Care,,Medequip Assistive Technology Ltd ,1234994,,,,15/09/2020,2200119777,"91,892.76",,Hired and Contracted Services,,,,,,No
The Royal Borough of Kensington and Chelsea,RBKC,,Adult Social Care & Health,Adult Social Care,,Red Alert Ltd ,1231238,,,,28/07/2020,2200111183,700.00,,Payments to Voluntary bodies,,,,,,No
The Royal Borough of Kensington and Chelsea,RBKC,,Adult Social Care & Health,Adult Social Care,,Red Alert Ltd ,1231238,,,,24/08/2020,2200115972,700.00,,Payments to Voluntary bodies,,,,,,No
The Royal Borough of Kensington and Chelsea,RBKC,,Adult Social Care & Health,Adult Social Care,,Red Alert Ltd ,1231238,,,,02/09/2020,2200117218,700.00,,Payments to Voluntary bodies,,,,,,No
The Royal Borough of Kensington and Chelsea,RBKC,,Adult Social Care & Health,Adult Social Care,,Red Alert Ltd ,1231238,,,,15/09/2020,2200119787,700.00,,Payments to Voluntary bodies,,,,,,No
The Royal Borough of Kensington and Chelsea,RBKC,,Adult Social Care & Health,Adult Social Care,,Tunstall Healthcare (UK) Ltd (Use 3012996),1235586,,,,13/07/2020,2200108594,"3,430.00",,Payments to Voluntary bodies,,,,,,No
The Royal Borough of Kensington and Chelsea,RBKC,,Adult Social Care & Health,Adult Social Care,,Tunstall Healthcare (UK) Ltd (Use 3012996),1235586,,,,17/07/2020,2200109780,"2,505.39",,Payments to Voluntary bodies,,,,,,No
The Royal Borough of Kensington and Chelsea,RBKC,,Adult Social Care & Health,Adult Social Care,,Tunstall Response Ltd ,1235587,,,,28/07/2020,2200111182,"10,651.68",,Domestic Supplies,,,,,,No
The Royal Borough of Kensington and Chelsea,RBKC,,Environment & Communities,Planning and Place,,Hssb Refurbishment Limited,D000000023,,,,21/08/2020,3110216760,"5,238.00",,General Fees and Charges,,,,,,No
The Royal Borough of Kensington and Chelsea,RBKC,,Environment & Communities,Planning and Place,,London Borough Of Islington,1231814,,,,16/09/2020,2200120116,720.00,,Payments to Other Local Authorities,,,,,,No
The Royal Borough of Kensington and Chelsea,RBKC,,Environment & Communities,Planning and Place,,Seventy Eight Ltd,1266384,,,,25/09/2020,2200121840,750.00,,Professional Fees,,,,,,No
The Royal Borough of Kensington and Chelsea,RBKC,,Environment & Communities,Planning and Place,,Dataplanit T/A 1 Big Data Management Ltd,1233959,,,,25/08/2020,2200116111,738.00,,Printing,,,,,,No
The Royal Borough of Kensington and Chelsea,RBKC,,Environment & Communities,Planning and Place,,Greenham Trading Ltd ,1234675,,,,02/09/2020,2200117205,"1,626.43",,Health and Safety Equipment,,,,,,No
The Royal Borough of Kensington and Chelsea,RBKC,,Environment & Communities,Planning and Place,,Seventy Eight Ltd,1266384,,,,12/08/2020,2200113842,"1,300.00",,Service Charges : Premises,,,,,,No
The Royal Borough of Kensington and Chelsea,RBKC,,Environment & Communities,Planning and Place,,Seventy Eight Ltd,1266384,,,,08/09/2020,2200118415,650.00,,Service Charges : Premises,,,,,,No
The Royal Borough of Kensington and Chelsea,RBKC,,Environment & Communities,Environmental Health,,Redact Details,D000000023,,,,29/07/2020,3110209751,"3,921.67",,Income from costs charged to outside bodies,,,,,,No
The Royal Borough of Kensington and Chelsea,RBKC,,Environment & Communities,Environmental Health,,Redact Details,D000000023,,,,21/09/2020,3110225348,"3,921.67",,Income from costs charged to outside bodies,,,,,,No
The Royal Borough of Kensington and Chelsea,RBKC,,Environment & Communities,Environmental Health,,Ferox Construction Ltd,D000000023,,,,21/09/2020,3110225350,"6,838.33",,Income from costs charged to outside bodies,,,,,,No
The Royal Borough of Kensington and Chelsea,RBKC,,Environment & Communities,"Transport, Highways, Leisure & Parks",,C J Jordan & Son Ltd ,1233031,,,,06/07/2020,2200107252,703.84,,Creditors Control : AP GRIR,,,,,,No
The Royal Borough of Kensington and Chelsea,RBKC,,Environment & Communities,"Transport, Highways, Leisure & Parks",,C J Jordan & Son Ltd ,1233031,,,,03/08/2020,2200112113,"1,050.88",,Creditors Control : AP GRIR,,,,,,No
The Royal Borough of Kensington and Chelsea,RBKC,,Environment & Communities,"Transport, Highways, Leisure & Parks",,C J Jordan & Son Ltd ,1233031,,,,29/09/2020,2200122578,638.70,,Creditors Control : AP GRIR,,,,,,No
The Royal Borough of Kensington and Chelsea,RBKC,,Environment & Communities,"Transport, Highways, Leisure & Parks",,C J Jordan & Son Ltd ,1233031,,,,29/09/2020,2200122579,749.52,,Creditors Control : AP GRIR,,,,,,No
The Royal Borough of Kensington and Chelsea,RBKC,,Environment & Communities,"Transport, Highways, Leisure & Parks",,C J Jordan & Son Ltd ,1233031,,,,30/09/2020,2200122944,527.88,,Creditors Control : AP GRIR,,,,,,No
The Royal Borough of Kensington and Chelsea,RBKC,,Environment & Communities,"Transport, Highways, Leisure & Parks",,C J Jordan & Son Ltd ,1233031,,,,30/09/2020,2200122960,"2,587.98",,Creditors Control : AP GRIR,,,,,,No
The Royal Borough of Kensington and Chelsea,RBKC,,Environment & Communities,"Transport, Highways, Leisure & Parks",,Redact Details,D000000023,,,,11/08/2020,3110213863,"1,707.00",,General Fees and Charges,,,,,,No
The Royal Borough of Kensington and Chelsea,RBKC,,Environment & Communities,"Transport, Highways, Leisure & Parks",,Redact Details,1234806,,,,03/08/2020,2200112054,"1,030.00",,Creditors Control : AP GRIR,,,,,,No
The Royal Borough of Kensington and Chelsea,RBKC,,Environment & Communities,"Transport, Highways, Leisure & Parks",,Redact Details,1234806,,,,19/08/2020,2200115249,"1,070.00",,Creditors Control : AP GRIR,,,,,,No
The Royal Borough of Kensington and Chelsea,RBKC,,Environment & Communities,"Transport, Highways, Leisure & Parks",,Redact Details,1234806,,,,21/08/2020,2200115744,"1,134.00",,Creditors Control : AP GRIR,,,,,,No
The Royal Borough of Kensington and Chelsea,RBKC,,Environment & Communities,"Transport, Highways, Leisure & Parks",,Quadron Services Ltd T/A Idverde ,1231423,,,,28/07/2020,2200111002,"38,185.24",,Creditors Control : AP GRIR,,,,,,No
The Royal Borough of Kensington and Chelsea,RBKC,,Environment & Communities,"Transport, Highways, Leisure & Parks",,Quadron Services Ltd T/A Idverde ,1231423,,,,21/08/2020,2200115586,"38,185.24",,Creditors Control : AP GRIR,,,,,,No
The Royal Borough of Kensington and Chelsea,RBKC,,Environment & Communities,"Transport, Highways, Leisure & Parks",,Quadron Services Ltd T/A Idverde ,1231423,,,,08/09/2020,2200118321,"38,185.24",,Creditors Control : AP GRIR,,,,,,No
The Royal Borough of Kensington and Chelsea,RBKC,,Environment & Communities,Community Safety,,City Of Westminster ,1231771,,,,09/09/2020,2200118648,"95,912.00",,Payments to Other Local Authorities,,,,,,No
The Royal Borough of Kensington and Chelsea,RBKC,,Environment & Communities,Community Safety,,City Of Westminster,D000000023,,,,07/07/2020,3110204805,"400,006.00",,Hired and Contracted Services,,,,,,No
The Royal Borough of Kensington and Chelsea,RBKC,,Statutory Year End Accounting,Statutory Year End Accounting,,3Bm Ltd ,1232075,,,,02/07/2020,2200106578,"2,200.00",,Payments to main contractor,,,,,,No
The Royal Borough of Kensington and Chelsea,RBKC,,Statutory Year End Accounting,Statutory Year End Accounting,,3Bm Ltd ,1232075,,,,02/07/2020,2200106579,"3,500.00",,Payments to main contractor,,,,,,No
The Royal Borough of Kensington and Chelsea,RBKC,,Statutory Year End Accounting,Statutory Year End Accounting,,3Bm Ltd ,1232075,,,,10/07/2020,2200108385,"1,144.00",,Payments to main contractor,,,,,,No
The Royal Borough of Kensington and Chelsea,RBKC,,Statutory Year End Accounting,Statutory Year End Accounting,,3Bm Ltd ,1232075,,,,10/07/2020,2200108386,"11,440.00",,Payments to main contractor,,,,,,No
The Royal Borough of Kensington and Chelsea,RBKC,,Statutory Year End Accounting,Statutory Year End Accounting,,3Bm Ltd ,1232075,,,,22/07/2020,2200110452,"3,250.00",,Professional Fees : Non Legal,,,,,,No
The Royal Borough of Kensington and Chelsea,RBKC,,Statutory Year End Accounting,Statutory Year End Accounting,,3Bm Ltd ,1232075,,,,30/07/2020,2200111578,"4,500.00",,Other Consultants,,,,,,No
The Royal Borough of Kensington and Chelsea,RBKC,,Statutory Year End Accounting,Statutory Year End Accounting,,3Bm Ltd ,1232075,,,,04/08/2020,2200112342,"1,870.00",,Payments to main contractor,,,,,,No
The Royal Borough of Kensington and Chelsea,RBKC,,Statutory Year End Accounting,Statutory Year End Accounting,,3Bm Ltd ,1232075,,,,04/08/2020,2200112352,"4,093.10",,Other Consultants,,,,,,No
The Royal Borough of Kensington and Chelsea,RBKC,,Statutory Year End Accounting,Statutory Year End Accounting,,3Bm Ltd ,1232075,,,,04/08/2020,2200112355,"1,826.00",,Other Consultants,,,,,,No
The Royal Borough of Kensington and Chelsea,RBKC,,Statutory Year End Accounting,Statutory Year End Accounting,,3Bm Ltd ,1232075,,,,04/08/2020,2200112362,"3,410.00",,Other Consultants,,,,,,No
The Royal Borough of Kensington and Chelsea,RBKC,,Statutory Year End Accounting,Statutory Year End Accounting,,3Bm Ltd ,1232075,,,,04/08/2020,2200112363,"2,000.00",,Other Consultants,,,,,,No
The Royal Borough of Kensington and Chelsea,RBKC,,Statutory Year End Accounting,Statutory Year End Accounting,,3Bm Ltd ,1232075,,,,04/08/2020,2200112364,"3,575.00",,Other Consultants,,,,,,No
The Royal Borough of Kensington and Chelsea,RBKC,,Statutory Year End Accounting,Statutory Year End Accounting,,3Bm Ltd ,1232075,,,,04/08/2020,2200112365,"2,000.00",,Other Consultants,,,,,,No
The Royal Borough of Kensington and Chelsea,RBKC,,Statutory Year End Accounting,Statutory Year End Accounting,,3Bm Ltd ,1232075,,,,04/08/2020,2200112367,632.50,,Other Consultants,,,,,,No
The Royal Borough of Kensington and Chelsea,RBKC,,Statutory Year End Accounting,Statutory Year End Accounting,,3Bm Ltd ,1232075,,,,03/09/2020,2200117632,"2,500.00",,Payments to main contractor,,,,,,No
The Royal Borough of Kensington and Chelsea,RBKC,,Statutory Year End Accounting,Statutory Year End Accounting,,3Bm Ltd ,1232075,,,,14/09/2020,2200119562,765.00,,Creditors Control : AP GRIR,,,,,,No
The Royal Borough of Kensington and Chelsea,RBKC,,Statutory Year End Accounting,Statutory Year End Accounting,,3Bm Ltd ,1232075,,,,14/09/2020,2200119562,"7,650.00",,Creditors Control : AP GRIR,,,,,,No
The Royal Borough of Kensington and Chelsea,RBKC,,Statutory Year End Accounting,Statutory Year End Accounting,,3Bm Ltd ,1232075,,,,15/09/2020,2200119833,"39,211.00",,Creditors Control : AP GRIR,,,,,,No
The Royal Borough of Kensington and Chelsea,RBKC,,Statutory Year End Accounting,Statutory Year End Accounting,,3Bm Ltd ,1232075,,,,15/09/2020,2200119833,"3,922.00",,Creditors Control : AP GRIR,,,,,,No
The Royal Borough of Kensington and Chelsea,RBKC,,Statutory Year End Accounting,Statutory Year End Accounting,,3Bm Ltd ,1232075,,,,23/09/2020,2200121392,"76,690.00",,Creditors Control : AP GRIR,,,,,,No
The Royal Borough of Kensington and Chelsea,RBKC,,Statutory Year End Accounting,Statutory Year End Accounting,,3Bm Ltd ,1232075,,,,23/09/2020,2200121392,"7,669.00",,Creditors Control : AP GRIR,,,,,,No
The Royal Borough of Kensington and Chelsea,RBKC,,Statutory Year End Accounting,Statutory Year End Accounting,,3Bm Ltd ,1232075,,,,30/09/2020,2200122976,"5,774.00",,Creditors Control : AP GRIR,,,,,,No
The Royal Borough of Kensington and Chelsea,RBKC,,Statutory Year End Accounting,Statutory Year End Accounting,,A N Contract Service Ltd ,1232095,,,,16/07/2020,2200109557,"5,712.00",,Planned Maintenance (CM),,,,,,No
The Royal Borough of Kensington and Chelsea,RBKC,,Statutory Year End Accounting,Statutory Year End Accounting,,A N Contract Service Ltd ,1232095,,,,17/07/2020,2200109853,"5,000.00",,Planned Maintenance (CM),,,,,,No
The Royal Borough of Kensington and Chelsea,RBKC,,Statutory Year End Accounting,Statutory Year End Accounting,,A N Contract Service Ltd ,1232095,,,,17/07/2020,2200109854,"23,312.00",,Planned Maintenance (CM),,,,,,No
The Royal Borough of Kensington and Chelsea,RBKC,,Statutory Year End Accounting,Statutory Year End Accounting,,A N Contract Service Ltd ,1232095,,,,27/07/2020,2200110867,"3,696.00",,Planned Maintenance (CM),,,,,,No
The Royal Borough of Kensington and Chelsea,RBKC,,Statutory Year End Accounting,Statutory Year End Accounting,,A N Contract Service Ltd ,1232095,,,,27/07/2020,2200110869,"13,840.60",,Planned Maintenance (CM),,,,,,No
The Royal Borough of Kensington and Chelsea,RBKC,,Statutory Year End Accounting,Statutory Year End Accounting,,A N Contract Service Ltd ,1232095,,,,26/08/2020,2200116423,"12,761.00",,Planned Maintenance (CM),,,,,,No
The Royal Borough of Kensington and Chelsea,RBKC,,Statutory Year End Accounting,Statutory Year End Accounting,,A N Contract Service Ltd ,1232095,,,,17/09/2020,2200120352,"10,866.00",,Planned Maintenance (CM),,,,,,No
The Royal Borough of Kensington and Chelsea,RBKC,,Statutory Year End Accounting,Statutory Year End Accounting,,A N Contract Service Ltd ,1232095,,,,25/09/2020,2200121941,"3,696.00",,Planned Maintenance (CM),,,,,,No
The Royal Borough of Kensington and Chelsea,RBKC,,Statutory Year End Accounting,Statutory Year End Accounting,,A N Contract Service Ltd ,1232095,,,,25/09/2020,2200121942,"9,500.00",,Planned Maintenance (CM),,,,,,No
The Royal Borough of Kensington and Chelsea,RBKC,,Statutory Year End Accounting,Statutory Year End Accounting,,ABCA Systems LTD ,1252858,,,,01/07/2020,2200106410,"2,625.00",,Payments to main contractor,,,,,,No
The Royal Borough of Kensington and Chelsea,RBKC,,Statutory Year End Accounting,Statutory Year End Accounting,,ABCA Systems LTD ,1252858,,,,01/07/2020,2200106414,"8,988.48",,Payments to main contractor,,,,,,No
The Royal Borough of Kensington and Chelsea,RBKC,,Statutory Year End Accounting,Statutory Year End Accounting,,ABCA Systems LTD ,1252858,,,,01/07/2020,2200106416,"2,625.00",,Payments to main contractor,,,,,,No
The Royal Borough of Kensington and Chelsea,RBKC,,Statutory Year End Accounting,Statutory Year End Accounting,,ABCA Systems LTD ,1252858,,,,01/07/2020,2200106417,"8,870.00",,Payments to main contractor,,,,,,No
The Royal Borough of Kensington and Chelsea,RBKC,,Statutory Year End Accounting,Statutory Year End Accounting,,ABCA Systems LTD ,1252858,,,,01/07/2020,2200106477,"2,555.67",,Payments to main contractor,,,,,,No
The Royal Borough of Kensington and Chelsea,RBKC,,Statutory Year End Accounting,Statutory Year End Accounting,,ABCA Systems LTD ,1252858,,,,02/07/2020,2200106561,"12,104.11",,Payments to main contractor,,,,,,No
The Royal Borough of Kensington and Chelsea,RBKC,,Statutory Year End Accounting,Statutory Year End Accounting,,ABCA Systems LTD ,1252858,,,,02/07/2020,2200106562,"14,755.22",,Payments to main contractor,,,,,,No
The Royal Borough of Kensington and Chelsea,RBKC,,Statutory Year End Accounting,Statutory Year End Accounting,,ABCA Systems LTD ,1252858,,,,06/07/2020,2200107269,"10,067.77",,Payments to main contractor,,,,,,No
The Royal Borough of Kensington and Chelsea,RBKC,,Statutory Year End Accounting,Statutory Year End Accounting,,ABCA Systems LTD ,1252858,,,,10/07/2020,2200108406,"20,167.57",,Payments to main contractor,,,,,,No
The Royal Borough of Kensington and Chelsea,RBKC,,Statutory Year End Accounting,Statutory Year End Accounting,,ABCA Systems LTD ,1252858,,,,05/08/2020,2200112579,"8,870.00",,Creditors Control : AP GRIR,,,,,,No
The Royal Borough of Kensington and Chelsea,RBKC,,Statutory Year End Accounting,Statutory Year End Accounting,,ABCA Systems LTD ,1252858,,,,10/09/2020,2200118811,"56,410.59",,Payments to main contractor,,,,,,No
The Royal Borough of Kensington and Chelsea,RBKC,,Statutory Year End Accounting,Statutory Year End Accounting,,Abc Building & Maintenance Contractors,1231156,,,,14/07/2020,2200109010,"2,800.00",,Special Maintenance,,,,,,No
The Royal Borough of Kensington and Chelsea,RBKC,,Statutory Year End Accounting,Statutory Year End Accounting,,Abc Building & Maintenance Contractors,1231156,,,,03/08/2020,2200112168,"33,970.00",,Special Maintenance,,,,,,No
The Royal Borough of Kensington and Chelsea,RBKC,,Statutory Year End Accounting,Statutory Year End Accounting,,Abc Building & Maintenance Contractors,1231156,,,,04/08/2020,2200112476,"27,165.00",,Special Maintenance,,,,,,No
The Royal Borough of Kensington and Chelsea,RBKC,,Statutory Year End Accounting,Statutory Year End Accounting,,Abc Building & Maintenance Contractors,1231156,,,,06/08/2020,2200112786,"5,855.00",,Payments to main contractor,,,,,,No
The Royal Borough of Kensington and Chelsea,RBKC,,Statutory Year End Accounting,Statutory Year End Accounting,,Abc Building & Maintenance Contractors,1231156,,,,17/08/2020,2200114866,"37,790.00",,Special Maintenance,,,,,,No
The Royal Borough of Kensington and Chelsea,RBKC,,Statutory Year End Accounting,Statutory Year End Accounting,,Abseil Commercial Ltd ,1232113,,,,28/07/2020,2200111181,"2,264.00",,Payments to main contractor,,,,,,No
The Royal Borough of Kensington and Chelsea,RBKC,,Statutory Year End Accounting,Statutory Year End Accounting,,Academy Consulting Solutions Ltd ,1232117,,,,07/08/2020,2200113162,"3,500.00",,Site Works,,,,,,No
The Royal Borough of Kensington and Chelsea,RBKC,,Statutory Year End Accounting,Statutory Year End Accounting,,Academy Consulting Solutions Ltd ,1232117,,,,15/09/2020,2200119772,"2,300.00",,Site Works,,,,,,No
The Royal Borough of Kensington and Chelsea,RBKC,,Statutory Year End Accounting,Statutory Year End Accounting,,Adam Architecture Ltd ,1232322,,,,07/07/2020,2200107728,"5,115.00",,Site Works,,,,,,No
The Royal Borough of Kensington and Chelsea,RBKC,,Statutory Year End Accounting,Statutory Year End Accounting,,Adam Architecture Ltd ,1232322,,,,06/08/2020,2200112946,"2,470.00",,Site Works,,,,,,No
The Royal Borough of Kensington and Chelsea,RBKC,,Statutory Year End Accounting,Statutory Year End Accounting,,Allied Protection Ltd ,1231167,,,,16/09/2020,2200120154,"2,161.74",,Site Works,,,,,,No
The Royal Borough of Kensington and Chelsea,RBKC,,Statutory Year End Accounting,Statutory Year End Accounting,,Allied Protection Ltd ,1231167,,,,29/09/2020,2200122754,"2,761.96",,Site Works,,,,,,No
The Royal Borough of Kensington and Chelsea,RBKC,,Statutory Year End Accounting,Statutory Year End Accounting,,Allied Protection Ltd ,1231167,,,,29/09/2020,2200122756,"3,939.53",,Site Works,,,,,,No
The Royal Borough of Kensington and Chelsea,RBKC,,Statutory Year End Accounting,Statutory Year End Accounting,,Allies & Morrison LLP ,1232371,,,,09/07/2020,2200108287,"3,002.00",,Construction : enhancements,,,,,,No
The Royal Borough of Kensington and Chelsea,RBKC,,Statutory Year End Accounting,Statutory Year End Accounting,,Allies & Morrison LLP ,1232371,,,,17/07/2020,2200109852,"1,526.00",,Construction : enhancements,,,,,,No
The Royal Borough of Kensington and Chelsea,RBKC,,Statutory Year End Accounting,Statutory Year End Accounting,,Allies & Morrison LLP ,1232371,,,,06/08/2020,2200112884,"105,705.00",,Payments to main contractor,,,,,,No
The Royal Borough of Kensington and Chelsea,RBKC,,Statutory Year End Accounting,Statutory Year End Accounting,,Allies & Morrison LLP ,1232371,,,,24/08/2020,2200115976,"61,513.00",,Construction : enhancements,,,,,,No
The Royal Borough of Kensington and Chelsea,RBKC,,Statutory Year End Accounting,Statutory Year End Accounting,,Andrew Langley Ltd,1268655,,,,07/09/2020,2200118087,"3,250.00",,Creditors Control : AP GRIR,,,,,,No
The Royal Borough of Kensington and Chelsea,RBKC,,Statutory Year End Accounting,Statutory Year End Accounting,,Angus Fire Ltd ,1256067,,,,03/08/2020,2200112229,"5,672.00",,Payments to main contractor,,,,,,No
The Royal Borough of Kensington and Chelsea,RBKC,,Statutory Year End Accounting,Statutory Year End Accounting,,Aquaneed Ltd,1260944,,,,25/08/2020,2200116172,"6,331.67",,Payments to main contractor,,,,,,No
The Royal Borough of Kensington and Chelsea,RBKC,,Statutory Year End Accounting,Statutory Year End Accounting,,Aquaneed Ltd,1260944,,,,03/09/2020,2200117611,"6,489.20",,Payments to main contractor,,,,,,No
The Royal Borough of Kensington and Chelsea,RBKC,,Statutory Year End Accounting,Statutory Year End Accounting,,Aquaneed Ltd,1260944,,,,17/09/2020,2200120289,"6,239.81",,Payments to main contractor,,,,,,No
The Royal Borough of Kensington and Chelsea,RBKC,,Statutory Year End Accounting,Statutory Year End Accounting,,Aquaneed Ltd,1260944,,,,17/09/2020,2200120290,"8,967.14",,Payments to main contractor,,,,,,No
The Royal Borough of Kensington and Chelsea,RBKC,,Statutory Year End Accounting,Statutory Year End Accounting,,Arcadis Consulting (UK) Ltd ,1232429,,,,24/09/2020,2200121684,"4,862.50",,Construction : enhancements,,,,,,No
The Royal Borough of Kensington and Chelsea,RBKC,,Statutory Year End Accounting,Statutory Year End Accounting,,Arcadis Llp ,1232430,,,,15/07/2020,2200109268,"5,000.00",,Other Consultants,,,,,,No
The Royal Borough of Kensington and Chelsea,RBKC,,Statutory Year End Accounting,Statutory Year End Accounting,,Arcadis Llp ,1232430,,,,15/07/2020,2200109269,"5,000.00",,Other Consultants,,,,,,No
The Royal Borough of Kensington and Chelsea,RBKC,,Statutory Year End Accounting,Statutory Year End Accounting,,Arcadis Llp ,1232430,,,,15/07/2020,2200109270,"5,000.00",,Other Consultants,,,,,,No
The Royal Borough of Kensington and Chelsea,RBKC,,Statutory Year End Accounting,Statutory Year End Accounting,,Arcadis Llp ,1232430,,,,15/07/2020,2200109271,"5,000.00",,Other Consultants,,,,,,No
The Royal Borough of Kensington and Chelsea,RBKC,,Statutory Year End Accounting,Statutory Year End Accounting,,Arcadis Llp ,1232430,,,,04/08/2020,2200112436,"29,000.00",,Construction : enhancements,,,,,,No
The Royal Borough of Kensington and Chelsea,RBKC,,Statutory Year End Accounting,Statutory Year End Accounting,,Architecture PLB ,1232434,,,,08/09/2020,2200118418,"3,112.50",,Construction : enhancements,,,,,,No
The Royal Borough of Kensington and Chelsea,RBKC,,Statutory Year End Accounting,Statutory Year End Accounting,,Architecture PLB ,1232434,,,,08/09/2020,2200118419,"3,112.50",,Construction : enhancements,,,,,,No
The Royal Borough of Kensington and Chelsea,RBKC,,Statutory Year End Accounting,Statutory Year End Accounting,,Architecture PLB ,1232434,,,,08/09/2020,2200118420,"3,112.50",,Construction : enhancements,,,,,,No
The Royal Borough of Kensington and Chelsea,RBKC,,Statutory Year End Accounting,Statutory Year End Accounting,,Arcus Consulting Llp,1265536,,,,07/07/2020,2200107591,"13,145.00",,Site Works,,,,,,No
The Royal Borough of Kensington and Chelsea,RBKC,,Statutory Year End Accounting,Statutory Year End Accounting,,Arcus Consulting Llp,1265536,,,,07/07/2020,2200107592,"7,091.00",,Site Works,,,,,,No
The Royal Borough of Kensington and Chelsea,RBKC,,Statutory Year End Accounting,Statutory Year End Accounting,,Arcus Consulting Llp,1265536,,,,13/07/2020,2200108719,"16,000.00",,Payments to main contractor,,,,,,No
The Royal Borough of Kensington and Chelsea,RBKC,,Statutory Year End Accounting,Statutory Year End Accounting,,Ark Build Plc ,1231173,,,,03/07/2020,2200107132,"40,408.96",,Site Works,,,,,,No
The Royal Borough of Kensington and Chelsea,RBKC,,Statutory Year End Accounting,Statutory Year End Accounting,,Ark Build Plc ,1231173,,,,14/07/2020,2200108852,"58,935.32",,Payments to main contractor,,,,,,No
The Royal Borough of Kensington and Chelsea,RBKC,,Statutory Year End Accounting,Statutory Year End Accounting,,Ark Build Plc ,1231173,,,,07/08/2020,2200113131,"56,802.97",,Site Works,,,,,,No
The Royal Borough of Kensington and Chelsea,RBKC,,Statutory Year End Accounting,Statutory Year End Accounting,,Ark Build Plc ,1231173,,,,17/08/2020,2200114909,"112,939.87",,Payments to main contractor,,,,,,No
The Royal Borough of Kensington and Chelsea,RBKC,,Statutory Year End Accounting,Statutory Year End Accounting,,Ark Build Plc ,1231173,,,,15/09/2020,2200119814,"209,670.69",,Site Works,,,,,,No
The Royal Borough of Kensington and Chelsea,RBKC,,Statutory Year End Accounting,Statutory Year End Accounting,,Ark Build Plc ,1231173,,,,16/09/2020,2200120043,"59,806.53",,Payments to main contractor,,,,,,No
The Royal Borough of Kensington and Chelsea,RBKC,,Statutory Year End Accounting,Statutory Year End Accounting,,Ark Mep Plc,1272168,,,,30/09/2020,2200122902,"1,980.00",,Site Works,,,,,,No
The Royal Borough of Kensington and Chelsea,RBKC,,Statutory Year End Accounting,Statutory Year End Accounting,,Artelia Projects UK Ltd T/A Artelia UK,1232443,,,,02/07/2020,2200106753,561.25,,Other Consultants,,,,,,No
The Royal Borough of Kensington and Chelsea,RBKC,,Statutory Year End Accounting,Statutory Year End Accounting,,Ashfords Llp ,1232627,,,,01/07/2020,2200106426,"3,441.00",,Professional Fees : Non Legal,,,,,,No
The Royal Borough of Kensington and Chelsea,RBKC,,Statutory Year End Accounting,Statutory Year End Accounting,,Ashfords Llp ,1232627,,,,02/07/2020,2200106719,"3,357.00",,Payments to main contractor,,,,,,No
The Royal Borough of Kensington and Chelsea,RBKC,,Statutory Year End Accounting,Statutory Year End Accounting,,Ashfords Llp ,1232627,,,,03/07/2020,2200106846,"1,060.50",,Legal Fees & expenses,,,,,,No
The Royal Borough of Kensington and Chelsea,RBKC,,Statutory Year End Accounting,Statutory Year End Accounting,,Ashfords Llp ,1232627,,,,03/07/2020,2200107135,786.00,,Construction : enhancements,,,,,,No
The Royal Borough of Kensington and Chelsea,RBKC,,Statutory Year End Accounting,Statutory Year End Accounting,,Ashfords Llp ,1232627,,,,06/07/2020,2200107374,"1,354.00",,Legal Fees & expenses,,,,,,No
The Royal Borough of Kensington and Chelsea,RBKC,,Statutory Year End Accounting,Statutory Year End Accounting,,Ashfords Llp ,1232627,,,,08/07/2020,2200107922,731.50,,Legal Fees & expenses,,,,,,No
The Royal Borough of Kensington and Chelsea,RBKC,,Statutory Year End Accounting,Statutory Year End Accounting,,Ashfords Llp ,1232627,,,,04/08/2020,2200112465,"1,920.00",,Professional Fees : Non Legal,,,,,,No
The Royal Borough of Kensington and Chelsea,RBKC,,Statutory Year End Accounting,Statutory Year End Accounting,,Ashfords Llp ,1232627,,,,13/08/2020,2200114143,"1,776.00",,Legal Fees & expenses,,,,,,No
The Royal Borough of Kensington and Chelsea,RBKC,,Statutory Year End Accounting,Statutory Year End Accounting,,Ashfords Llp ,1232627,,,,03/09/2020,2200117667,978.00,,Professional Fees : Non Legal,,,,,,No
The Royal Borough of Kensington and Chelsea,RBKC,,Statutory Year End Accounting,Statutory Year End Accounting,,Ashfords Llp ,1232627,,,,10/09/2020,2200118942,656.00,,Professional Fees : Non Legal,,,,,,No
The Royal Borough of Kensington and Chelsea,RBKC,,Statutory Year End Accounting,Statutory Year End Accounting,,Ashfords Llp ,1232627,,,,16/09/2020,2200120050,805.50,,Legal Fees & expenses,,,,,,No
The Royal Borough of Kensington and Chelsea,RBKC,,Statutory Year End Accounting,Statutory Year End Accounting,,Ashfords Llp ,1232627,,,,23/09/2020,2200121477,"1,710.00",,Professional Fees : Non Legal,,,,,,No
The Royal Borough of Kensington and Chelsea,RBKC,,Statutory Year End Accounting,Statutory Year End Accounting,,Ashfords Llp ,1232627,,,,23/09/2020,2200121478,912.00,,Professional Fees : Non Legal,,,,,,No
The Royal Borough of Kensington and Chelsea,RBKC,,Statutory Year End Accounting,Statutory Year End Accounting,,Avondale Park Primary School ,1236060,,,,17/07/2020,2200109726,"76,289.11",,Site Works,,,,,,No
The Royal Borough of Kensington and Chelsea,RBKC,,Statutory Year End Accounting,Statutory Year End Accounting,,Axis Europe Plc,1232679,,,,09/09/2020,2200118563,"52,368.00",,Payments to main contractor,,,,,,No
The Royal Borough of Kensington and Chelsea,RBKC,,Statutory Year End Accounting,Statutory Year End Accounting,,Axis Europe Plc,1232679,,,,09/09/2020,2200118564,"14,276.51",,Site Works,,,,,,No
The Royal Borough of Kensington and Chelsea,RBKC,,Statutory Year End Accounting,Statutory Year End Accounting,,BT Global Services ,1233001,,,,14/09/2020,2200119574,"2,624.00",,Creditors Control : AP GRIR,,,,,,No
The Royal Borough of Kensington and Chelsea,RBKC,,Statutory Year End Accounting,Statutory Year End Accounting,,Barlby Primary School ,1236061,,,,17/09/2020,2200120339,"54,446.00",,Other Consultants,,,,,,No
The Royal Borough of Kensington and Chelsea,RBKC,,Statutory Year End Accounting,Statutory Year End Accounting,,Bell Decorating & Building Ltd ,1232723,,,,10/09/2020,2200118907,609.00,,Payments to main contractor,,,,,,No
The Royal Borough of Kensington and Chelsea,RBKC,,Statutory Year End Accounting,Statutory Year End Accounting,,Bell Decorating & Building Ltd ,1232723,,,,10/09/2020,2200118908,"8,480.00",,Payments to sub contractor,,,,,,No
The Royal Borough of Kensington and Chelsea,RBKC,,Statutory Year End Accounting,Statutory Year End Accounting,,Bell Decorating & Building Ltd ,1232723,,,,15/09/2020,2200119822,525.00,,Payments to main contractor,,,,,,No
The Royal Borough of Kensington and Chelsea,RBKC,,Statutory Year End Accounting,Statutory Year End Accounting,,Bellrock Property & Facilities Man ,1255450,,,,10/07/2020,2200108427,"32,704.10",,Creditors Control : AP GRIR,,,,,,No
The Royal Borough of Kensington and Chelsea,RBKC,,Statutory Year End Accounting,Statutory Year End Accounting,,Bellrock Property & Facilities Man ,1255450,,,,20/07/2020,2200110027,"76,309.56",,Creditors Control : AP GRIR,,,,,,No
The Royal Borough of Kensington and Chelsea,RBKC,,Statutory Year End Accounting,Statutory Year End Accounting,,Bellrock Property & Facilities Man ,1255450,,,,28/07/2020,2200111203,"37,124.00",,Construction : enhancements,,,,,,No
The Royal Borough of Kensington and Chelsea,RBKC,,Statutory Year End Accounting,Statutory Year End Accounting,,Bellrock Property & Facilities Man ,1255450,,,,26/08/2020,2200116393,"31,781.62",,Construction : enhancements,,,,,,No
The Royal Borough of Kensington and Chelsea,RBKC,,Statutory Year End Accounting,Statutory Year End Accounting,,Bellrock Property & Facilities Man ,1255450,,,,26/08/2020,2200116426,"146,718.29",,Construction : enhancements,,,,,,No
The Royal Borough of Kensington and Chelsea,RBKC,,Statutory Year End Accounting,Statutory Year End Accounting,,Bellrock Property & Facilities Man ,1255450,,,,27/08/2020,2200116497,"2,931.50",,Creditors Control : AP GRIR,,,,,,No
The Royal Borough of Kensington and Chelsea,RBKC,,Statutory Year End Accounting,Statutory Year End Accounting,,Bellrock Property & Facilities Man ,1255450,,,,27/08/2020,2200116627,"61,891.00",,Construction : enhancements,,,,,,No
The Royal Borough of Kensington and Chelsea,RBKC,,Statutory Year End Accounting,Statutory Year End Accounting,,Bellrock Property & Facilities Man ,1255450,,,,27/08/2020,2200116628,"71,891.00",,Construction : enhancements,,,,,,No
The Royal Borough of Kensington and Chelsea,RBKC,,Statutory Year End Accounting,Statutory Year End Accounting,,Bellrock Property & Facilities Man ,1255450,,,,27/08/2020,2200116629,"47,124.00",,Construction : enhancements,,,,,,No
The Royal Borough of Kensington and Chelsea,RBKC,,Statutory Year End Accounting,Statutory Year End Accounting,,Bevington Primary School ,1236065,,,,28/08/2020,2200116745,"9,083.33",,Other Consultants,,,,,,No
The Royal Borough of Kensington and Chelsea,RBKC,,Statutory Year End Accounting,Statutory Year End Accounting,,Bishop Creighton House Care & Repair Clients Account,1232751,,,,30/07/2020,2200111607,"11,206.00",,Payments to main contractor,,,,,,No
The Royal Borough of Kensington and Chelsea,RBKC,,Statutory Year End Accounting,Statutory Year End Accounting,,Bishop Creighton House Care & Repair Clients Account,1232751,,,,30/07/2020,2200111608,"1,680.90",,Payments to main contractor,,,,,,No
The Royal Borough of Kensington and Chelsea,RBKC,,Statutory Year End Accounting,Statutory Year End Accounting,,Bishop Creighton House Care & Repair Clients Account,1232751,,,,30/07/2020,2200111613,"5,279.00",,Payments to main contractor,,,,,,No
The Royal Borough of Kensington and Chelsea,RBKC,,Statutory Year End Accounting,Statutory Year End Accounting,,Bishop Creighton House Care & Repair Clients Account,1232751,,,,30/07/2020,2200111616,791.85,,Payments to main contractor,,,,,,No
The Royal Borough of Kensington and Chelsea,RBKC,,Statutory Year End Accounting,Statutory Year End Accounting,,Bishop Creighton House Care & Repair Clients Account,1232751,,,,30/07/2020,2200111620,"15,660.00",,Payments to main contractor,,,,,,No
The Royal Borough of Kensington and Chelsea,RBKC,,Statutory Year End Accounting,Statutory Year End Accounting,,Bishop Creighton House Care & Repair Clients Account,1232751,,,,30/07/2020,2200111628,"15,663.00",,Payments to main contractor,,,,,,No
The Royal Borough of Kensington and Chelsea,RBKC,,Statutory Year End Accounting,Statutory Year End Accounting,,Bishop Creighton House Care & Repair Clients Account,1232751,,,,30/07/2020,2200111630,"2,349.00",,Payments to main contractor,,,,,,No
The Royal Borough of Kensington and Chelsea,RBKC,,Statutory Year End Accounting,Statutory Year End Accounting,,Bishop Creighton House Care & Repair Clients Account,1232751,,,,17/09/2020,2200120286,"6,795.00",,Payments to main contractor,,,,,,No
The Royal Borough of Kensington and Chelsea,RBKC,,Statutory Year End Accounting,Statutory Year End Accounting,,Black Box Network Services ,1231180,,,,02/07/2020,2200106632,"1,400.00",,Other Consultants,,,,,,No
The Royal Borough of Kensington and Chelsea,RBKC,,Statutory Year End Accounting,Statutory Year End Accounting,,Black Box Network Services ,1231180,,,,20/08/2020,2200115379,"1,400.00",,Payments to sub contractor,,,,,,No
The Royal Borough of Kensington and Chelsea,RBKC,,Statutory Year End Accounting,Statutory Year End Accounting,,Black Box Network Services ,1231180,,,,10/09/2020,2200118852,"1,245.00",,Other Consultants,,,,,,No
The Royal Borough of Kensington and Chelsea,RBKC,,Statutory Year End Accounting,Statutory Year End Accounting,,Black Box Network Services ,1231180,,,,23/09/2020,2200121351,"1,095.00",,Creditors Control : AP GRIR,,,,,,No
The Royal Borough of Kensington and Chelsea,RBKC,,Statutory Year End Accounting,Statutory Year End Accounting,,Bloom Procurement Services Ltd,1269893,,,,23/07/2020,2200110655,"51,085.00",,Professional Fees : Non Legal,,,,,,No
The Royal Borough of Kensington and Chelsea,RBKC,,Statutory Year End Accounting,Statutory Year End Accounting,,Brown & Co Planning LTD,1258884,,,,01/07/2020,2200106255,"5,500.00",,Payments to main contractor,,,,,,No
The Royal Borough of Kensington and Chelsea,RBKC,,Statutory Year End Accounting,Statutory Year End Accounting,,Redact Details,1260368,,,,30/07/2020,2200111617,"6,420.00",,Other Consultants,,,,,,No
The Royal Borough of Kensington and Chelsea,RBKC,,Statutory Year End Accounting,Statutory Year End Accounting,,Buchanan Computing Ltd ,1233004,,,,24/08/2020,2200115997,"3,103.00",,Engineering Consultancy Fees,,,,,,No
The Royal Borough of Kensington and Chelsea,RBKC,,Statutory Year End Accounting,Statutory Year End Accounting,,Building Design Partnership Ltd ,1233009,,,,01/07/2020,2200106305,"9,000.00",,Other Consultants,,,,,,No
The Royal Borough of Kensington and Chelsea,RBKC,,Statutory Year End Accounting,Statutory Year End Accounting,,Building Design Partnership Ltd ,1233009,,,,03/08/2020,2200112194,"9,000.00",,Other Consultants,,,,,,No
The Royal Borough of Kensington and Chelsea,RBKC,,Statutory Year End Accounting,Statutory Year End Accounting,,Building Design Partnership Ltd ,1233009,,,,10/09/2020,2200118842,"9,000.00",,Other Consultants,,,,,,No
The Royal Borough of Kensington and Chelsea,RBKC,,Statutory Year End Accounting,Statutory Year End Accounting,,CBRE Capital Advisors,1233314,,,,04/08/2020,2200112419,"2,500.00",,Professional Fees : Non Legal,,,,,,No
The Royal Borough of Kensington and Chelsea,RBKC,,Statutory Year End Accounting,Statutory Year End Accounting,,CBRE Capital Advisors,1233314,,,,04/08/2020,2200112420,"2,732.00",,Professional Fees : Non Legal,,,,,,No
The Royal Borough of Kensington and Chelsea,RBKC,,Statutory Year End Accounting,Statutory Year End Accounting,,CBRE Capital Advisors,1233314,,,,04/08/2020,2200112422,"2,500.00",,Professional Fees : Non Legal,,,,,,No
The Royal Borough of Kensington and Chelsea,RBKC,,Statutory Year End Accounting,Statutory Year End Accounting,,CBRE Capital Advisors,1233314,,,,12/08/2020,2200113854,"7,000.00",,Professional Fees : Non Legal,,,,,,No
The Royal Borough of Kensington and Chelsea,RBKC,,Statutory Year End Accounting,Statutory Year End Accounting,,CBRE Capital Advisors,1233314,,,,19/08/2020,2200115262,"15,000.00",,Professional Fees : Non Legal,,,,,,No
The Royal Borough of Kensington and Chelsea,RBKC,,Statutory Year End Accounting,Statutory Year End Accounting,,CBRE Capital Advisors,1233314,,,,19/08/2020,2200115263,"15,000.00",,Professional Fees : Non Legal,,,,,,No
The Royal Borough of Kensington and Chelsea,RBKC,,Statutory Year End Accounting,Statutory Year End Accounting,,CBRE Capital Advisors,1233314,,,,19/08/2020,2200115264,"15,000.00",,Professional Fees : Non Legal,,,,,,No
The Royal Borough of Kensington and Chelsea,RBKC,,Statutory Year End Accounting,Statutory Year End Accounting,,CBRE Capital Advisors,1233314,,,,19/08/2020,2200115265,"4,412.00",,Professional Fees : Non Legal,,,,,,No
The Royal Borough of Kensington and Chelsea,RBKC,,Statutory Year End Accounting,Statutory Year End Accounting,,CBRE Capital Advisors,1233314,,,,19/08/2020,2200115266,"2,500.00",,Professional Fees : Non Legal,,,,,,No
The Royal Borough of Kensington and Chelsea,RBKC,,Statutory Year End Accounting,Statutory Year End Accounting,,CBRE Capital Advisors,1233314,,,,24/08/2020,2200115947,"1,500.00",,Site Works,,,,,,No
The Royal Borough of Kensington and Chelsea,RBKC,,Statutory Year End Accounting,Statutory Year End Accounting,,CBRE Capital Advisors,1233314,,,,24/08/2020,2200115948,"2,000.00",,Site Works,,,,,,No
The Royal Borough of Kensington and Chelsea,RBKC,,Statutory Year End Accounting,Statutory Year End Accounting,,CBRE Capital Advisors,1233314,,,,24/08/2020,2200115953,"15,000.00",,Professional Fees : Non Legal,,,,,,No
The Royal Borough of Kensington and Chelsea,RBKC,,Statutory Year End Accounting,Statutory Year End Accounting,,CBRE Capital Advisors,1233314,,,,08/09/2020,2200118341,"8,000.00",,Professional Fees : Non Legal,,,,,,No
The Royal Borough of Kensington and Chelsea,RBKC,,Statutory Year End Accounting,Statutory Year End Accounting,,CBS Maintenance Ltd ,1256122,,,,02/07/2020,2200106573,"2,387.40",,Payments to main contractor,,,,,,No
The Royal Borough of Kensington and Chelsea,RBKC,,Statutory Year End Accounting,Statutory Year End Accounting,,CBS Maintenance Ltd ,1256122,,,,27/07/2020,2200110858,"1,053.00",,Payments to main contractor,,,,,,No
The Royal Borough of Kensington and Chelsea,RBKC,,Statutory Year End Accounting,Statutory Year End Accounting,,CBS Maintenance Ltd ,1256122,,,,27/07/2020,2200110864,537.00,,Payments to main contractor,,,,,,No
The Royal Borough of Kensington and Chelsea,RBKC,,Statutory Year End Accounting,Statutory Year End Accounting,,CBS Maintenance Ltd ,1256122,,,,27/07/2020,2200110865,"1,053.00",,Payments to main contractor,,,,,,No
The Royal Borough of Kensington and Chelsea,RBKC,,Statutory Year End Accounting,Statutory Year End Accounting,,CBS Maintenance Ltd ,1256122,,,,27/07/2020,2200110866,537.00,,Payments to main contractor,,,,,,No
The Royal Borough of Kensington and Chelsea,RBKC,,Statutory Year End Accounting,Statutory Year End Accounting,,Clm Fireproofing Limited,1268719,,,,20/07/2020,2200109970,"8,994.76",,Payments to main contractor,,,,,,No
The Royal Borough of Kensington and Chelsea,RBKC,,Statutory Year End Accounting,Statutory Year End Accounting,,Clm Fireproofing Limited,1268719,,,,22/07/2020,2200110409,"5,950.00",,Surveyors,,,,,,No
The Royal Borough of Kensington and Chelsea,RBKC,,Statutory Year End Accounting,Statutory Year End Accounting,,Calford Seadon (Health & Safety) Ltd,1233044,,,,18/08/2020,2200115104,"1,520.00",,Professional Fees : Non Legal,,,,,,No
The Royal Borough of Kensington and Chelsea,RBKC,,Statutory Year End Accounting,Statutory Year End Accounting,,Calford Seadon (Health & Safety) Ltd,1233044,,,,30/09/2020,2200122931,"1,700.00",,Professional Fees : Non Legal,,,,,,No
The Royal Borough of Kensington and Chelsea,RBKC,,Statutory Year End Accounting,Statutory Year End Accounting,,Calford Seadon (Health & Safety) Ltd,1233044,,,,30/09/2020,2200122932,"1,465.00",,Professional Fees : Non Legal,,,,,,No
The Royal Borough of Kensington and Chelsea,RBKC,,Statutory Year End Accounting,Statutory Year End Accounting,,Capita Business Services Ltd ,1233075,,,,09/09/2020,2200118651,"69,500.00",,Creditors Control : AP GRIR,,,,,,No
The Royal Borough of Kensington and Chelsea,RBKC,,Statutory Year End Accounting,Statutory Year End Accounting,,Capita Business Services Ltd ,1233075,,,,10/09/2020,2200118812,"80,175.00",,Creditors Control : AP GRIR,,,,,,No
The Royal Borough of Kensington and Chelsea,RBKC,,Statutory Year End Accounting,Statutory Year End Accounting,,Capital Property & Construction ,1256857,,,,03/07/2020,2200107011,"6,200.00",,Professional Fees : Non Legal,,,,,,No
The Royal Borough of Kensington and Chelsea,RBKC,,Statutory Year End Accounting,Statutory Year End Accounting,,Capital Property & Construction ,1256857,,,,27/08/2020,2200116624,"5,712.50",,Professional Fees : Non Legal,,,,,,No
The Royal Borough of Kensington and Chelsea,RBKC,,Statutory Year End Accounting,Statutory Year End Accounting,,Capital Property & Construction ,1256857,,,,16/09/2020,2200120042,"3,060.00",,Professional Fees : Non Legal,,,,,,No
The Royal Borough of Kensington and Chelsea,RBKC,,Statutory Year End Accounting,Statutory Year End Accounting,,Capsticks Solicitors LLP ,1233085,,,,14/07/2020,2200108929,"8,435.26",,Legal Fees & expenses,,,,,,No
The Royal Borough of Kensington and Chelsea,RBKC,,Statutory Year End Accounting,Statutory Year End Accounting,,Capsticks Solicitors LLP ,1233085,,,,25/09/2020,2200121834,"3,331.90",,Legal Fees & expenses,,,,,,No
The Royal Borough of Kensington and Chelsea,RBKC,,Statutory Year End Accounting,Statutory Year End Accounting,,Chapmanbdsp Limited,1270766,,,,07/09/2020,2200118062,"2,176.83",,Payments to main contractor,,,,,,No
The Royal Borough of Kensington and Chelsea,RBKC,,Statutory Year End Accounting,Statutory Year End Accounting,,Charles Marsden-Smedley Ltd ,1233339,,,,09/07/2020,2200108081,"5,000.00",,Other Consultants,,,,,,No
The Royal Borough of Kensington and Chelsea,RBKC,,Statutory Year End Accounting,Statutory Year End Accounting,,Checkmate Fire Solutions Ltd ,1231187,,,,06/08/2020,2200112809,"52,755.00",,Construction : enhancements,,,,,,No
The Royal Borough of Kensington and Chelsea,RBKC,,Statutory Year End Accounting,Statutory Year End Accounting,,Chelmer Global Ltd,1233345,,,,02/07/2020,2200106627,656.50,,Creditors Control : AP GRIR,,,,,,No
The Royal Borough of Kensington and Chelsea,RBKC,,Statutory Year End Accounting,Statutory Year End Accounting,,Christ Church Ce Primary School ,1232796,,,,30/09/2020,2200123020,"21,667.00",,Payments to main contractor,,,,,,No
The Royal Borough of Kensington and Chelsea,RBKC,,Statutory Year End Accounting,Statutory Year End Accounting,,City Electrical Factors,1263373,,,,01/07/2020,2200106231,"1,210.90",,Special Maintenance,,,,,,No
The Royal Borough of Kensington and Chelsea,RBKC,,Statutory Year End Accounting,Statutory Year End Accounting,,City Electrical Factors,1263373,,,,01/07/2020,2200106235,"1,983.96",,Special Maintenance,,,,,,No
The Royal Borough of Kensington and Chelsea,RBKC,,Statutory Year End Accounting,Statutory Year End Accounting,,City Electrical Factors,1263373,,,,04/08/2020,2200112472,"2,073.98",,Special Maintenance,,,,,,No
The Royal Borough of Kensington and Chelsea,RBKC,,Statutory Year End Accounting,Statutory Year End Accounting,,City Electrical Factors,1263373,,,,04/08/2020,2200112474,"5,309.17",,Special Maintenance,,,,,,No
The Royal Borough of Kensington and Chelsea,RBKC,,Statutory Year End Accounting,Statutory Year End Accounting,,City Electrical Factors,1263373,,,,04/08/2020,2200112475,631.50,,Special Maintenance,,,,,,No
The Royal Borough of Kensington and Chelsea,RBKC,,Statutory Year End Accounting,Statutory Year End Accounting,,City Of Westminster ,1231771,,,,03/08/2020,2200112232,"98,151.45",,Creditors Control : AP GRIR,,,,,,No
The Royal Borough of Kensington and Chelsea,RBKC,,Statutory Year End Accounting,Statutory Year End Accounting,,Civica Uk Ltd ,1233395,,,,13/08/2020,2200114054,"1,290.00",,Professional Fees : Non Legal,,,,,,No
The Royal Borough of Kensington and Chelsea,RBKC,,Statutory Year End Accounting,Statutory Year End Accounting,,Commercial Services Uk Ltd,1269853,,,,22/07/2020,2200110451,"55,100.00",,Payments to main contractor,,,,,,No
The Royal Borough of Kensington and Chelsea,RBKC,,Statutory Year End Accounting,Statutory Year End Accounting,,Commercial Services Uk Ltd,1269853,,,,12/08/2020,2200113836,"98,900.00",,Payments to main contractor,,,,,,No
The Royal Borough of Kensington and Chelsea,RBKC,,Statutory Year End Accounting,Statutory Year End Accounting,,Commercial Services Uk Ltd,1269853,,,,12/08/2020,2200113837,"103,550.00",,Payments to main contractor,,,,,,No
The Royal Borough of Kensington and Chelsea,RBKC,,Statutory Year End Accounting,Statutory Year End Accounting,,Commercial Services Uk Ltd,1269853,,,,11/09/2020,2200119180,"271,700.00",,Payments to main contractor,,,,,,No
The Royal Borough of Kensington and Chelsea,RBKC,,Statutory Year End Accounting,Statutory Year End Accounting,,Commercial Services Uk Ltd,1269853,,,,22/09/2020,2200121195,"41,225.00",,Payments to main contractor,,,,,,No
The Royal Borough of Kensington and Chelsea,RBKC,,Statutory Year End Accounting,Statutory Year End Accounting,,Conisbee ,1233655,,,,07/08/2020,2200113177,"2,475.00",,Other Consultants,,,,,,No
The Royal Borough of Kensington and Chelsea,RBKC,,Statutory Year End Accounting,Statutory Year End Accounting,,Connect Survey Services Ltd ,1233656,,,,30/07/2020,2200111644,500.00,,Payments to main contractor,,,,,,No
The Royal Borough of Kensington and Chelsea,RBKC,,Statutory Year End Accounting,Statutory Year End Accounting,,Corona Energy Retail 4 Ltd ,1233689,,,,01/07/2020,2200106297,513.41,,Site Works,,,,,,No
The Royal Borough of Kensington and Chelsea,RBKC,,Statutory Year End Accounting,Statutory Year End Accounting,,Corona Energy Retail 4 Ltd ,1233689,,,,02/07/2020,2200106661,717.39,,Site Works,,,,,,No
The Royal Borough of Kensington and Chelsea,RBKC,,Statutory Year End Accounting,Statutory Year End Accounting,,Corona Energy Retail 4 Ltd ,1233689,,,,02/07/2020,2200106662,714.39,,Site Works,,,,,,No
The Royal Borough of Kensington and Chelsea,RBKC,,Statutory Year End Accounting,Statutory Year End Accounting,,Corona Energy Retail 4 Ltd ,1233689,,,,02/07/2020,2200106663,912.29,,Site Works,,,,,,No
The Royal Borough of Kensington and Chelsea,RBKC,,Statutory Year End Accounting,Statutory Year End Accounting,,Corona Energy Retail 4 Ltd ,1233689,,,,03/07/2020,2200106859,991.48,,Site Works,,,,,,No
The Royal Borough of Kensington and Chelsea,RBKC,,Statutory Year End Accounting,Statutory Year End Accounting,,Currie & Brown UK Ltd ,1233738,,,,29/07/2020,2200111291,"5,059.88",,Site Works,,,,,,No
The Royal Borough of Kensington and Chelsea,RBKC,,Statutory Year End Accounting,Statutory Year End Accounting,,Currie & Brown UK Ltd ,1233738,,,,29/07/2020,2200111293,"1,465.00",,Payments to main contractor,,,,,,No
The Royal Borough of Kensington and Chelsea,RBKC,,Statutory Year End Accounting,Statutory Year End Accounting,,Currie & Brown UK Ltd ,1233738,,,,29/07/2020,2200111296,"2,055.24",,Payments to main contractor,,,,,,No
The Royal Borough of Kensington and Chelsea,RBKC,,Statutory Year End Accounting,Statutory Year End Accounting,,Currie & Brown UK Ltd ,1233738,,,,07/09/2020,2200118025,"2,055.24",,Payments to main contractor,,,,,,No
The Royal Borough of Kensington and Chelsea,RBKC,,Statutory Year End Accounting,Statutory Year End Accounting,,Currie & Brown UK Ltd ,1233738,,,,07/09/2020,2200118026,"1,074.68",,Payments to main contractor,,,,,,No
The Royal Borough of Kensington and Chelsea,RBKC,,Statutory Year End Accounting,Statutory Year End Accounting,,Currie & Brown UK Ltd ,1233738,,,,07/09/2020,2200118027,"1,465.00",,Payments to main contractor,,,,,,No
The Royal Borough of Kensington and Chelsea,RBKC,,Statutory Year End Accounting,Statutory Year End Accounting,,Currie & Brown UK Ltd ,1233738,,,,07/09/2020,2200118029,"5,059.88",,Site Works,,,,,,No
The Royal Borough of Kensington and Chelsea,RBKC,,Statutory Year End Accounting,Statutory Year End Accounting,,Currie & Brown UK Ltd ,1233738,,,,29/09/2020,2200122677,"1,465.00",,Payments to main contractor,,,,,,No
The Royal Borough of Kensington and Chelsea,RBKC,,Statutory Year End Accounting,Statutory Year End Accounting,,Currie & Brown UK Ltd ,1233738,,,,29/09/2020,2200122678,"2,397.78",,Payments to main contractor,,,,,,No
The Royal Borough of Kensington and Chelsea,RBKC,,Statutory Year End Accounting,Statutory Year End Accounting,,Currie & Brown UK Ltd ,1233738,,,,29/09/2020,2200122679,"1,240.41",,Site Works,,,,,,No
The Royal Borough of Kensington and Chelsea,RBKC,,Statutory Year End Accounting,Statutory Year End Accounting,,Currie & Brown UK Ltd ,1233738,,,,29/09/2020,2200122680,"5,059.88",,Site Works,,,,,,No
The Royal Borough of Kensington and Chelsea,RBKC,,Statutory Year End Accounting,Statutory Year End Accounting,,Cushman & Wakefield LLP ,1233739,,,,01/09/2020,2200117016,"5,250.00",,Site Works,,,,,,No
The Royal Borough of Kensington and Chelsea,RBKC,,Statutory Year End Accounting,Statutory Year End Accounting,,Cushman & Wakefield LLP ,1233739,,,,01/09/2020,2200117017,"3,750.00",,Site Works,,,,,,No
The Royal Borough of Kensington and Chelsea,RBKC,,Statutory Year End Accounting,Statutory Year End Accounting,,Cushman & Wakefield LLP ,1233739,,,,15/09/2020,2200119819,"5,850.00",,Site Works,,,,,,No
The Royal Borough of Kensington and Chelsea,RBKC,,Statutory Year End Accounting,Statutory Year End Accounting,,DBR & Associates Ltd ,1233969,,,,17/07/2020,2200109857,"19,530.00",,Construction : enhancements,,,,,,No
The Royal Borough of Kensington and Chelsea,RBKC,,Statutory Year End Accounting,Statutory Year End Accounting,,DBR & Associates Ltd ,1233969,,,,28/07/2020,2200111206,"2,700.00",,Construction : enhancements,,,,,,No
The Royal Borough of Kensington and Chelsea,RBKC,,Statutory Year End Accounting,Statutory Year End Accounting,,Danacom Ltd,1262818,,,,10/07/2020,2200108464,"5,344.00",,Special Maintenance,,,,,,No
The Royal Borough of Kensington and Chelsea,RBKC,,Statutory Year End Accounting,Statutory Year End Accounting,,Danacom Ltd,1262818,,,,10/07/2020,2200108465,"33,788.00",,Special Maintenance,,,,,,No
The Royal Borough of Kensington and Chelsea,RBKC,,Statutory Year End Accounting,Statutory Year End Accounting,,Danacom Ltd,1262818,,,,10/07/2020,2200108467,"2,800.00",,Special Maintenance,,,,,,No
The Royal Borough of Kensington and Chelsea,RBKC,,Statutory Year End Accounting,Statutory Year End Accounting,,Danacom Ltd,1262818,,,,09/09/2020,2200118571,"25,000.00",,Special Maintenance,,,,,,No
The Royal Borough of Kensington and Chelsea,RBKC,,Statutory Year End Accounting,Statutory Year End Accounting,,Danacom Ltd,1262818,,,,09/09/2020,2200118572,"25,000.00",,Special Maintenance,,,,,,No
The Royal Borough of Kensington and Chelsea,RBKC,,Statutory Year End Accounting,Statutory Year End Accounting,,Daniel Connal Partnership ,1233757,,,,14/08/2020,2200114372,"2,750.00",,Professional Fees : Non Legal,,,,,,No
The Royal Borough of Kensington and Chelsea,RBKC,,Statutory Year End Accounting,Statutory Year End Accounting,,Daniel Connal Partnership ,1233757,,,,14/08/2020,2200114373,"4,950.00",,Professional Fees : Non Legal,,,,,,No
The Royal Borough of Kensington and Chelsea,RBKC,,Statutory Year End Accounting,Statutory Year End Accounting,,Daniel Connal Partnership ,1233757,,,,14/08/2020,2200114374,"3,850.00",,Professional Fees : Non Legal,,,,,,No
The Royal Borough of Kensington and Chelsea,RBKC,,Statutory Year End Accounting,Statutory Year End Accounting,,Redact Details,1271400,,,,17/08/2020,2200114734,"3,300.00",,Professional Fees : Non Legal,,,,,,No
The Royal Borough of Kensington and Chelsea,RBKC,,Statutory Year End Accounting,Statutory Year End Accounting,,Door Plus Ltd,1265703,,,,21/09/2020,2200120824,"3,765.05",,Payments to main contractor,,,,,,No
The Royal Borough of Kensington and Chelsea,RBKC,,Statutory Year End Accounting,Statutory Year End Accounting,,ETEC Associates LTD,1269170,,,,01/07/2020,2200106384,895.00,,Payments to main contractor,,,,,,No
The Royal Borough of Kensington and Chelsea,RBKC,,Statutory Year End Accounting,Statutory Year End Accounting,,ETEC Associates LTD,1269170,,,,01/07/2020,2200106386,"5,994.00",,Payments to main contractor,,,,,,No
The Royal Borough of Kensington and Chelsea,RBKC,,Statutory Year End Accounting,Statutory Year End Accounting,,ETEC Associates LTD,1269170,,,,02/07/2020,2200106716,"2,650.00",,Payments to main contractor,,,,,,No
The Royal Borough of Kensington and Chelsea,RBKC,,Statutory Year End Accounting,Statutory Year End Accounting,,ETEC Associates LTD,1269170,,,,06/08/2020,2200112873,"1,998.00",,Payments to main contractor,,,,,,No
The Royal Borough of Kensington and Chelsea,RBKC,,Statutory Year End Accounting,Statutory Year End Accounting,,ETEC Associates LTD,1269170,,,,03/09/2020,2200117577,"3,575.00",,Payments to main contractor,,,,,,No
The Royal Borough of Kensington and Chelsea,RBKC,,Statutory Year End Accounting,Statutory Year End Accounting,,ETEC Associates LTD,1269170,,,,04/09/2020,2200117818,"3,900.00",,Payments to main contractor,,,,,,No
The Royal Borough of Kensington and Chelsea,RBKC,,Statutory Year End Accounting,Statutory Year End Accounting,,Eco Design Consultants,1265380,,,,07/08/2020,2200113132,"5,460.00",,Other Consultants,,,,,,No
The Royal Borough of Kensington and Chelsea,RBKC,,Statutory Year End Accounting,Statutory Year End Accounting,,Eight Associates Ltd,1234091,,,,04/08/2020,2200112489,"2,140.00",,Construction : enhancements,,,,,,No
The Royal Borough of Kensington and Chelsea,RBKC,,Statutory Year End Accounting,Statutory Year End Accounting,,Enviro Technology Services Plc,1234322,,,,14/07/2020,2200108858,"12,450.00",,Creditors Control : AP GRIR,,,,,,No
The Royal Borough of Kensington and Chelsea,RBKC,,Statutory Year End Accounting,Statutory Year End Accounting,,Erect Architecture Ltd ,1234339,,,,16/07/2020,2200109445,"5,000.00",,Construction : enhancements,,,,,,No
The Royal Borough of Kensington and Chelsea,RBKC,,Statutory Year End Accounting,Statutory Year End Accounting,,Etude Consulting Limited,1269026,,,,07/07/2020,2200107586,"4,750.00",,Other Consultants,,,,,,No
The Royal Borough of Kensington and Chelsea,RBKC,,Statutory Year End Accounting,Statutory Year End Accounting,,Etude Consulting Limited,1269026,,,,07/07/2020,2200107587,"4,750.00",,Other Consultants,,,,,,No
The Royal Borough of Kensington and Chelsea,RBKC,,Statutory Year End Accounting,Statutory Year End Accounting,,Etude Consulting Limited,1269026,,,,05/08/2020,2200112677,"5,300.00",,Other Consultants,,,,,,No
The Royal Borough of Kensington and Chelsea,RBKC,,Statutory Year End Accounting,Statutory Year End Accounting,,Etude Consulting Limited,1269026,,,,04/09/2020,2200117721,"4,820.00",,Other Consultants,,,,,,No
The Royal Borough of Kensington and Chelsea,RBKC,,Statutory Year End Accounting,Statutory Year End Accounting,,F.M Conway Ltd ,1231208,,,,01/07/2020,2200106253,"27,009.78",,Construction : enhancements,,,,,,No
The Royal Borough of Kensington and Chelsea,RBKC,,Statutory Year End Accounting,Statutory Year End Accounting,,F.M Conway Ltd ,1231208,,,,01/07/2020,2200106339,"1,487.20",,Construction : enhancements,,,,,,No
The Royal Borough of Kensington and Chelsea,RBKC,,Statutory Year End Accounting,Statutory Year End Accounting,,F.M Conway Ltd ,1231208,,,,15/07/2020,2200109105,"5,391.37",,Payments to main contractor,,,,,,No
The Royal Borough of Kensington and Chelsea,RBKC,,Statutory Year End Accounting,Statutory Year End Accounting,,F.M Conway Ltd ,1231208,,,,15/07/2020,2200109106,"40,948.27",,Payments to main contractor,,,,,,No
The Royal Borough of Kensington and Chelsea,RBKC,,Statutory Year End Accounting,Statutory Year End Accounting,,F.M Conway Ltd ,1231208,,,,16/07/2020,2200109327,"64,177.65",,Payments to main contractor,,,,,,No
The Royal Borough of Kensington and Chelsea,RBKC,,Statutory Year End Accounting,Statutory Year End Accounting,,F.M Conway Ltd ,1231208,,,,27/07/2020,2200110880,"1,568.17",,Construction : enhancements,,,,,,No
The Royal Borough of Kensington and Chelsea,RBKC,,Statutory Year End Accounting,Statutory Year End Accounting,,F.M Conway Ltd ,1231208,,,,27/07/2020,2200110882,"120,000.00",,Construction : enhancements,,,,,,No
The Royal Borough of Kensington and Chelsea,RBKC,,Statutory Year End Accounting,Statutory Year End Accounting,,F.M Conway Ltd ,1231208,,,,27/07/2020,2200110897,"4,400.55",,Payments to main contractor,,,,,,No
The Royal Borough of Kensington and Chelsea,RBKC,,Statutory Year End Accounting,Statutory Year End Accounting,,F.M Conway Ltd ,1231208,,,,27/07/2020,2200110898,"48,978.07",,Payments to main contractor,,,,,,No
The Royal Borough of Kensington and Chelsea,RBKC,,Statutory Year End Accounting,Statutory Year End Accounting,,F.M Conway Ltd ,1231208,,,,03/08/2020,2200112186,"14,817.60",,Construction : enhancements,,,,,,No
The Royal Borough of Kensington and Chelsea,RBKC,,Statutory Year End Accounting,Statutory Year End Accounting,,F.M Conway Ltd ,1231208,,,,03/08/2020,2200112187,"7,191.28",,Construction : enhancements,,,,,,No
The Royal Borough of Kensington and Chelsea,RBKC,,Statutory Year End Accounting,Statutory Year End Accounting,,F.M Conway Ltd ,1231208,,,,03/08/2020,2200112189,"10,958.79",,Construction : enhancements,,,,,,No
The Royal Borough of Kensington and Chelsea,RBKC,,Statutory Year End Accounting,Statutory Year End Accounting,,F.M Conway Ltd ,1231208,,,,03/08/2020,2200112192,820.81,,Construction : enhancements,,,,,,No
The Royal Borough of Kensington and Chelsea,RBKC,,Statutory Year End Accounting,Statutory Year End Accounting,,F.M Conway Ltd ,1231208,,,,04/08/2020,2200112378,"1,022.00",,Other capital equipment,,,,,,No
The Royal Borough of Kensington and Chelsea,RBKC,,Statutory Year End Accounting,Statutory Year End Accounting,,F.M Conway Ltd ,1231208,,,,04/08/2020,2200112412,"1,115.29",,Construction : enhancements,,,,,,No
The Royal Borough of Kensington and Chelsea,RBKC,,Statutory Year End Accounting,Statutory Year End Accounting,,F.M Conway Ltd ,1231208,,,,04/08/2020,2200112413,"4,385.69",,Construction : enhancements,,,,,,No
The Royal Borough of Kensington and Chelsea,RBKC,,Statutory Year End Accounting,Statutory Year End Accounting,,F.M Conway Ltd ,1231208,,,,05/08/2020,2200112603,"2,555.66",,Construction : enhancements,,,,,,No
The Royal Borough of Kensington and Chelsea,RBKC,,Statutory Year End Accounting,Statutory Year End Accounting,,F.M Conway Ltd ,1231208,,,,06/08/2020,2200112851,"41,607.68",,Payments to main contractor,,,,,,No
The Royal Borough of Kensington and Chelsea,RBKC,,Statutory Year End Accounting,Statutory Year End Accounting,,F.M Conway Ltd ,1231208,,,,06/08/2020,2200112965,"132,887.24",,Site Works,,,,,,No
The Royal Borough of Kensington and Chelsea,RBKC,,Statutory Year End Accounting,Statutory Year End Accounting,,F.M Conway Ltd ,1231208,,,,11/08/2020,2200113634,703.00,,Other capital equipment,,,,,,No
The Royal Borough of Kensington and Chelsea,RBKC,,Statutory Year End Accounting,Statutory Year End Accounting,,F.M Conway Ltd ,1231208,,,,14/08/2020,2200114642,"2,149.08",,Payments to main contractor,,,,,,No
The Royal Borough of Kensington and Chelsea,RBKC,,Statutory Year End Accounting,Statutory Year End Accounting,,F.M Conway Ltd ,1231208,,,,25/08/2020,2200116158,"4,790.30",,Construction : enhancements,,,,,,No
The Royal Borough of Kensington and Chelsea,RBKC,,Statutory Year End Accounting,Statutory Year End Accounting,,F.M Conway Ltd ,1231208,,,,25/08/2020,2200116200,"135,000.00",,Construction : enhancements,,,,,,No
The Royal Borough of Kensington and Chelsea,RBKC,,Statutory Year End Accounting,Statutory Year End Accounting,,F.M Conway Ltd ,1231208,,,,27/08/2020,2200116509,"45,000.00",,Construction : enhancements,,,,,,No
The Royal Borough of Kensington and Chelsea,RBKC,,Statutory Year End Accounting,Statutory Year End Accounting,,F.M Conway Ltd ,1231208,,,,01/09/2020,2200116985,"2,620.55",,Construction : enhancements,,,,,,No
The Royal Borough of Kensington and Chelsea,RBKC,,Statutory Year End Accounting,Statutory Year End Accounting,,F.M Conway Ltd ,1231208,,,,01/09/2020,2200117002,"111,559.14",,Payments to main contractor,,,,,,No
The Royal Borough of Kensington and Chelsea,RBKC,,Statutory Year End Accounting,Statutory Year End Accounting,,F.M Conway Ltd ,1231208,,,,03/09/2020,2200117502,"3,484.60",,Construction : enhancements,,,,,,No
The Royal Borough of Kensington and Chelsea,RBKC,,Statutory Year End Accounting,Statutory Year End Accounting,,F.M Conway Ltd ,1231208,,,,03/09/2020,2200117507,"4,365.90",,Construction : enhancements,,,,,,No
The Royal Borough of Kensington and Chelsea,RBKC,,Statutory Year End Accounting,Statutory Year End Accounting,,F.M Conway Ltd ,1231208,,,,03/09/2020,2200117607,"142,204.47",,Site Works,,,,,,No
The Royal Borough of Kensington and Chelsea,RBKC,,Statutory Year End Accounting,Statutory Year End Accounting,,F.M Conway Ltd ,1231208,,,,22/09/2020,2200121206,"2,462.89",,Construction : enhancements,,,,,,No
The Royal Borough of Kensington and Chelsea,RBKC,,Statutory Year End Accounting,Statutory Year End Accounting,,F.M Conway Ltd ,1231208,,,,29/09/2020,2200122724,"36,219.77",,Payments to main contractor,,,,,,No
The Royal Borough of Kensington and Chelsea,RBKC,,Statutory Year End Accounting,Statutory Year End Accounting,,F.M Conway Ltd ,1231208,,,,30/09/2020,2200122917,"9,431.10",,Construction : enhancements,,,,,,No
The Royal Borough of Kensington and Chelsea,RBKC,,Statutory Year End Accounting,Statutory Year End Accounting,,F.M Conway Ltd ,1231208,,,,30/09/2020,2200122918,"21,665.70",,Construction : enhancements,,,,,,No
The Royal Borough of Kensington and Chelsea,RBKC,,Statutory Year End Accounting,Statutory Year End Accounting,,F.M Conway Ltd ,1231208,,,,30/09/2020,2200122963,"89,239.44",,Construction : enhancements,,,,,,No
The Royal Borough of Kensington and Chelsea,RBKC,,Statutory Year End Accounting,Statutory Year End Accounting,,Faithful and Gould Limited,1234387,,,,17/07/2020,2200109797,"40,980.00",,Professional Fees : Non Legal,,,,,,No
The Royal Borough of Kensington and Chelsea,RBKC,,Statutory Year End Accounting,Statutory Year End Accounting,,Faithful and Gould Limited,1234387,,,,10/08/2020,2200113519,"4,320.00",,Professional Fees : Non Legal,,,,,,No
The Royal Borough of Kensington and Chelsea,RBKC,,Statutory Year End Accounting,Statutory Year End Accounting,,Faithful and Gould Limited,1234387,,,,27/08/2020,2200116586,"1,850.00",,Professional Fees : Non Legal,,,,,,No
The Royal Borough of Kensington and Chelsea,RBKC,,Statutory Year End Accounting,Statutory Year End Accounting,,Faithful and Gould Limited,1234387,,,,21/09/2020,2200120913,"18,241.00",,Professional Fees : Non Legal,,,,,,No
The Royal Borough of Kensington and Chelsea,RBKC,,Statutory Year End Accounting,Statutory Year End Accounting,,Faithful and Gould Limited,1234387,,,,23/09/2020,2200121393,"28,173.00",,Professional Fees : Non Legal,,,,,,No
The Royal Borough of Kensington and Chelsea,RBKC,,Statutory Year End Accounting,Statutory Year End Accounting,,Falck Fire Consulting Ltd ,1254122,,,,03/09/2020,2200117666,"40,421.95",,Professional Fees : Non Legal,,,,,,No
The Royal Borough of Kensington and Chelsea,RBKC,,Statutory Year End Accounting,Statutory Year End Accounting,,Fluid Design Ltd ,1234437,,,,06/07/2020,2200107270,"4,500.00",,Payments to main contractor,,,,,,No
The Royal Borough of Kensington and Chelsea,RBKC,,Statutory Year End Accounting,Statutory Year End Accounting,,Fluid Design Ltd ,1234437,,,,28/07/2020,2200111001,"4,500.00",,Payments to main contractor,,,,,,No
The Royal Borough of Kensington and Chelsea,RBKC,,Statutory Year End Accounting,Statutory Year End Accounting,,Fluid Design Ltd ,1234437,,,,19/08/2020,2200115191,"3,500.00",,Payments to main contractor,,,,,,No
The Royal Borough of Kensington and Chelsea,RBKC,,Statutory Year End Accounting,Statutory Year End Accounting,,Frankham Consultancy Group Ltd ,1234583,,,,14/07/2020,2200109025,985.00,,Payments to main contractor,,,,,,No
The Royal Borough of Kensington and Chelsea,RBKC,,Statutory Year End Accounting,Statutory Year End Accounting,,Frankham Consultancy Group Ltd ,1234583,,,,14/07/2020,2200109026,985.00,,Payments to main contractor,,,,,,No
The Royal Borough of Kensington and Chelsea,RBKC,,Statutory Year End Accounting,Statutory Year End Accounting,,Frankham Consultancy Group Ltd ,1234583,,,,14/07/2020,2200109027,720.00,,Payments to main contractor,,,,,,No
The Royal Borough of Kensington and Chelsea,RBKC,,Statutory Year End Accounting,Statutory Year End Accounting,,Frankham Consultancy Group Ltd ,1234583,,,,14/07/2020,2200109030,985.00,,Payments to main contractor,,,,,,No
The Royal Borough of Kensington and Chelsea,RBKC,,Statutory Year End Accounting,Statutory Year End Accounting,,Frankham Consultancy Group Ltd ,1234583,,,,20/07/2020,2200110126,"1,599.32",,Planned Maintenance (CM),,,,,,No
The Royal Borough of Kensington and Chelsea,RBKC,,Statutory Year End Accounting,Statutory Year End Accounting,,Frankham Consultancy Group Ltd ,1234583,,,,07/08/2020,2200113125,670.00,,Payments to main contractor,,,,,,No
The Royal Borough of Kensington and Chelsea,RBKC,,Statutory Year End Accounting,Statutory Year End Accounting,,Frankham Consultancy Group Ltd ,1234583,,,,23/09/2020,2200121397,780.00,,Payments to main contractor,,,,,,No
The Royal Borough of Kensington and Chelsea,RBKC,,Statutory Year End Accounting,Statutory Year End Accounting,,Freeway Lift Services Ltd ,1231213,,,,29/09/2020,2200122790,"3,225.00",,Payments to main contractor,,,,,,No
The Royal Borough of Kensington and Chelsea,RBKC,,Statutory Year End Accounting,Statutory Year End Accounting,,Frost Meadowcroft Ltd ,1234591,,,,08/07/2020,2200107936,500.00,,Creditors Control : AP GRIR,,,,,,No
The Royal Borough of Kensington and Chelsea,RBKC,,Statutory Year End Accounting,Statutory Year End Accounting,,Fusion Project Management Ltd,1268369,,,,03/09/2020,2200117608,"21,129.00",,Other Consultants,,,,,,No
The Royal Borough of Kensington and Chelsea,RBKC,,Statutory Year End Accounting,Statutory Year End Accounting,,Fusion Project Management Ltd,1268369,,,,03/09/2020,2200117609,"42,258.00",,Other Consultants,,,,,,No
The Royal Borough of Kensington and Chelsea,RBKC,,Statutory Year End Accounting,Statutory Year End Accounting,,Thames Water Developer Services,D000000023,,,,28/07/2020,3110209701,840.00,,Other Consultants,,,,,,No
The Royal Borough of Kensington and Chelsea,RBKC,,Statutory Year End Accounting,Statutory Year End Accounting,,Town Legal Llp,D000000023,,,,29/07/2020,3110209745,"15,000.00",,Legal Fees & expenses,,,,,,No
The Royal Borough of Kensington and Chelsea,RBKC,,Statutory Year End Accounting,Statutory Year End Accounting,,Winckworth Sherwood Llp,D000000023,,,,08/09/2020,3110221681,"400,000.00",,Acquisition of Land & Buildings,,,,,,No
The Royal Borough of Kensington and Chelsea,RBKC,,Statutory Year End Accounting,Statutory Year End Accounting,,Winckworth Sherwood Llp,D000000023,,,,10/09/2020,3110221900,"3,600,000.00",,Acquisition of Land & Buildings,,,,,,No
The Royal Borough of Kensington and Chelsea,RBKC,,Statutory Year End Accounting,Statutory Year End Accounting,,GIA ,1234645,,,,10/09/2020,2200118840,"1,500.00",,Site Works,,,,,,No
The Royal Borough of Kensington and Chelsea,RBKC,,Statutory Year End Accounting,Statutory Year End Accounting,,Gardiner & Theobald LLP ,1234613,,,,06/07/2020,2200107498,"4,500.00",,Other Consultants,,,,,,No
The Royal Borough of Kensington and Chelsea,RBKC,,Statutory Year End Accounting,Statutory Year End Accounting,,Gardiner & Theobald LLP ,1234613,,,,07/08/2020,2200113146,"4,500.00",,Other Consultants,,,,,,No
The Royal Borough of Kensington and Chelsea,RBKC,,Statutory Year End Accounting,Statutory Year End Accounting,,Gardiner & Theobald LLP ,1234613,,,,30/09/2020,2200122928,"4,500.00",,Other Consultants,,,,,,No
The Royal Borough of Kensington and Chelsea,RBKC,,Statutory Year End Accounting,Statutory Year End Accounting,,Garvey Bros Builders ,1234614,,,,16/09/2020,2200120075,"6,020.00",,Payments to main contractor,,,,,,No
The Royal Borough of Kensington and Chelsea,RBKC,,Statutory Year End Accounting,Statutory Year End Accounting,,Garvey Bros Builders ,1234614,,,,28/09/2020,2200122232,"6,655.00",,Payments to main contractor,,,,,,No
The Royal Borough of Kensington and Chelsea,RBKC,,Statutory Year End Accounting,Statutory Year End Accounting,,Garvey Bros Builders ,1234614,,,,29/09/2020,2200122791,"9,214.00",,Payments to main contractor,,,,,,No
The Royal Borough of Kensington and Chelsea,RBKC,,Statutory Year End Accounting,Statutory Year End Accounting,,Gas Contract Services Ltd ,1234618,,,,25/09/2020,2200121835,"3,050.00",,Professional Fees : Non Legal,,,,,,No
The Royal Borough of Kensington and Chelsea,RBKC,,Statutory Year End Accounting,Statutory Year End Accounting,,Gas Contract Services Ltd ,1234618,,,,25/09/2020,2200121836,"9,900.00",,Professional Fees : Non Legal,,,,,,No
The Royal Borough of Kensington and Chelsea,RBKC,,Statutory Year End Accounting,Statutory Year End Accounting,,Gerda Security Products Ltd ,1234642,,,,07/07/2020,2200107820,"32,200.02",,Payments to main contractor,,,,,,No
The Royal Borough of Kensington and Chelsea,RBKC,,Statutory Year End Accounting,Statutory Year End Accounting,,Gerda Security Products Ltd ,1234642,,,,07/07/2020,2200107821,"20,373.67",,Payments to main contractor,,,,,,No
The Royal Borough of Kensington and Chelsea,RBKC,,Statutory Year End Accounting,Statutory Year End Accounting,,Gerda Security Products Ltd ,1234642,,,,28/07/2020,2200111173,"1,130.96",,Payments to main contractor,,,,,,No
The Royal Borough of Kensington and Chelsea,RBKC,,Statutory Year End Accounting,Statutory Year End Accounting,,Gerda Security Products Ltd ,1234642,,,,28/07/2020,2200111174,"2,431.79",,Payments to main contractor,,,,,,No
The Royal Borough of Kensington and Chelsea,RBKC,,Statutory Year End Accounting,Statutory Year End Accounting,,Gerda Security Products Ltd ,1234642,,,,28/07/2020,2200111175,"20,179.90",,Payments to main contractor,,,,,,No
The Royal Borough of Kensington and Chelsea,RBKC,,Statutory Year End Accounting,Statutory Year End Accounting,,Gerda Security Products Ltd ,1234642,,,,28/07/2020,2200111176,"1,119.37",,Payments to main contractor,,,,,,No
The Royal Borough of Kensington and Chelsea,RBKC,,Statutory Year End Accounting,Statutory Year End Accounting,,Gerda Security Products Ltd ,1234642,,,,28/07/2020,2200111178,847.85,,Payments to main contractor,,,,,,No
The Royal Borough of Kensington and Chelsea,RBKC,,Statutory Year End Accounting,Statutory Year End Accounting,,Gerda Security Products Ltd ,1234642,,,,29/07/2020,2200111475,"24,383.91",,Payments to main contractor,,,,,,No
The Royal Borough of Kensington and Chelsea,RBKC,,Statutory Year End Accounting,Statutory Year End Accounting,,Gerda Security Products Ltd ,1234642,,,,04/08/2020,2200112466,"1,130.96",,Payments to main contractor,,,,,,No
The Royal Borough of Kensington and Chelsea,RBKC,,Statutory Year End Accounting,Statutory Year End Accounting,,Gerda Security Products Ltd ,1234642,,,,11/08/2020,2200113733,"6,489.53",,Payments to main contractor,,,,,,No
The Royal Borough of Kensington and Chelsea,RBKC,,Statutory Year End Accounting,Statutory Year End Accounting,,Gerda Security Products Ltd ,1234642,,,,11/08/2020,2200113734,"1,119.37",,Payments to main contractor,,,,,,No
The Royal Borough of Kensington and Chelsea,RBKC,,Statutory Year End Accounting,Statutory Year End Accounting,,Gerda Security Products Ltd ,1234642,,,,11/08/2020,2200113736,"29,414.86",,Payments to main contractor,,,,,,No
The Royal Borough of Kensington and Chelsea,RBKC,,Statutory Year End Accounting,Statutory Year End Accounting,,Gerda Security Products Ltd ,1234642,,,,11/08/2020,2200113737,"22,743.91",,Payments to main contractor,,,,,,No
The Royal Borough of Kensington and Chelsea,RBKC,,Statutory Year End Accounting,Statutory Year End Accounting,,Gerda Security Products Ltd ,1234642,,,,11/08/2020,2200113738,"24,127.86",,Payments to main contractor,,,,,,No
The Royal Borough of Kensington and Chelsea,RBKC,,Statutory Year End Accounting,Statutory Year End Accounting,,Gerda Security Products Ltd ,1234642,,,,14/08/2020,2200114368,"3,500.00",,Payments to main contractor,,,,,,No
The Royal Borough of Kensington and Chelsea,RBKC,,Statutory Year End Accounting,Statutory Year End Accounting,,Gerda Security Products Ltd ,1234642,,,,14/08/2020,2200114369,700.00,,Payments to main contractor,,,,,,No
The Royal Borough of Kensington and Chelsea,RBKC,,Statutory Year End Accounting,Statutory Year End Accounting,,Gerda Security Products Ltd ,1234642,,,,14/08/2020,2200114371,700.00,,Payments to main contractor,,,,,,No
The Royal Borough of Kensington and Chelsea,RBKC,,Statutory Year End Accounting,Statutory Year End Accounting,,Gerda Security Products Ltd ,1234642,,,,14/08/2020,2200114383,"4,200.00",,Payments to main contractor,,,,,,No
The Royal Borough of Kensington and Chelsea,RBKC,,Statutory Year End Accounting,Statutory Year End Accounting,,Gerda Security Products Ltd ,1234642,,,,14/08/2020,2200114384,"15,050.00",,Payments to main contractor,,,,,,No
The Royal Borough of Kensington and Chelsea,RBKC,,Statutory Year End Accounting,Statutory Year End Accounting,,Gerda Security Products Ltd ,1234642,,,,21/08/2020,2200115711,"1,144.23",,Payments to main contractor,,,,,,No
The Royal Borough of Kensington and Chelsea,RBKC,,Statutory Year End Accounting,Statutory Year End Accounting,,Gerda Security Products Ltd ,1234642,,,,21/08/2020,2200115712,"4,766.52",,Payments to main contractor,,,,,,No
The Royal Borough of Kensington and Chelsea,RBKC,,Statutory Year End Accounting,Statutory Year End Accounting,,Gerda Security Products Ltd ,1234642,,,,21/08/2020,2200115713,"2,255.92",,Payments to main contractor,,,,,,No
The Royal Borough of Kensington and Chelsea,RBKC,,Statutory Year End Accounting,Statutory Year End Accounting,,Gerda Security Products Ltd ,1234642,,,,21/08/2020,2200115714,"2,241.06",,Payments to main contractor,,,,,,No
The Royal Borough of Kensington and Chelsea,RBKC,,Statutory Year End Accounting,Statutory Year End Accounting,,Gerda Security Products Ltd ,1234642,,,,21/08/2020,2200115715,"18,035.57",,Payments to main contractor,,,,,,No
The Royal Borough of Kensington and Chelsea,RBKC,,Statutory Year End Accounting,Statutory Year End Accounting,,Gerda Security Products Ltd ,1234642,,,,21/08/2020,2200115716,"10,846.96",,Payments to main contractor,,,,,,No
The Royal Borough of Kensington and Chelsea,RBKC,,Statutory Year End Accounting,Statutory Year End Accounting,,Gerda Security Products Ltd ,1234642,,,,21/08/2020,2200115717,"6,294.43",,Payments to main contractor,,,,,,No
The Royal Borough of Kensington and Chelsea,RBKC,,Statutory Year End Accounting,Statutory Year End Accounting,,Gerda Security Products Ltd ,1234642,,,,21/08/2020,2200115718,"13,113.28",,Payments to main contractor,,,,,,No
The Royal Borough of Kensington and Chelsea,RBKC,,Statutory Year End Accounting,Statutory Year End Accounting,,Gerda Security Products Ltd ,1234642,,,,21/08/2020,2200115724,"27,865.72",,Payments to main contractor,,,,,,No
The Royal Borough of Kensington and Chelsea,RBKC,,Statutory Year End Accounting,Statutory Year End Accounting,,Gerda Security Products Ltd ,1234642,,,,21/08/2020,2200115725,"1,496.43",,Payments to main contractor,,,,,,No
The Royal Borough of Kensington and Chelsea,RBKC,,Statutory Year End Accounting,Statutory Year End Accounting,,Gerda Security Products Ltd ,1234642,,,,21/08/2020,2200115726,"6,337.57",,Payments to main contractor,,,,,,No
The Royal Borough of Kensington and Chelsea,RBKC,,Statutory Year End Accounting,Statutory Year End Accounting,,Gerda Security Products Ltd ,1234642,,,,21/08/2020,2200115728,"4,125.60",,Payments to main contractor,,,,,,No
The Royal Borough of Kensington and Chelsea,RBKC,,Statutory Year End Accounting,Statutory Year End Accounting,,Gerda Security Products Ltd ,1234642,,,,21/09/2020,2200120929,"1,400.00",,Payments to main contractor,,,,,,No
The Royal Borough of Kensington and Chelsea,RBKC,,Statutory Year End Accounting,Statutory Year End Accounting,,Gerda Security Products Ltd ,1234642,,,,21/09/2020,2200120930,"1,400.00",,Payments to main contractor,,,,,,No
The Royal Borough of Kensington and Chelsea,RBKC,,Statutory Year End Accounting,Statutory Year End Accounting,,Gerda Security Products Ltd ,1234642,,,,21/09/2020,2200120931,"3,500.00",,Payments to main contractor,,,,,,No
The Royal Borough of Kensington and Chelsea,RBKC,,Statutory Year End Accounting,Statutory Year End Accounting,,Gerda Security Products Ltd ,1234642,,,,21/09/2020,2200120933,"9,737.27",,Payments to main contractor,,,,,,No
The Royal Borough of Kensington and Chelsea,RBKC,,Statutory Year End Accounting,Statutory Year End Accounting,,Gerda Security Products Ltd ,1234642,,,,21/09/2020,2200120948,"1,400.00",,Payments to main contractor,,,,,,No
The Royal Borough of Kensington and Chelsea,RBKC,,Statutory Year End Accounting,Statutory Year End Accounting,,Gerda Security Products Ltd ,1234642,,,,21/09/2020,2200120950,"4,550.00",,Payments to main contractor,,,,,,No
The Royal Borough of Kensington and Chelsea,RBKC,,Statutory Year End Accounting,Statutory Year End Accounting,,Gerda Security Products Ltd ,1234642,,,,21/09/2020,2200120951,847.85,,Payments to main contractor,,,,,,No
The Royal Borough of Kensington and Chelsea,RBKC,,Statutory Year End Accounting,Statutory Year End Accounting,,Gerda Security Products Ltd ,1234642,,,,21/09/2020,2200120952,"3,500.00",,Payments to main contractor,,,,,,No
The Royal Borough of Kensington and Chelsea,RBKC,,Statutory Year End Accounting,Statutory Year End Accounting,,Gerda Security Products Ltd ,1234642,,,,21/09/2020,2200120953,"1,400.00",,Payments to main contractor,,,,,,No
The Royal Borough of Kensington and Chelsea,RBKC,,Statutory Year End Accounting,Statutory Year End Accounting,,Gerda Security Products Ltd ,1234642,,,,28/09/2020,2200122218,"17,150.00",,Payments to main contractor,,,,,,No
The Royal Borough of Kensington and Chelsea,RBKC,,Statutory Year End Accounting,Statutory Year End Accounting,,Gerda Security Products Ltd ,1234642,,,,28/09/2020,2200122219,"11,724.02",,Payments to main contractor,,,,,,No
The Royal Borough of Kensington and Chelsea,RBKC,,Statutory Year End Accounting,Statutory Year End Accounting,,Gerda Security Products Ltd ,1234642,,,,28/09/2020,2200122220,"16,449.97",,Payments to main contractor,,,,,,No
The Royal Borough of Kensington and Chelsea,RBKC,,Statutory Year End Accounting,Statutory Year End Accounting,,Gerda Security Products Ltd ,1234642,,,,28/09/2020,2200122221,"7,700.00",,Payments to main contractor,,,,,,No
The Royal Borough of Kensington and Chelsea,RBKC,,Statutory Year End Accounting,Statutory Year End Accounting,,Gerda Security Products Ltd ,1234642,,,,28/09/2020,2200122222,"8,050.00",,Payments to main contractor,,,,,,No
The Royal Borough of Kensington and Chelsea,RBKC,,Statutory Year End Accounting,Statutory Year End Accounting,,Gerda Security Products Ltd ,1234642,,,,28/09/2020,2200122311,"5,600.00",,Payments to main contractor,,,,,,No
The Royal Borough of Kensington and Chelsea,RBKC,,Statutory Year End Accounting,Statutory Year End Accounting,,Gerda Security Products Ltd ,1234642,,,,28/09/2020,2200122312,"1,400.00",,Payments to main contractor,,,,,,No
The Royal Borough of Kensington and Chelsea,RBKC,,Statutory Year End Accounting,Statutory Year End Accounting,,Green Building Design Consultants L,1256002,,,,04/08/2020,2200112500,"3,585.00",,Payments to main contractor,,,,,,No
The Royal Borough of Kensington and Chelsea,RBKC,,Statutory Year End Accounting,Statutory Year End Accounting,,Greenacre Recruitment,1258089,,,,03/07/2020,2200106963,"2,625.00",,Capitalised salaries,,,,,,No
The Royal Borough of Kensington and Chelsea,RBKC,,Statutory Year End Accounting,Statutory Year End Accounting,,Greenacre Recruitment,1258089,,,,10/07/2020,2200108414,"2,625.00",,Capitalised salaries,,,,,,No
The Royal Borough of Kensington and Chelsea,RBKC,,Statutory Year End Accounting,Statutory Year End Accounting,,Greenacre Recruitment,1258089,,,,17/07/2020,2200109693,"2,625.00",,Capitalised salaries,,,,,,No
The Royal Borough of Kensington and Chelsea,RBKC,,Statutory Year End Accounting,Statutory Year End Accounting,,Greenacre Recruitment,1258089,,,,27/07/2020,2200110905,"2,625.00",,Capitalised salaries,,,,,,No
The Royal Borough of Kensington and Chelsea,RBKC,,Statutory Year End Accounting,Statutory Year End Accounting,,Greenacre Recruitment,1258089,,,,30/07/2020,2200111574,"2,625.00",,Capitalised salaries,,,,,,No
The Royal Borough of Kensington and Chelsea,RBKC,,Statutory Year End Accounting,Statutory Year End Accounting,,Greenacre Recruitment,1258089,,,,07/08/2020,2200113161,"2,362.50",,Capitalised salaries,,,,,,No
The Royal Borough of Kensington and Chelsea,RBKC,,Statutory Year End Accounting,Statutory Year End Accounting,,Greenacre Recruitment,1258089,,,,17/08/2020,2200114831,"2,625.00",,Capitalised salaries,,,,,,No
The Royal Borough of Kensington and Chelsea,RBKC,,Statutory Year End Accounting,Statutory Year End Accounting,,Greenacre Recruitment,1258089,,,,01/09/2020,2200116991,"2,625.00",,Capitalised salaries,,,,,,No
The Royal Borough of Kensington and Chelsea,RBKC,,Statutory Year End Accounting,Statutory Year End Accounting,,Greenacre Recruitment,1258089,,,,08/09/2020,2200118477,"2,625.00",,Capitalised salaries,,,,,,No
The Royal Borough of Kensington and Chelsea,RBKC,,Statutory Year End Accounting,Statutory Year End Accounting,,Greenacre Recruitment,1258089,,,,08/09/2020,2200118478,"2,625.00",,Capitalised salaries,,,,,,No
The Royal Borough of Kensington and Chelsea,RBKC,,Statutory Year End Accounting,Statutory Year End Accounting,,Greenacre Recruitment,1258089,,,,14/09/2020,2200119555,"2,100.00",,Capitalised salaries,,,,,,No
The Royal Borough of Kensington and Chelsea,RBKC,,Statutory Year End Accounting,Statutory Year End Accounting,,Greenacre Recruitment,1258089,,,,18/09/2020,2200120586,"2,625.00",,Capitalised salaries,,,,,,No
The Royal Borough of Kensington and Chelsea,RBKC,,Statutory Year End Accounting,Statutory Year End Accounting,,Greenacre Recruitment,1258089,,,,25/09/2020,2200121847,"2,625.00",,Capitalised salaries,,,,,,No
The Royal Borough of Kensington and Chelsea,RBKC,,Statutory Year End Accounting,Statutory Year End Accounting,,Greengauge Building Energy Consulta,1272376,,,,22/09/2020,2200121178,"2,920.00",,Other Consultants,,,,,,No
The Royal Borough of Kensington and Chelsea,RBKC,,Statutory Year End Accounting,Statutory Year End Accounting,,Guarding UK Ltd ,1230372,,,,13/07/2020,2200108671,"3,174.05",,Creditors Control : AP GRIR,,,,,,No
The Royal Borough of Kensington and Chelsea,RBKC,,Statutory Year End Accounting,Statutory Year End Accounting,,Guarding UK Ltd ,1230372,,,,15/07/2020,2200109200,"2,834.00",,Site Works,,,,,,No
The Royal Borough of Kensington and Chelsea,RBKC,,Statutory Year End Accounting,Statutory Year End Accounting,,Guarding UK Ltd ,1230372,,,,15/07/2020,2200109201,"11,484.00",,Creditors Control : AP GRIR,,,,,,No
The Royal Borough of Kensington and Chelsea,RBKC,,Statutory Year End Accounting,Statutory Year End Accounting,,Guarding UK Ltd ,1230372,,,,13/08/2020,2200114126,"2,834.00",,Site Works,,,,,,No
The Royal Borough of Kensington and Chelsea,RBKC,,Statutory Year End Accounting,Statutory Year End Accounting,,Guarding UK Ltd ,1230372,,,,13/08/2020,2200114149,"11,866.00",,Creditors Control : AP GRIR,,,,,,No
The Royal Borough of Kensington and Chelsea,RBKC,,Statutory Year End Accounting,Statutory Year End Accounting,,Guarding UK Ltd ,1230372,,,,17/09/2020,2200120226,"12,233.65",,Creditors Control : AP GRIR,,,,,,No
The Royal Borough of Kensington and Chelsea,RBKC,,Statutory Year End Accounting,Statutory Year End Accounting,,Guarding UK Ltd ,1230372,,,,18/09/2020,2200120549,"2,834.00",,Site Works,,,,,,No
The Royal Borough of Kensington and Chelsea,RBKC,,Statutory Year End Accounting,Statutory Year End Accounting,,Guideline Lift Services Ltd ,1231219,,,,16/09/2020,2200120049,"68,377.39",,Payments to main contractor,,,,,,No
The Royal Borough of Kensington and Chelsea,RBKC,,Statutory Year End Accounting,Statutory Year End Accounting,,HOWDENS JOINERY CO. ,1256073,,,,18/09/2020,2200120522,"4,659.43",,Planned Maintenance (CM),,,,,,No
The Royal Borough of Kensington and Chelsea,RBKC,,Statutory Year End Accounting,Statutory Year End Accounting,,Hardie Secure Products Ltd ,1234694,,,,07/08/2020,2200113246,"2,574.00",,Payments to main contractor,,,,,,No
The Royal Borough of Kensington and Chelsea,RBKC,,Statutory Year End Accounting,Statutory Year End Accounting,,HeliDrone Surveys,1268307,,,,02/07/2020,2200106751,"2,760.00",,Payments to main contractor,,,,,,No
The Royal Borough of Kensington and Chelsea,RBKC,,Statutory Year End Accounting,Statutory Year End Accounting,,HeliDrone Surveys,1268307,,,,10/08/2020,2200113526,"5,700.00",,Payments to main contractor,,,,,,No
The Royal Borough of Kensington and Chelsea,RBKC,,Statutory Year End Accounting,Statutory Year End Accounting,,HeliDrone Surveys,1268307,,,,21/09/2020,2200121004,"9,000.00",,Payments to main contractor,,,,,,No
The Royal Borough of Kensington and Chelsea,RBKC,,Statutory Year End Accounting,Statutory Year End Accounting,,HeliDrone Surveys,1268307,,,,21/09/2020,2200121005,"5,700.00",,Payments to main contractor,,,,,,No
The Royal Borough of Kensington and Chelsea,RBKC,,Statutory Year End Accounting,Statutory Year End Accounting,,Helix Construct Limited,1270811,,,,21/08/2020,2200115819,"135,186.60",,Site Works,,,,,,No
The Royal Borough of Kensington and Chelsea,RBKC,,Statutory Year End Accounting,Statutory Year End Accounting,,Helix Construct Limited,1270811,,,,04/09/2020,2200117717,"80,328.83",,Site Works,,,,,,No
The Royal Borough of Kensington and Chelsea,RBKC,,Statutory Year End Accounting,Statutory Year End Accounting,,Helix Construct Limited,1270811,,,,10/09/2020,2200118881,"132,808.10",,Site Works,,,,,,No
The Royal Borough of Kensington and Chelsea,RBKC,,Statutory Year End Accounting,Statutory Year End Accounting,,Helix Construct Limited,1270811,,,,15/09/2020,2200119771,"208,710.30",,Site Works,,,,,,No
The Royal Borough of Kensington and Chelsea,RBKC,,Statutory Year End Accounting,Statutory Year End Accounting,,Helix Construct Limited,1270811,,,,23/09/2020,2200121349,"284,984.18",,Site Works,,,,,,No
The Royal Borough of Kensington and Chelsea,RBKC,,Statutory Year End Accounting,Statutory Year End Accounting,,Hunters and Partners Ltd ,1254860,,,,06/07/2020,2200107438,"44,347.85",,Other Consultants,,,,,,No
The Royal Borough of Kensington and Chelsea,RBKC,,Statutory Year End Accounting,Statutory Year End Accounting,,Hunters and Partners Ltd ,1254860,,,,06/07/2020,2200107499,"2,189.00",,Other Consultants,,,,,,No
The Royal Borough of Kensington and Chelsea,RBKC,,Statutory Year End Accounting,Statutory Year End Accounting,,Hunters and Partners Ltd ,1254860,,,,31/07/2020,2200111907,"9,784.30",,Other Consultants,,,,,,No
The Royal Borough of Kensington and Chelsea,RBKC,,Statutory Year End Accounting,Statutory Year End Accounting,,Hunters and Partners Ltd ,1254860,,,,31/07/2020,2200111909,"2,189.00",,Other Consultants,,,,,,No
The Royal Borough of Kensington and Chelsea,RBKC,,Statutory Year End Accounting,Statutory Year End Accounting,,Hunters and Partners Ltd ,1254860,,,,31/07/2020,2200111916,"3,975.00",,Other Consultants,,,,,,No
The Royal Borough of Kensington and Chelsea,RBKC,,Statutory Year End Accounting,Statutory Year End Accounting,,Hunters and Partners Ltd ,1254860,,,,14/08/2020,2200114435,"11,700.00",,Other Consultants,,,,,,No
The Royal Borough of Kensington and Chelsea,RBKC,,Statutory Year End Accounting,Statutory Year End Accounting,,Hunters and Partners Ltd ,1254860,,,,02/09/2020,2200117224,"2,189.00",,Other Consultants,,,,,,No
The Royal Borough of Kensington and Chelsea,RBKC,,Statutory Year End Accounting,Statutory Year End Accounting,,Hunters and Partners Ltd ,1254860,,,,07/09/2020,2200118179,"17,054.65",,Other Consultants,,,,,,No
The Royal Borough of Kensington and Chelsea,RBKC,,Statutory Year End Accounting,Statutory Year End Accounting,,IP Fire & Security Ltd ,1230487,,,,18/08/2020,2200115058,"1,734.00",,Creditors Control : AP GRIR,,,,,,No
The Royal Borough of Kensington and Chelsea,RBKC,,Statutory Year End Accounting,Statutory Year End Accounting,,IP Fire & Security Ltd ,1230487,,,,10/09/2020,2200118838,"3,210.00",,Creditors Control : AP GRIR,,,,,,No
The Royal Borough of Kensington and Chelsea,RBKC,,Statutory Year End Accounting,Statutory Year End Accounting,,Idverde Ltd ,1231380,,,,07/09/2020,2200118017,521.47,,Creditors Control : AP GRIR,,,,,,No
The Royal Borough of Kensington and Chelsea,RBKC,,Statutory Year End Accounting,Statutory Year End Accounting,,Image Playgrounds Ltd,1267749,,,,14/07/2020,2200109008,"5,805.00",,Payments to main contractor,,,,,,No
The Royal Borough of Kensington and Chelsea,RBKC,,Statutory Year End Accounting,Statutory Year End Accounting,,Ingleton Wood ,1234783,,,,13/07/2020,2200108599,"19,471.00",,Other Consultants,,,,,,No
The Royal Borough of Kensington and Chelsea,RBKC,,Statutory Year End Accounting,Statutory Year End Accounting,,Ingleton Wood ,1234783,,,,17/08/2020,2200114775,"19,471.00",,Other Consultants,,,,,,No
The Royal Borough of Kensington and Chelsea,RBKC,,Statutory Year End Accounting,Statutory Year End Accounting,,Insight Direct (Uk) Ltd ,1234788,,,,10/08/2020,2200113513,"11,507.88",,Creditors Control : AP GRIR,,,,,,No
The Royal Borough of Kensington and Chelsea,RBKC,,Statutory Year End Accounting,Statutory Year End Accounting,,J & J Topgrade Ltd ,1234807,,,,21/07/2020,2200110245,850.00,,Creditors Control : AP GRIR,,,,,,No
The Royal Borough of Kensington and Chelsea,RBKC,,Statutory Year End Accounting,Statutory Year End Accounting,,J & J Topgrade Ltd ,1234807,,,,27/08/2020,2200116600,541.25,,Creditors Control : AP GRIR,,,,,,No
The Royal Borough of Kensington and Chelsea,RBKC,,Statutory Year End Accounting,Statutory Year End Accounting,,J & J Topgrade Ltd ,1234807,,,,15/09/2020,2200119831,"1,562.50",,Creditors Control : AP GRIR,,,,,,No
The Royal Borough of Kensington and Chelsea,RBKC,,Statutory Year End Accounting,Statutory Year End Accounting,,JH Crawford Security Ltd ,1234817,,,,25/08/2020,2200116067,"3,270.00",,Creditors Control : AP GRIR,,,,,,No
The Royal Borough of Kensington and Chelsea,RBKC,,Statutory Year End Accounting,Statutory Year End Accounting,,JH Crawford Security Ltd ,1234817,,,,09/09/2020,2200118712,"1,380.00",,Creditors Control : AP GRIR,,,,,,No
The Royal Borough of Kensington and Chelsea,RBKC,,Statutory Year End Accounting,Statutory Year End Accounting,,JH Crawford Security Ltd ,1234817,,,,17/09/2020,2200120254,685.50,,Creditors Control : AP GRIR,,,,,,No
The Royal Borough of Kensington and Chelsea,RBKC,,Statutory Year End Accounting,Statutory Year End Accounting,,JH Crawford Security Ltd ,1234817,,,,22/09/2020,2200121118,"3,440.00",,Creditors Control : AP GRIR,,,,,,No
The Royal Borough of Kensington and Chelsea,RBKC,,Statutory Year End Accounting,Statutory Year End Accounting,,Jackson Coles LLP ,1230491,,,,02/07/2020,2200106637,"3,189.00",,Other Consultants,,,,,,No
The Royal Borough of Kensington and Chelsea,RBKC,,Statutory Year End Accounting,Statutory Year End Accounting,,Jackson Coles LLP ,1230491,,,,02/07/2020,2200106639,"3,189.00",,Other Consultants,,,,,,No
The Royal Borough of Kensington and Chelsea,RBKC,,Statutory Year End Accounting,Statutory Year End Accounting,,Jackson Coles LLP ,1230491,,,,02/07/2020,2200106641,"3,189.00",,Other Consultants,,,,,,No
The Royal Borough of Kensington and Chelsea,RBKC,,Statutory Year End Accounting,Statutory Year End Accounting,,Jackson Coles LLP ,1230491,,,,02/07/2020,2200106642,"1,046.77",,Other Consultants,,,,,,No
The Royal Borough of Kensington and Chelsea,RBKC,,Statutory Year End Accounting,Statutory Year End Accounting,,Jackson Coles LLP ,1230491,,,,02/07/2020,2200106643,"1,046.84",,Other Consultants,,,,,,No
The Royal Borough of Kensington and Chelsea,RBKC,,Statutory Year End Accounting,Statutory Year End Accounting,,Jackson Coles LLP ,1230491,,,,02/07/2020,2200106645,"1,046.77",,Other Consultants,,,,,,No
The Royal Borough of Kensington and Chelsea,RBKC,,Statutory Year End Accounting,Statutory Year End Accounting,,Jackson Coles LLP ,1230491,,,,02/07/2020,2200106646,"3,189.00",,Other Consultants,,,,,,No
The Royal Borough of Kensington and Chelsea,RBKC,,Statutory Year End Accounting,Statutory Year End Accounting,,Jackson Coles LLP ,1230491,,,,02/07/2020,2200106647,"20,000.00",,Other Consultants,,,,,,No
The Royal Borough of Kensington and Chelsea,RBKC,,Statutory Year End Accounting,Statutory Year End Accounting,,Jackson Coles LLP ,1230491,,,,02/07/2020,2200106648,"3,189.00",,Other Consultants,,,,,,No
The Royal Borough of Kensington and Chelsea,RBKC,,Statutory Year End Accounting,Statutory Year End Accounting,,Jackson Coles LLP ,1230491,,,,02/07/2020,2200106649,"3,189.00",,Other Consultants,,,,,,No
The Royal Borough of Kensington and Chelsea,RBKC,,Statutory Year End Accounting,Statutory Year End Accounting,,Jackson Coles LLP ,1230491,,,,02/07/2020,2200106650,"3,189.00",,Other Consultants,,,,,,No
The Royal Borough of Kensington and Chelsea,RBKC,,Statutory Year End Accounting,Statutory Year End Accounting,,Jackson Coles LLP ,1230491,,,,02/07/2020,2200106651,"1,046.77",,Other Consultants,,,,,,No
The Royal Borough of Kensington and Chelsea,RBKC,,Statutory Year End Accounting,Statutory Year End Accounting,,Jackson Coles LLP ,1230491,,,,02/07/2020,2200106752,"3,189.00",,Other Consultants,,,,,,No
The Royal Borough of Kensington and Chelsea,RBKC,,Statutory Year End Accounting,Statutory Year End Accounting,,Jackson Coles LLP ,1230491,,,,06/07/2020,2200107271,"3,189.00",,Other Consultants,,,,,,No
The Royal Borough of Kensington and Chelsea,RBKC,,Statutory Year End Accounting,Statutory Year End Accounting,,Jackson Coles LLP ,1230491,,,,10/08/2020,2200113518,"3,189.00",,Other Consultants,,,,,,No
The Royal Borough of Kensington and Chelsea,RBKC,,Statutory Year End Accounting,Statutory Year End Accounting,,Jackson Coles LLP ,1230491,,,,19/08/2020,2200115195,"1,046.77",,Other Consultants,,,,,,No
The Royal Borough of Kensington and Chelsea,RBKC,,Statutory Year End Accounting,Statutory Year End Accounting,,Jackson Coles LLP ,1230491,,,,09/09/2020,2200118565,785.08,,Other Consultants,,,,,,No
The Royal Borough of Kensington and Chelsea,RBKC,,Statutory Year End Accounting,Statutory Year End Accounting,,Jackson Coles LLP ,1230491,,,,09/09/2020,2200118566,"3,189.00",,Other Consultants,,,,,,No
The Royal Borough of Kensington and Chelsea,RBKC,,Statutory Year End Accounting,Statutory Year End Accounting,,Jackson Coles LLP ,1230491,,,,24/09/2020,2200121756,"3,189.00",,Other Consultants,,,,,,No
The Royal Borough of Kensington and Chelsea,RBKC,,Statutory Year End Accounting,Statutory Year End Accounting,,K & T Heating Services Ltd ,1231384,,,,02/07/2020,2200106774,"7,257.65",,Payments to main contractor,,,,,,No
The Royal Borough of Kensington and Chelsea,RBKC,,Statutory Year End Accounting,Statutory Year End Accounting,,K & T Heating Services Ltd ,1231384,,,,22/07/2020,2200110454,"29,895.00",,Payments to main contractor,,,,,,No
The Royal Borough of Kensington and Chelsea,RBKC,,Statutory Year End Accounting,Statutory Year End Accounting,,K & T Heating Services Ltd ,1231384,,,,04/08/2020,2200112392,"91,452.27",,Payments to main contractor,,,,,,No
The Royal Borough of Kensington and Chelsea,RBKC,,Statutory Year End Accounting,Statutory Year End Accounting,,K & T Heating Services Ltd ,1231384,,,,04/08/2020,2200112418,"23,835.00",,Site Works,,,,,,No
The Royal Borough of Kensington and Chelsea,RBKC,,Statutory Year End Accounting,Statutory Year End Accounting,,K & T Heating Services Ltd ,1231384,,,,28/09/2020,2200122318,"214,485.83",,Payments to main contractor,,,,,,No
The Royal Borough of Kensington and Chelsea,RBKC,,Statutory Year End Accounting,Statutory Year End Accounting,,Kaner Olette Limited T/a Kaner Olette Architects,1234833,,,,08/07/2020,2200107970,"1,679.12",,Payments to main contractor,,,,,,No
The Royal Borough of Kensington and Chelsea,RBKC,,Statutory Year End Accounting,Statutory Year End Accounting,,Kaner Olette Limited T/a Kaner Olette Architects,1234833,,,,11/08/2020,2200113628,"3,110.62",,Payments to main contractor,,,,,,No
The Royal Borough of Kensington and Chelsea,RBKC,,Statutory Year End Accounting,Statutory Year End Accounting,,Kaner Olette Limited T/a Kaner Olette Architects,1234833,,,,14/09/2020,2200119590,"3,110.62",,Payments to main contractor,,,,,,No
The Royal Borough of Kensington and Chelsea,RBKC,,Statutory Year End Accounting,Statutory Year End Accounting,,Kensington +Chelsea Art Weekend Ltd,1268762,,,,07/08/2020,2200113142,"17,150.00",,Other Consultants,,,,,,No
The Royal Borough of Kensington and Chelsea,RBKC,,Statutory Year End Accounting,Statutory Year End Accounting,,Kensington +Chelsea Art Weekend Ltd,1268762,,,,12/09/2020,2200119416,"4,900.00",,Other Consultants,,,,,,No
The Royal Borough of Kensington and Chelsea,RBKC,,Statutory Year End Accounting,Statutory Year End Accounting,,Landrock Phillips Ltd ,1230566,,,,01/07/2020,2200106256,850.00,,Payments to main contractor,,,,,,No
The Royal Borough of Kensington and Chelsea,RBKC,,Statutory Year End Accounting,Statutory Year End Accounting,,Lend Lease Consulting (Emea) Ltd ,1234899,,,,04/08/2020,2200112471,"8,687.00",,Construction : enhancements,,,,,,No
The Royal Borough of Kensington and Chelsea,RBKC,,Statutory Year End Accounting,Statutory Year End Accounting,,Lend Lease Consulting (Emea) Ltd ,1234899,,,,04/09/2020,2200117718,"8,687.00",,Construction : enhancements,,,,,,No
The Royal Borough of Kensington and Chelsea,RBKC,,Statutory Year End Accounting,Statutory Year End Accounting,,Lend Lease Consulting (Emea) Ltd ,1234899,,,,28/09/2020,2200122449,"8,687.00",,Construction : enhancements,,,,,,No
The Royal Borough of Kensington and Chelsea,RBKC,,Statutory Year End Accounting,Statutory Year End Accounting,,Lend Lease Consulting (Emea) Ltd ,1234899,,,,30/09/2020,2200122953,"8,687.00",,Construction : enhancements,,,,,,No
The Royal Borough of Kensington and Chelsea,RBKC,,Statutory Year End Accounting,Statutory Year End Accounting,,London Fire Solutions LLP ,1231392,,,,10/08/2020,2200113476,687.50,,Payments to main contractor,,,,,,No
The Royal Borough of Kensington and Chelsea,RBKC,,Statutory Year End Accounting,Statutory Year End Accounting,,London Fire Solutions LLP ,1231392,,,,10/08/2020,2200113480,"17,550.41",,Payments to main contractor,,,,,,No
The Royal Borough of Kensington and Chelsea,RBKC,,Statutory Year End Accounting,Statutory Year End Accounting,,London Fire Solutions LLP ,1231392,,,,10/08/2020,2200113481,"1,925.00",,Payments to main contractor,,,,,,No
The Royal Borough of Kensington and Chelsea,RBKC,,Statutory Year End Accounting,Statutory Year End Accounting,,London Fire Solutions LLP ,1231392,,,,10/08/2020,2200113485,"4,470.40",,Payments to main contractor,,,,,,No
The Royal Borough of Kensington and Chelsea,RBKC,,Statutory Year End Accounting,Statutory Year End Accounting,,London Fire Solutions LLP ,1231392,,,,23/09/2020,2200121395,"16,279.00",,Payments to main contractor,,,,,,No
The Royal Borough of Kensington and Chelsea,RBKC,,Statutory Year End Accounting,Statutory Year End Accounting,,London Fire Solutions LLP ,1231392,,,,23/09/2020,2200121396,"11,664.00",,Payments to main contractor,,,,,,No
The Royal Borough of Kensington and Chelsea,RBKC,,Statutory Year End Accounting,Statutory Year End Accounting,,MDA Consulting Limited ,1234989,,,,02/07/2020,2200106757,528.00,,Other Consultants,,,,,,No
The Royal Borough of Kensington and Chelsea,RBKC,,Statutory Year End Accounting,Statutory Year End Accounting,,MDA Consulting Limited ,1234989,,,,06/07/2020,2200107393,792.00,,Professional Fees : Non Legal,,,,,,No
The Royal Borough of Kensington and Chelsea,RBKC,,Statutory Year End Accounting,Statutory Year End Accounting,,MDA Consulting Limited ,1234989,,,,24/07/2020,2200110723,660.00,,Other Consultants,,,,,,No
The Royal Borough of Kensington and Chelsea,RBKC,,Statutory Year End Accounting,Statutory Year End Accounting,,MDA Consulting Limited ,1234989,,,,07/08/2020,2200113165,880.00,,Other Consultants,,,,,,No
The Royal Borough of Kensington and Chelsea,RBKC,,Statutory Year End Accounting,Statutory Year End Accounting,,MDA Consulting Limited ,1234989,,,,27/08/2020,2200116634,880.00,,Other Consultants,,,,,,No
The Royal Borough of Kensington and Chelsea,RBKC,,Statutory Year End Accounting,Statutory Year End Accounting,,MDA Consulting Limited ,1234989,,,,14/09/2020,2200119542,660.00,,Professional Fees : Non Legal,,,,,,No
The Royal Borough of Kensington and Chelsea,RBKC,,Statutory Year End Accounting,Statutory Year End Accounting,,MEC London Ltd ,1231398,,,,17/07/2020,2200109858,740.00,,Construction : enhancements,,,,,,No
The Royal Borough of Kensington and Chelsea,RBKC,,Statutory Year End Accounting,Statutory Year End Accounting,,MMM Architects Ltd,1259041,,,,06/07/2020,2200107397,"1,500.00",,Payments to main contractor,,,,,,No
The Royal Borough of Kensington and Chelsea,RBKC,,Statutory Year End Accounting,Statutory Year End Accounting,,MMM Architects Ltd,1259041,,,,12/08/2020,2200113822,"1,500.00",,Payments to main contractor,,,,,,No
The Royal Borough of Kensington and Chelsea,RBKC,,Statutory Year End Accounting,Statutory Year End Accounting,,MMM Architects Ltd,1259041,,,,07/09/2020,2200118022,"1,500.00",,Payments to main contractor,,,,,,No
The Royal Borough of Kensington and Chelsea,RBKC,,Statutory Year End Accounting,Statutory Year End Accounting,,Maccreanor Lavington Ltd,1262735,,,,06/07/2020,2200107427,"27,390.63",,Other Consultants,,,,,,No
The Royal Borough of Kensington and Chelsea,RBKC,,Statutory Year End Accounting,Statutory Year End Accounting,,Maccreanor Lavington Ltd,1262735,,,,11/08/2020,2200113714,"3,353.15",,Site Works,,,,,,No
The Royal Borough of Kensington and Chelsea,RBKC,,Statutory Year End Accounting,Statutory Year End Accounting,,Mace Limited ,1230643,,,,09/07/2020,2200108079,"1,350,256.39",,Construction : enhancements,,,,,,No
The Royal Borough of Kensington and Chelsea,RBKC,,Statutory Year End Accounting,Statutory Year End Accounting,,Mace Limited ,1230643,,,,12/08/2020,2200113828,"1,256,802.86",,Construction : enhancements,,,,,,No
The Royal Borough of Kensington and Chelsea,RBKC,,Statutory Year End Accounting,Statutory Year End Accounting,,Mace Limited ,1230643,,,,09/09/2020,2200118655,"1,458,129.96",,Construction : enhancements,,,,,,No
The Royal Borough of Kensington and Chelsea,RBKC,,Statutory Year End Accounting,Statutory Year End Accounting,,Master Locking Systems Ltd,1262396,,,,12/08/2020,2200113888,"4,473.78",,Creditors Control : AP GRIR,,,,,,No
The Royal Borough of Kensington and Chelsea,RBKC,,Statutory Year End Accounting,Statutory Year End Accounting,,Michael Page International Recruitment Ltd,1235002,,,,08/07/2020,2200107941,625.44,,Payments to main contractor,,,,,,No
The Royal Borough of Kensington and Chelsea,RBKC,,Statutory Year End Accounting,Statutory Year End Accounting,,Michael Page International Recruitment Ltd,1235002,,,,20/07/2020,2200110117,938.16,,Payments to main contractor,,,,,,No
The Royal Borough of Kensington and Chelsea,RBKC,,Statutory Year End Accounting,Statutory Year End Accounting,,Michael Page International Recruitment Ltd,1235002,,,,29/07/2020,2200111448,781.80,,Payments to main contractor,,,,,,No
The Royal Borough of Kensington and Chelsea,RBKC,,Statutory Year End Accounting,Statutory Year End Accounting,,Michael Page International Recruitment Ltd,1235002,,,,04/08/2020,2200112344,938.16,,Payments to main contractor,,,,,,No
The Royal Borough of Kensington and Chelsea,RBKC,,Statutory Year End Accounting,Statutory Year End Accounting,,Michael Page International Recruitment Ltd,1235002,,,,17/08/2020,2200114832,729.68,,Payments to main contractor,,,,,,No
The Royal Borough of Kensington and Chelsea,RBKC,,Statutory Year End Accounting,Statutory Year End Accounting,,Michael Page International Recruitment Ltd,1235002,,,,19/08/2020,2200115205,938.16,,Payments to main contractor,,,,,,No
The Royal Borough of Kensington and Chelsea,RBKC,,Statutory Year End Accounting,Statutory Year End Accounting,,Michael Page International Recruitment Ltd,1235002,,,,04/09/2020,2200117743,912.10,,Payments to main contractor,,,,,,No
The Royal Borough of Kensington and Chelsea,RBKC,,Statutory Year End Accounting,Statutory Year End Accounting,,Michael Page International Recruitment Ltd,1235002,,,,09/09/2020,2200118585,521.20,,Payments to main contractor,,,,,,No
The Royal Borough of Kensington and Chelsea,RBKC,,Statutory Year End Accounting,Statutory Year End Accounting,,Michael Page International Recruitment Ltd,1235002,,,,15/09/2020,2200119836,547.26,,Payments to main contractor,,,,,,No
The Royal Borough of Kensington and Chelsea,RBKC,,Statutory Year End Accounting,Statutory Year End Accounting,,Michael Page International Recruitment Ltd,1235002,,,,22/09/2020,2200121152,729.68,,Payments to main contractor,,,,,,No
The Royal Borough of Kensington and Chelsea,RBKC,,Statutory Year End Accounting,Statutory Year End Accounting,,Millwood Servicing Ltd ,1253373,,,,24/09/2020,2200121672,"52,121.75",,Payments to main contractor,,,,,,No
The Royal Borough of Kensington and Chelsea,RBKC,,Statutory Year End Accounting,Statutory Year End Accounting,,Montagu Evans LLP ,1230713,,,,06/07/2020,2200107442,"1,386.83",,Other Consultants,,,,,,No
The Royal Borough of Kensington and Chelsea,RBKC,,Statutory Year End Accounting,Statutory Year End Accounting,,Morgan Sindall Construction,1260362,,,,27/07/2020,2200110847,"128,610.94",,Other Consultants,,,,,,No
The Royal Borough of Kensington and Chelsea,RBKC,,Statutory Year End Accounting,Statutory Year End Accounting,,Morgan Sindall Construction,1260362,,,,31/07/2020,2200111750,"108,291.39",,Site Works,,,,,,No
The Royal Borough of Kensington and Chelsea,RBKC,,Statutory Year End Accounting,Statutory Year End Accounting,,Mulalley & Company Ltd ,1231403,,,,20/07/2020,2200109985,"138,887.99",,Payments to main contractor,,,,,,No
The Royal Borough of Kensington and Chelsea,RBKC,,Statutory Year End Accounting,Statutory Year End Accounting,,Mulalley & Company Ltd ,1231403,,,,06/08/2020,2200112867,"25,276.72",,Payments to main contractor,,,,,,No
The Royal Borough of Kensington and Chelsea,RBKC,,Statutory Year End Accounting,Statutory Year End Accounting,,Munns Ltd,1231404,,,,16/07/2020,2200109446,"14,359.00",,Construction : enhancements,,,,,,No
The Royal Borough of Kensington and Chelsea,RBKC,,Statutory Year End Accounting,Statutory Year End Accounting,,Murrill Construction Ltd ,1231405,,,,07/07/2020,2200107581,541.00,,Construction : enhancements,,,,,,No
The Royal Borough of Kensington and Chelsea,RBKC,,Statutory Year End Accounting,Statutory Year End Accounting,,NPS Property Consultants Ltd ,1235087,,,,01/07/2020,2200106247,"2,000.00",,Site Works,,,,,,No
The Royal Borough of Kensington and Chelsea,RBKC,,Statutory Year End Accounting,Statutory Year End Accounting,,NPS Property Consultants Ltd ,1235087,,,,01/07/2020,2200106250,"7,873.50",,Site Works,,,,,,No
The Royal Borough of Kensington and Chelsea,RBKC,,Statutory Year End Accounting,Statutory Year End Accounting,,NPS Property Consultants Ltd ,1235087,,,,12/08/2020,2200113823,"2,500.00",,Site Works,,,,,,No
The Royal Borough of Kensington and Chelsea,RBKC,,Statutory Year End Accounting,Statutory Year End Accounting,,NPS Property Consultants Ltd ,1235087,,,,12/08/2020,2200113824,"4,575.00",,Site Works,,,,,,No
The Royal Borough of Kensington and Chelsea,RBKC,,Statutory Year End Accounting,Statutory Year End Accounting,,NPS Property Consultants Ltd ,1235087,,,,07/09/2020,2200118031,"2,500.00",,Site Works,,,,,,No
The Royal Borough of Kensington and Chelsea,RBKC,,Statutory Year End Accounting,Statutory Year End Accounting,,NPS Property Consultants Ltd ,1235087,,,,10/09/2020,2200118844,"3,525.00",,Site Works,,,,,,No
The Royal Borough of Kensington and Chelsea,RBKC,,Statutory Year End Accounting,Statutory Year End Accounting,,Nathaniel Lichfields and Partners,1265397,,,,27/08/2020,2200116501,"3,480.00",,Professional Fees : Non Legal,,,,,,No
The Royal Borough of Kensington and Chelsea,RBKC,,Statutory Year End Accounting,Statutory Year End Accounting,,Nathaniel Lichfields and Partners,1265397,,,,27/08/2020,2200116502,"1,080.94",,Professional Fees : Non Legal,,,,,,No
The Royal Borough of Kensington and Chelsea,RBKC,,Statutory Year End Accounting,Statutory Year End Accounting,,Nathaniel Lichfields and Partners,1265397,,,,27/08/2020,2200116640,"1,737.50",,Professional Fees : Non Legal,,,,,,No
The Royal Borough of Kensington and Chelsea,RBKC,,Statutory Year End Accounting,Statutory Year End Accounting,,Network Armada Ltd ,1230762,,,,09/07/2020,2200108119,"10,000.00",,Creditors Control : AP GRIR,,,,,,No
The Royal Borough of Kensington and Chelsea,RBKC,,Statutory Year End Accounting,Statutory Year End Accounting,,Network Rail Infrastructure Ltd ,1231408,,,,02/09/2020,2200117211,"1,444.97",,Payments to main contractor,,,,,,No
The Royal Borough of Kensington and Chelsea,RBKC,,Statutory Year End Accounting,Statutory Year End Accounting,,Nifes Property Limited,1257683,,,,11/08/2020,2200113751,"10,000.00",,Construction : enhancements,,,,,,No
The Royal Borough of Kensington and Chelsea,RBKC,,Statutory Year End Accounting,Statutory Year End Accounting,,Norman Rourke Pryme Limited ,1230778,,,,18/09/2020,2200120528,"3,215.00",,Payments to main contractor,,,,,,No
The Royal Borough of Kensington and Chelsea,RBKC,,Statutory Year End Accounting,Statutory Year End Accounting,,Norman Rourke Pryme Limited ,1230778,,,,18/09/2020,2200120529,"2,345.00",,Payments to main contractor,,,,,,No
The Royal Borough of Kensington and Chelsea,RBKC,,Statutory Year End Accounting,Statutory Year End Accounting,,Notting Hill Genesis ,1235076,,,,11/09/2020,2200119026,700.00,,Construction : enhancements,,,,,,No
The Royal Borough of Kensington and Chelsea,RBKC,,Statutory Year End Accounting,Statutory Year End Accounting,,Notting Hill Genesis ,1235076,,,,28/09/2020,2200122243,700.00,,Construction : enhancements,,,,,,No
The Royal Borough of Kensington and Chelsea,RBKC,,Statutory Year End Accounting,Statutory Year End Accounting,,Nsl Limited ,1235090,,,,07/09/2020,2200118121,"4,310.67",,Other capital equipment,,,,,,No
The Royal Borough of Kensington and Chelsea,RBKC,,Statutory Year End Accounting,Statutory Year End Accounting,,OMEGA RED GROUP LTD,1265141,,,,19/08/2020,2200115283,"27,857.05",,Payments to main contractor,,,,,,No
The Royal Borough of Kensington and Chelsea,RBKC,,Statutory Year End Accounting,Statutory Year End Accounting,,Oakland Building Services Ltd ,1231410,,,,02/07/2020,2200106755,"10,660.00",,Site Works,,,,,,No
The Royal Borough of Kensington and Chelsea,RBKC,,Statutory Year End Accounting,Statutory Year End Accounting,,Onsite Central Ltd,1269811,,,,17/08/2020,2200114776,"1,600.00",,Payments to main contractor,,,,,,No
The Royal Borough of Kensington and Chelsea,RBKC,,Statutory Year End Accounting,Statutory Year End Accounting,,Openview Security Solutions Ltd ,1231414,,,,29/07/2020,2200111294,"35,735.71",,Creditors Control : AP GRIR,,,,,,No
The Royal Borough of Kensington and Chelsea,RBKC,,Statutory Year End Accounting,Statutory Year End Accounting,,Openview Security Solutions Ltd ,1231414,,,,04/08/2020,2200112468,"20,562.27",,Payments to main contractor,,,,,,No
The Royal Borough of Kensington and Chelsea,RBKC,,Statutory Year End Accounting,Statutory Year End Accounting,,Openview Security Solutions Ltd ,1231414,,,,16/09/2020,2200120041,"5,749.00",,Payments to main contractor,,,,,,No
The Royal Borough of Kensington and Chelsea,RBKC,,Statutory Year End Accounting,Statutory Year End Accounting,,Openview Security Solutions Ltd ,1231414,,,,28/09/2020,2200122349,"21,217.85",,Payments to main contractor,,,,,,No
The Royal Borough of Kensington and Chelsea,RBKC,,Statutory Year End Accounting,Statutory Year End Accounting,,Osborn Associates Ltd,1262963,,,,07/07/2020,2200107813,"9,000.00",,Other Consultants,,,,,,No
The Royal Borough of Kensington and Chelsea,RBKC,,Statutory Year End Accounting,Statutory Year End Accounting,,Osborn Associates Ltd,1262963,,,,10/07/2020,2200108424,"3,500.00",,Other Consultants,,,,,,No
The Royal Borough of Kensington and Chelsea,RBKC,,Statutory Year End Accounting,Statutory Year End Accounting,,Osborn Associates Ltd,1262963,,,,29/07/2020,2200111295,"21,000.00",,Construction : enhancements,,,,,,No
The Royal Borough of Kensington and Chelsea,RBKC,,Statutory Year End Accounting,Statutory Year End Accounting,,Osborn Associates Ltd,1262963,,,,06/08/2020,2200112920,"3,250.00",,Site Works,,,,,,No
The Royal Borough of Kensington and Chelsea,RBKC,,Statutory Year End Accounting,Statutory Year End Accounting,,Osborn Associates Ltd,1262963,,,,06/08/2020,2200112924,"3,250.00",,Site Works,,,,,,No
The Royal Borough of Kensington and Chelsea,RBKC,,Statutory Year End Accounting,Statutory Year End Accounting,,Osborn Associates Ltd,1262963,,,,06/08/2020,2200112927,"3,250.00",,Site Works,,,,,,No
The Royal Borough of Kensington and Chelsea,RBKC,,Statutory Year End Accounting,Statutory Year End Accounting,,Osborn Associates Ltd,1262963,,,,06/08/2020,2200112930,"3,250.00",,Site Works,,,,,,No
The Royal Borough of Kensington and Chelsea,RBKC,,Statutory Year End Accounting,Statutory Year End Accounting,,Osborn Associates Ltd,1262963,,,,10/09/2020,2200118846,"3,500.00",,Payments to main contractor,,,,,,No
The Royal Borough of Kensington and Chelsea,RBKC,,Statutory Year End Accounting,Statutory Year End Accounting,,Osborn Associates Ltd,1262963,,,,10/09/2020,2200118847,"10,500.00",,Construction : enhancements,,,,,,No
The Royal Borough of Kensington and Chelsea,RBKC,,Statutory Year End Accounting,Statutory Year End Accounting,,Osborn Associates Ltd,1262963,,,,30/09/2020,2200122930,"3,250.00",,Site Works,,,,,,No
The Royal Borough of Kensington and Chelsea,RBKC,,Statutory Year End Accounting,Statutory Year End Accounting,,Osborne Thomas Ltd,1261917,,,,21/08/2020,2200115738,"9,900.00",,Other Consultants,,,,,,No
The Royal Borough of Kensington and Chelsea,RBKC,,Statutory Year End Accounting,Statutory Year End Accounting,,Osborne Thomas Ltd,1261917,,,,16/09/2020,2200120046,"16,665.00",,Other Consultants,,,,,,No
The Royal Borough of Kensington and Chelsea,RBKC,,Statutory Year End Accounting,Statutory Year End Accounting,,Oxford Gardens Primary School ,1232822,,,,30/07/2020,2200111650,"500,000.00",,Other Consultants,,,,,,No
The Royal Borough of Kensington and Chelsea,RBKC,,Statutory Year End Accounting,Statutory Year End Accounting,,PAYE Stonework & Restoration Ltd,1257732,,,,11/08/2020,2200113752,"1,464.00",,Construction : enhancements,,,,,,No
The Royal Borough of Kensington and Chelsea,RBKC,,Statutory Year End Accounting,Statutory Year End Accounting,,PAYE Stonework & Restoration Ltd,1257732,,,,03/09/2020,2200117447,600.00,,Site Works,,,,,,No
The Royal Borough of Kensington and Chelsea,RBKC,,Statutory Year End Accounting,Statutory Year End Accounting,,POD Point Ltd,1235177,,,,17/09/2020,2200120264,"2,538.78",,Special Maintenance,,,,,,No
The Royal Borough of Kensington and Chelsea,RBKC,,Statutory Year End Accounting,Statutory Year End Accounting,,Pders Key Lifts ,1231418,,,,06/07/2020,2200107400,"1,840.14",,Payments to main contractor,,,,,,No
The Royal Borough of Kensington and Chelsea,RBKC,,Statutory Year End Accounting,Statutory Year End Accounting,,Pders Key Lifts ,1231418,,,,06/07/2020,2200107402,990.14,,Payments to main contractor,,,,,,No
The Royal Borough of Kensington and Chelsea,RBKC,,Statutory Year End Accounting,Statutory Year End Accounting,,Peabody Trust ,1253387,,,,17/09/2020,2200120287,"2,570.00",,Payments to main contractor,,,,,,No
The Royal Borough of Kensington and Chelsea,RBKC,,Statutory Year End Accounting,Statutory Year End Accounting,,Peabody Trust ,1253387,,,,17/09/2020,2200120288,"2,832.50",,Payments to main contractor,,,,,,No
The Royal Borough of Kensington and Chelsea,RBKC,,Statutory Year End Accounting,Statutory Year End Accounting,,Pelliings LLP,1269041,,,,30/07/2020,2200111586,"6,485.00",,Professional Fees : Non Legal,,,,,,No
The Royal Borough of Kensington and Chelsea,RBKC,,Statutory Year End Accounting,Statutory Year End Accounting,,Pelliings LLP,1269041,,,,21/09/2020,2200120914,"2,966.40",,Professional Fees : Non Legal,,,,,,No
The Royal Borough of Kensington and Chelsea,RBKC,,Statutory Year End Accounting,Statutory Year End Accounting,,Perega Limited,1264035,,,,28/09/2020,2200122249,"1,275.00",,Creditors Control : AP GRIR,,,,,,No
The Royal Borough of Kensington and Chelsea,RBKC,,Statutory Year End Accounting,Statutory Year End Accounting,,Perfect Circle JV Ltd ,1254748,,,,29/07/2020,2200111312,"74,630.00",,Professional Fees : Non Legal,,,,,,No
The Royal Borough of Kensington and Chelsea,RBKC,,Statutory Year End Accounting,Statutory Year End Accounting,,Perfect Circle JV Ltd ,1254748,,,,29/07/2020,2200111382,"10,000.00",,Professional Fees : Non Legal,,,,,,No
The Royal Borough of Kensington and Chelsea,RBKC,,Statutory Year End Accounting,Statutory Year End Accounting,,Perfect Circle JV Ltd ,1254748,,,,29/07/2020,2200111383,"15,000.00",,Professional Fees : Non Legal,,,,,,No
The Royal Borough of Kensington and Chelsea,RBKC,,Statutory Year End Accounting,Statutory Year End Accounting,,Perfect Circle JV Ltd ,1254748,,,,29/07/2020,2200111384,"2,000.00",,Professional Fees : Non Legal,,,,,,No
The Royal Borough of Kensington and Chelsea,RBKC,,Statutory Year End Accounting,Statutory Year End Accounting,,Perfect Circle JV Ltd ,1254748,,,,13/08/2020,2200114137,"74,630.00",,Professional Fees : Non Legal,,,,,,No
The Royal Borough of Kensington and Chelsea,RBKC,,Statutory Year End Accounting,Statutory Year End Accounting,,Perfect Circle JV Ltd ,1254748,,,,21/08/2020,2200115775,"73,874.07",,Professional Fees : Non Legal,,,,,,No
The Royal Borough of Kensington and Chelsea,RBKC,,Statutory Year End Accounting,Statutory Year End Accounting,,Perfect Circle JV Ltd ,1254748,,,,21/08/2020,2200115776,"10,008.82",,Professional Fees : Non Legal,,,,,,No
The Royal Borough of Kensington and Chelsea,RBKC,,Statutory Year End Accounting,Statutory Year End Accounting,,Perfect Circle JV Ltd ,1254748,,,,21/08/2020,2200115777,"52,050.00",,Professional Fees : Non Legal,,,,,,No
The Royal Borough of Kensington and Chelsea,RBKC,,Statutory Year End Accounting,Statutory Year End Accounting,,Perfect Circle JV Ltd ,1254748,,,,22/09/2020,2200121194,"200,977.40",,Professional Fees : Non Legal,,,,,,No
The Royal Borough of Kensington and Chelsea,RBKC,,Statutory Year End Accounting,Statutory Year End Accounting,,Perfect Circle JV Ltd ,1254748,,,,22/09/2020,2200121201,"43,346.47",,Professional Fees : Non Legal,,,,,,No
The Royal Borough of Kensington and Chelsea,RBKC,,Statutory Year End Accounting,Statutory Year End Accounting,,Perfect Circle JV Ltd ,1254748,,,,22/09/2020,2200121250,"140,733.50",,Professional Fees : Non Legal,,,,,,No
The Royal Borough of Kensington and Chelsea,RBKC,,Statutory Year End Accounting,Statutory Year End Accounting,,Perkins & Will UK Limited,1265496,,,,31/07/2020,2200111911,"4,576.00",,Payments to main contractor,,,,,,No
The Royal Borough of Kensington and Chelsea,RBKC,,Statutory Year End Accounting,Statutory Year End Accounting,,Perkins & Will UK Limited,1265496,,,,31/07/2020,2200111912,"10,578.00",,Payments to main contractor,,,,,,No
The Royal Borough of Kensington and Chelsea,RBKC,,Statutory Year End Accounting,Statutory Year End Accounting,,Perkins & Will UK Limited,1265496,,,,31/07/2020,2200111913,"7,500.00",,Payments to main contractor,,,,,,No
The Royal Borough of Kensington and Chelsea,RBKC,,Statutory Year End Accounting,Statutory Year End Accounting,,Perkins & Will UK Limited,1265496,,,,31/07/2020,2200111915,"10,957.00",,Payments to main contractor,,,,,,No
The Royal Borough of Kensington and Chelsea,RBKC,,Statutory Year End Accounting,Statutory Year End Accounting,,Perkins & Will UK Limited,1265496,,,,04/08/2020,2200112477,"11,969.50",,Payments to main contractor,,,,,,No
The Royal Borough of Kensington and Chelsea,RBKC,,Statutory Year End Accounting,Statutory Year End Accounting,,Perkins & Will UK Limited,1265496,,,,04/08/2020,2200112478,"6,808.00",,Payments to main contractor,,,,,,No
The Royal Borough of Kensington and Chelsea,RBKC,,Statutory Year End Accounting,Statutory Year End Accounting,,Perkins & Will UK Limited,1265496,,,,04/08/2020,2200112479,"11,657.00",,Payments to main contractor,,,,,,No
The Royal Borough of Kensington and Chelsea,RBKC,,Statutory Year End Accounting,Statutory Year End Accounting,,Pinsent Masons LLP ,1235160,,,,07/07/2020,2200107682,"23,250.00",,Legal Fees & expenses,,,,,,No
The Royal Borough of Kensington and Chelsea,RBKC,,Statutory Year End Accounting,Statutory Year End Accounting,,Pioneer Site Services Lim,1266411,,,,06/07/2020,2200107375,"8,411.00",,Payments to main contractor,,,,,,No
The Royal Borough of Kensington and Chelsea,RBKC,,Statutory Year End Accounting,Statutory Year End Accounting,,Point 2 Surveyors,1235179,,,,17/09/2020,2200120333,"4,569.00",,Site Works,,,,,,No
The Royal Borough of Kensington and Chelsea,RBKC,,Statutory Year End Accounting,Statutory Year End Accounting,,Point 2 Surveyors,1235179,,,,17/09/2020,2200120334,"1,950.00",,Site Works,,,,,,No
The Royal Borough of Kensington and Chelsea,RBKC,,Statutory Year End Accounting,Statutory Year End Accounting,,Preferred Access Ramp Sys,1231420,,,,29/09/2020,2200122607,"1,172.00",,Payments to main contractor,,,,,,No
The Royal Borough of Kensington and Chelsea,RBKC,,Statutory Year End Accounting,Statutory Year End Accounting,,Prestige Domestic Property Maintena,1271469,,,,24/09/2020,2200121598,"6,610.00",,Special Maintenance,,,,,,No
The Royal Borough of Kensington and Chelsea,RBKC,,Statutory Year End Accounting,Statutory Year End Accounting,,Prestige Domestic Property Maintena,1271469,,,,24/09/2020,2200121599,"6,610.00",,Special Maintenance,,,,,,No
The Royal Borough of Kensington and Chelsea,RBKC,,Statutory Year End Accounting,Statutory Year End Accounting,,Prestige Domestic Property Maintena,1271469,,,,24/09/2020,2200121600,"3,780.00",,Special Maintenance,,,,,,No
The Royal Borough of Kensington and Chelsea,RBKC,,Statutory Year End Accounting,Statutory Year End Accounting,,Prestige Domestic Property Maintena,1271469,,,,24/09/2020,2200121602,"3,780.00",,Special Maintenance,,,,,,No
The Royal Borough of Kensington and Chelsea,RBKC,,Statutory Year End Accounting,Statutory Year End Accounting,,Prestige Domestic Property Maintena,1271469,,,,24/09/2020,2200121603,"3,780.00",,Special Maintenance,,,,,,No
The Royal Borough of Kensington and Chelsea,RBKC,,Statutory Year End Accounting,Statutory Year End Accounting,,Project Centre ,1235205,,,,06/07/2020,2200107360,"1,100.00",,Other Consultants,,,,,,No
The Royal Borough of Kensington and Chelsea,RBKC,,Statutory Year End Accounting,Statutory Year End Accounting,,Project Centre ,1235205,,,,06/07/2020,2200107362,"4,043.60",,Other Consultants,,,,,,No
The Royal Borough of Kensington and Chelsea,RBKC,,Statutory Year End Accounting,Statutory Year End Accounting,,Project Centre ,1235205,,,,07/07/2020,2200107641,701.00,,Engineering Consultancy Fees,,,,,,No
The Royal Borough of Kensington and Chelsea,RBKC,,Statutory Year End Accounting,Statutory Year End Accounting,,Project Centre ,1235205,,,,30/07/2020,2200111637,"13,800.00",,Design Consultant,,,,,,No
The Royal Borough of Kensington and Chelsea,RBKC,,Statutory Year End Accounting,Statutory Year End Accounting,,Project Centre ,1235205,,,,30/07/2020,2200111642,"18,800.00",,Design Consultant,,,,,,No
The Royal Borough of Kensington and Chelsea,RBKC,,Statutory Year End Accounting,Statutory Year End Accounting,,Project Centre ,1235205,,,,30/07/2020,2200111686,945.00,,Other Consultants,,,,,,No
The Royal Borough of Kensington and Chelsea,RBKC,,Statutory Year End Accounting,Statutory Year End Accounting,,Project Centre ,1235205,,,,30/07/2020,2200111687,"4,400.00",,Other Consultants,,,,,,No
The Royal Borough of Kensington and Chelsea,RBKC,,Statutory Year End Accounting,Statutory Year End Accounting,,Project Centre ,1235205,,,,03/09/2020,2200117490,"4,112.50",,Engineering Consultancy Fees,,,,,,No
The Royal Borough of Kensington and Chelsea,RBKC,,Statutory Year End Accounting,Statutory Year End Accounting,,Project Centre ,1235205,,,,29/09/2020,2200122661,"4,751.98",,Engineering Consultancy Fees,,,,,,No
The Royal Borough of Kensington and Chelsea,RBKC,,Statutory Year End Accounting,Statutory Year End Accounting,,Proun Architects ,1235211,,,,06/07/2020,2200107290,"17,650.00",,Other Consultants,,,,,,No
The Royal Borough of Kensington and Chelsea,RBKC,,Statutory Year End Accounting,Statutory Year End Accounting,,Prp Architects Llp ,1235213,,,,10/07/2020,2200108405,"2,150.00",,Construction : enhancements,,,,,,No
The Royal Borough of Kensington and Chelsea,RBKC,,Statutory Year End Accounting,Statutory Year End Accounting,,Prp Architects Llp ,1235213,,,,10/07/2020,2200108422,"9,298.76",,Construction : enhancements,,,,,,No
The Royal Borough of Kensington and Chelsea,RBKC,,Statutory Year End Accounting,Statutory Year End Accounting,,Prp Architects Llp ,1235213,,,,10/07/2020,2200108423,"42,482.00",,Construction : enhancements,,,,,,No
The Royal Borough of Kensington and Chelsea,RBKC,,Statutory Year End Accounting,Statutory Year End Accounting,,Prp Architects Llp ,1235213,,,,07/08/2020,2200113205,"1,120.00",,Construction : enhancements,,,,,,No
The Royal Borough of Kensington and Chelsea,RBKC,,Statutory Year End Accounting,Statutory Year End Accounting,,Prp Architects Llp ,1235213,,,,10/08/2020,2200113426,"6,492.57",,Construction : enhancements,,,,,,No
The Royal Borough of Kensington and Chelsea,RBKC,,Statutory Year End Accounting,Statutory Year End Accounting,,Prp Architects Llp ,1235213,,,,10/08/2020,2200113427,"1,333.00",,Construction : enhancements,,,,,,No
The Royal Borough of Kensington and Chelsea,RBKC,,Statutory Year End Accounting,Statutory Year End Accounting,,Prp Architects Llp ,1235213,,,,10/08/2020,2200113429,"26,825.93",,Construction : enhancements,,,,,,No
The Royal Borough of Kensington and Chelsea,RBKC,,Statutory Year End Accounting,Statutory Year End Accounting,,Prp Architects Llp ,1235213,,,,10/08/2020,2200113431,"4,912.75",,Construction : enhancements,,,,,,No
The Royal Borough of Kensington and Chelsea,RBKC,,Statutory Year End Accounting,Statutory Year End Accounting,,Prp Architects Llp ,1235213,,,,01/09/2020,2200117013,806.25,,Construction : enhancements,,,,,,No
The Royal Borough of Kensington and Chelsea,RBKC,,Statutory Year End Accounting,Statutory Year End Accounting,,Prp Architects Llp ,1235213,,,,01/09/2020,2200117014,"2,709.00",,Construction : enhancements,,,,,,No
The Royal Borough of Kensington and Chelsea,RBKC,,Statutory Year End Accounting,Statutory Year End Accounting,,Prp Architects Llp ,1235213,,,,01/09/2020,2200117015,"6,342.50",,Construction : enhancements,,,,,,No
The Royal Borough of Kensington and Chelsea,RBKC,,Statutory Year End Accounting,Statutory Year End Accounting,,Prp Architects Llp ,1235213,,,,01/09/2020,2200117018,"1,533.57",,Construction : enhancements,,,,,,No
The Royal Borough of Kensington and Chelsea,RBKC,,Statutory Year End Accounting,Statutory Year End Accounting,,Prp Architects Llp ,1235213,,,,01/09/2020,2200117019,"48,461.00",,Construction : enhancements,,,,,,No
The Royal Borough of Kensington and Chelsea,RBKC,,Statutory Year End Accounting,Statutory Year End Accounting,,Prp Architects Llp ,1235213,,,,10/09/2020,2200118854,"2,193.00",,Construction : enhancements,,,,,,No
The Royal Borough of Kensington and Chelsea,RBKC,,Statutory Year End Accounting,Statutory Year End Accounting,,Pudsey Diamond Engineerin,1231076,,,,24/09/2020,2200121709,"3,197.94",,Construction : enhancements,,,,,,No
The Royal Borough of Kensington and Chelsea,RBKC,,Statutory Year End Accounting,Statutory Year End Accounting,,Quadron Services Ltd T/A Idverde ,1231423,,,,11/08/2020,2200113629,"1,888.98",,Payments to main contractor,,,,,,No
The Royal Borough of Kensington and Chelsea,RBKC,,Statutory Year End Accounting,Statutory Year End Accounting,,Quinn London Ltd,1235230,,,,10/07/2020,2200108426,"123,363.07",,Other Consultants,,,,,,No
The Royal Borough of Kensington and Chelsea,RBKC,,Statutory Year End Accounting,Statutory Year End Accounting,,Quinn London Ltd,1235230,,,,07/08/2020,2200113127,"121,665.99",,Other Consultants,,,,,,No
The Royal Borough of Kensington and Chelsea,RBKC,,Statutory Year End Accounting,Statutory Year End Accounting,,Quinn London Ltd,1235230,,,,21/09/2020,2200120949,"122,219.53",,Other Consultants,,,,,,No
The Royal Borough of Kensington and Chelsea,RBKC,,Statutory Year End Accounting,Statutory Year End Accounting,,R J Lift Services Ltd ,1257154,,,,20/07/2020,2200110121,"17,609.50",,Construction : enhancements,,,,,,No
The Royal Borough of Kensington and Chelsea,RBKC,,Statutory Year End Accounting,Statutory Year End Accounting,,R J Lift Services Ltd ,1257154,,,,28/07/2020,2200111208,"4,480.50",,Construction : enhancements,,,,,,No
The Royal Borough of Kensington and Chelsea,RBKC,,Statutory Year End Accounting,Statutory Year End Accounting,,R J Lift Services Ltd ,1257154,,,,28/07/2020,2200111209,"13,997.50",,Construction : enhancements,,,,,,No
The Royal Borough of Kensington and Chelsea,RBKC,,Statutory Year End Accounting,Statutory Year End Accounting,,R J Lift Services Ltd ,1257154,,,,28/07/2020,2200111210,"14,382.50",,Construction : enhancements,,,,,,No
The Royal Borough of Kensington and Chelsea,RBKC,,Statutory Year End Accounting,Statutory Year End Accounting,,Ram Building Consultancy Ltd,1270409,,,,19/08/2020,2200115196,"4,937.00",,Other Consultants,,,,,,No
The Royal Borough of Kensington and Chelsea,RBKC,,Statutory Year End Accounting,Statutory Year End Accounting,,RNB ENGINEERING,1256083,,,,05/08/2020,2200112606,"1,595.00",,Payments to main contractor,,,,,,No
The Royal Borough of Kensington and Chelsea,RBKC,,Statutory Year End Accounting,Statutory Year End Accounting,,RNB ENGINEERING,1256083,,,,05/08/2020,2200112608,695.00,,Payments to main contractor,,,,,,No
The Royal Borough of Kensington and Chelsea,RBKC,,Statutory Year End Accounting,Statutory Year End Accounting,,RNB ENGINEERING,1256083,,,,05/08/2020,2200112609,"5,765.00",,Payments to main contractor,,,,,,No
The Royal Borough of Kensington and Chelsea,RBKC,,Statutory Year End Accounting,Statutory Year End Accounting,,RNB ENGINEERING,1256083,,,,05/08/2020,2200112610,"2,290.00",,Payments to main contractor,,,,,,No
The Royal Borough of Kensington and Chelsea,RBKC,,Statutory Year End Accounting,Statutory Year End Accounting,,RNB ENGINEERING,1256083,,,,05/08/2020,2200112613,"1,595.00",,Payments to main contractor,,,,,,No
The Royal Borough of Kensington and Chelsea,RBKC,,Statutory Year End Accounting,Statutory Year End Accounting,,RNB ENGINEERING,1256083,,,,05/08/2020,2200112614,"1,595.00",,Payments to main contractor,,,,,,No
The Royal Borough of Kensington and Chelsea,RBKC,,Statutory Year End Accounting,Statutory Year End Accounting,,RNB ENGINEERING,1256083,,,,05/08/2020,2200112615,695.00,,Payments to main contractor,,,,,,No
The Royal Borough of Kensington and Chelsea,RBKC,,Statutory Year End Accounting,Statutory Year End Accounting,,RNB ENGINEERING,1256083,,,,05/08/2020,2200112616,"1,920.00",,Payments to main contractor,,,,,,No
The Royal Borough of Kensington and Chelsea,RBKC,,Statutory Year End Accounting,Statutory Year End Accounting,,RNB ENGINEERING,1256083,,,,05/08/2020,2200112618,"1,595.00",,Payments to main contractor,,,,,,No
The Royal Borough of Kensington and Chelsea,RBKC,,Statutory Year End Accounting,Statutory Year End Accounting,,RNB ENGINEERING,1256083,,,,14/08/2020,2200114258,"2,332.80",,Payments to main contractor,,,,,,No
The Royal Borough of Kensington and Chelsea,RBKC,,Statutory Year End Accounting,Statutory Year End Accounting,,RNB ENGINEERING,1256083,,,,17/08/2020,2200114744,"29,712.70",,Payments to main contractor,,,,,,No
The Royal Borough of Kensington and Chelsea,RBKC,,Statutory Year End Accounting,Statutory Year End Accounting,,RNB ENGINEERING,1256083,,,,28/08/2020,2200116715,"2,085.00",,Payments to main contractor,,,,,,No
The Royal Borough of Kensington and Chelsea,RBKC,,Statutory Year End Accounting,Statutory Year End Accounting,,RNB ENGINEERING,1256083,,,,28/08/2020,2200116716,"2,780.00",,Payments to main contractor,,,,,,No
The Royal Borough of Kensington and Chelsea,RBKC,,Statutory Year End Accounting,Statutory Year End Accounting,,RNB ENGINEERING,1256083,,,,28/08/2020,2200116718,"1,595.00",,Payments to main contractor,,,,,,No
The Royal Borough of Kensington and Chelsea,RBKC,,Statutory Year End Accounting,Statutory Year End Accounting,,RNB ENGINEERING,1256083,,,,28/08/2020,2200116721,"1,595.00",,Payments to main contractor,,,,,,No
The Royal Borough of Kensington and Chelsea,RBKC,,Statutory Year End Accounting,Statutory Year End Accounting,,RNB ENGINEERING,1256083,,,,28/08/2020,2200116722,695.00,,Payments to main contractor,,,,,,No
The Royal Borough of Kensington and Chelsea,RBKC,,Statutory Year End Accounting,Statutory Year End Accounting,,RNB ENGINEERING,1256083,,,,28/08/2020,2200116724,"1,595.00",,Payments to main contractor,,,,,,No
The Royal Borough of Kensington and Chelsea,RBKC,,Statutory Year End Accounting,Statutory Year End Accounting,,RNB ENGINEERING,1256083,,,,28/08/2020,2200116726,"3,190.00",,Payments to main contractor,,,,,,No
The Royal Borough of Kensington and Chelsea,RBKC,,Statutory Year End Accounting,Statutory Year End Accounting,,RNB ENGINEERING,1256083,,,,09/09/2020,2200118630,"22,996.00",,Payments to main contractor,,,,,,No
The Royal Borough of Kensington and Chelsea,RBKC,,Statutory Year End Accounting,Statutory Year End Accounting,,RNB ENGINEERING,1256083,,,,17/09/2020,2200120407,"22,996.00",,Payments to main contractor,,,,,,No
The Royal Borough of Kensington and Chelsea,RBKC,,Statutory Year End Accounting,Statutory Year End Accounting,,Race Cottam Associates Limited,1269230,,,,02/07/2020,2200106621,"3,000.00",,Architects,,,,,,No
The Royal Borough of Kensington and Chelsea,RBKC,,Statutory Year End Accounting,Statutory Year End Accounting,,Race Cottam Associates Limited,1269230,,,,09/07/2020,2200108224,"5,000.00",,Architects,,,,,,No
The Royal Borough of Kensington and Chelsea,RBKC,,Statutory Year End Accounting,Statutory Year End Accounting,,Rbkc Colville Primary School ,1236100,,,,23/07/2020,2200110617,"5,931.00",,Other Consultants,,,,,,No
The Royal Borough of Kensington and Chelsea,RBKC,,Statutory Year End Accounting,Statutory Year End Accounting,,Red Squirrel Tree Surgery Ltd ,1231239,,,,28/09/2020,2200122251,"1,500.00",,Creditors Control : AP GRIR,,,,,,No
The Royal Borough of Kensington and Chelsea,RBKC,,Statutory Year End Accounting,Statutory Year End Accounting,,Resourcing Group ,1235269,,,,29/07/2020,2200111421,927.36,,Capitalised salaries,,,,,,No
The Royal Borough of Kensington and Chelsea,RBKC,,Statutory Year End Accounting,Statutory Year End Accounting,,Resourcing Group ,1235269,,,,29/07/2020,2200111427,927.36,,Capitalised salaries,,,,,,No
The Royal Borough of Kensington and Chelsea,RBKC,,Statutory Year End Accounting,Statutory Year End Accounting,,Resourcing Group ,1235269,,,,29/07/2020,2200111432,927.36,,Capitalised salaries,,,,,,No
The Royal Borough of Kensington and Chelsea,RBKC,,Statutory Year End Accounting,Statutory Year End Accounting,,Resourcing Group ,1235269,,,,12/08/2020,2200113897,927.36,,Capitalised salaries,,,,,,No
The Royal Borough of Kensington and Chelsea,RBKC,,Statutory Year End Accounting,Statutory Year End Accounting,,Resourcing Group ,1235269,,,,12/08/2020,2200113900,927.36,,Capitalised salaries,,,,,,No
The Royal Borough of Kensington and Chelsea,RBKC,,Statutory Year End Accounting,Statutory Year End Accounting,,Resourcing Group ,1235269,,,,22/09/2020,2200121190,927.36,,Capitalised salaries,,,,,,No
The Royal Borough of Kensington and Chelsea,RBKC,,Statutory Year End Accounting,Statutory Year End Accounting,,Resourcing Group ,1235269,,,,22/09/2020,2200121191,927.36,,Capitalised salaries,,,,,,No
The Royal Borough of Kensington and Chelsea,RBKC,,Statutory Year End Accounting,Statutory Year End Accounting,,Ridge And Partners LLP ,1231273,,,,13/07/2020,2200108567,980.00,,Payments to main contractor,,,,,,No
The Royal Borough of Kensington and Chelsea,RBKC,,Statutory Year End Accounting,Statutory Year End Accounting,,Ridge And Partners LLP ,1231273,,,,22/07/2020,2200110398,"1,000.00",,Professional Fees : Non Legal,,,,,,No
The Royal Borough of Kensington and Chelsea,RBKC,,Statutory Year End Accounting,Statutory Year End Accounting,,S W Security Ltd ,1235300,,,,06/08/2020,2200112785,"2,258.00",,Payments to main contractor,,,,,,No
The Royal Borough of Kensington and Chelsea,RBKC,,Statutory Year End Accounting,Statutory Year End Accounting,,S W Security Ltd ,1235300,,,,27/08/2020,2200116582,"18,127.00",,Payments to main contractor,,,,,,No
The Royal Borough of Kensington and Chelsea,RBKC,,Statutory Year End Accounting,Statutory Year End Accounting,,S W Security Ltd ,1235300,,,,08/09/2020,2200118408,"4,280.00",,Payments to main contractor,,,,,,No
The Royal Borough of Kensington and Chelsea,RBKC,,Statutory Year End Accounting,Statutory Year End Accounting,,S W Security Ltd ,1235300,,,,16/09/2020,2200120081,"4,974.00",,Payments to main contractor,,,,,,No
The Royal Borough of Kensington and Chelsea,RBKC,,Statutory Year End Accounting,Statutory Year End Accounting,,SMARTCOMM LIMITED,1268105,,,,03/08/2020,2200112177,"3,415.02",,Creditors Control : AP GRIR,,,,,,No
The Royal Borough of Kensington and Chelsea,RBKC,,Statutory Year End Accounting,Statutory Year End Accounting,,SMARTCOMM LIMITED,1268105,,,,03/08/2020,2200112177,"2,098.88",,Creditors Control : AP GRIR,,,,,,No
The Royal Borough of Kensington and Chelsea,RBKC,,Statutory Year End Accounting,Statutory Year End Accounting,,SMARTCOMM LIMITED,1268105,,,,03/08/2020,2200112177,940.64,,Engineering Consultancy Fees,,,,,,No
The Royal Borough of Kensington and Chelsea,RBKC,,Statutory Year End Accounting,Statutory Year End Accounting,,SMARTCOMM LIMITED,1268105,,,,03/08/2020,2200112177,"7,210.46",,Creditors Control : AP GRIR,,,,,,No
The Royal Borough of Kensington and Chelsea,RBKC,,Statutory Year End Accounting,Statutory Year End Accounting,,Santia Asbestos Management Ltd ,1255345,,,,06/07/2020,2200107501,"16,111.25",,Construction : enhancements,,,,,,No
The Royal Borough of Kensington and Chelsea,RBKC,,Statutory Year End Accounting,Statutory Year End Accounting,,Santia Asbestos Management Ltd ,1255345,,,,06/07/2020,2200107503,"23,967.50",,Site Works,,,,,,No
The Royal Borough of Kensington and Chelsea,RBKC,,Statutory Year End Accounting,Statutory Year End Accounting,,Santia Asbestos Management Ltd ,1255345,,,,06/07/2020,2200107504,"6,331.00",,Construction : enhancements,,,,,,No
The Royal Borough of Kensington and Chelsea,RBKC,,Statutory Year End Accounting,Statutory Year End Accounting,,Santia Asbestos Management Ltd ,1255345,,,,20/07/2020,2200110010,"2,000.00",,Creditors Control : AP GRIR,,,,,,No
The Royal Borough of Kensington and Chelsea,RBKC,,Statutory Year End Accounting,Statutory Year End Accounting,,Sharpe Pritchard ,1235336,,,,03/07/2020,2200106853,523.00,,Other Consultants,,,,,,No
The Royal Borough of Kensington and Chelsea,RBKC,,Statutory Year End Accounting,Statutory Year End Accounting,,Signway Supplies Datchet Ltd ,1231339,,,,25/08/2020,2200116114,638.38,,Construction : new asset,,,,,,No
The Royal Borough of Kensington and Chelsea,RBKC,,Statutory Year End Accounting,Statutory Year End Accounting,,Simon O�Rourke Ltd,1270065,,,,05/08/2020,2200112682,"2,500.00",,Construction : enhancements,,,,,,No
The Royal Borough of Kensington and Chelsea,RBKC,,Statutory Year End Accounting,Statutory Year End Accounting,,Skilled Careers Limited,1265647,,,,02/07/2020,2200106580,943.20,,Capitalised salaries,,,,,,No
The Royal Borough of Kensington and Chelsea,RBKC,,Statutory Year End Accounting,Statutory Year End Accounting,,Skilled Careers Limited,1265647,,,,02/07/2020,2200106581,733.60,,Capitalised salaries,,,,,,No
The Royal Borough of Kensington and Chelsea,RBKC,,Statutory Year End Accounting,Statutory Year End Accounting,,Skilled Careers Limited,1265647,,,,02/07/2020,2200106582,733.60,,Capitalised salaries,,,,,,No
The Royal Borough of Kensington and Chelsea,RBKC,,Statutory Year End Accounting,Statutory Year End Accounting,,Skilled Careers Limited,1265647,,,,02/07/2020,2200106585,943.20,,Capitalised salaries,,,,,,No
The Royal Borough of Kensington and Chelsea,RBKC,,Statutory Year End Accounting,Statutory Year End Accounting,,Skilled Careers Limited,1265647,,,,02/07/2020,2200106587,943.20,,Capitalised salaries,,,,,,No
The Royal Borough of Kensington and Chelsea,RBKC,,Statutory Year End Accounting,Statutory Year End Accounting,,Skilled Careers Limited,1265647,,,,02/07/2020,2200106588,550.20,,Capitalised salaries,,,,,,No
The Royal Borough of Kensington and Chelsea,RBKC,,Statutory Year End Accounting,Statutory Year End Accounting,,Skilled Careers Limited,1265647,,,,02/07/2020,2200106589,943.20,,Capitalised salaries,,,,,,No
The Royal Borough of Kensington and Chelsea,RBKC,,Statutory Year End Accounting,Statutory Year End Accounting,,Skilled Careers Limited,1265647,,,,02/07/2020,2200106591,943.20,,Capitalised salaries,,,,,,No
The Royal Borough of Kensington and Chelsea,RBKC,,Statutory Year End Accounting,Statutory Year End Accounting,,Skilled Careers Limited,1265647,,,,02/07/2020,2200106592,943.20,,Capitalised salaries,,,,,,No
The Royal Borough of Kensington and Chelsea,RBKC,,Statutory Year End Accounting,Statutory Year End Accounting,,Skilled Careers Limited,1265647,,,,02/07/2020,2200106593,943.20,,Capitalised salaries,,,,,,No
The Royal Borough of Kensington and Chelsea,RBKC,,Statutory Year End Accounting,Statutory Year End Accounting,,Skilled Careers Limited,1265647,,,,02/07/2020,2200106594,943.20,,Capitalised salaries,,,,,,No
The Royal Borough of Kensington and Chelsea,RBKC,,Statutory Year End Accounting,Statutory Year End Accounting,,Skilled Careers Limited,1265647,,,,06/07/2020,2200107338,576.40,,Capitalised salaries,,,,,,No
The Royal Borough of Kensington and Chelsea,RBKC,,Statutory Year End Accounting,Statutory Year End Accounting,,Skilled Careers Limited,1265647,,,,06/07/2020,2200107339,943.20,,Capitalised salaries,,,,,,No
The Royal Borough of Kensington and Chelsea,RBKC,,Statutory Year End Accounting,Statutory Year End Accounting,,Skilled Careers Limited,1265647,,,,06/07/2020,2200107343,943.20,,Capitalised salaries,,,,,,No
The Royal Borough of Kensington and Chelsea,RBKC,,Statutory Year End Accounting,Statutory Year End Accounting,,Skilled Careers Limited,1265647,,,,10/07/2020,2200108438,672.84,,Capitalised salaries,,,,,,No
The Royal Borough of Kensington and Chelsea,RBKC,,Statutory Year End Accounting,Statutory Year End Accounting,,Skilled Careers Limited,1265647,,,,10/07/2020,2200108440,943.20,,Capitalised salaries,,,,,,No
The Royal Borough of Kensington and Chelsea,RBKC,,Statutory Year End Accounting,Statutory Year End Accounting,,Skilled Careers Limited,1265647,,,,10/07/2020,2200108442,672.84,,Capitalised salaries,,,,,,No
The Royal Borough of Kensington and Chelsea,RBKC,,Statutory Year End Accounting,Statutory Year End Accounting,,Skilled Careers Limited,1265647,,,,10/07/2020,2200108443,943.20,,Capitalised salaries,,,,,,No
The Royal Borough of Kensington and Chelsea,RBKC,,Statutory Year End Accounting,Statutory Year End Accounting,,Skilled Careers Limited,1265647,,,,10/07/2020,2200108445,943.20,,Capitalised salaries,,,,,,No
The Royal Borough of Kensington and Chelsea,RBKC,,Statutory Year End Accounting,Statutory Year End Accounting,,Skilled Careers Limited,1265647,,,,20/07/2020,2200109979,759.80,,Capitalised salaries,,,,,,No
The Royal Borough of Kensington and Chelsea,RBKC,,Statutory Year End Accounting,Statutory Year End Accounting,,Skilled Careers Limited,1265647,,,,20/07/2020,2200109980,865.08,,Capitalised salaries,,,,,,No
The Royal Borough of Kensington and Chelsea,RBKC,,Statutory Year End Accounting,Statutory Year End Accounting,,Skilled Careers Limited,1265647,,,,20/07/2020,2200109981,853.07,,Capitalised salaries,,,,,,No
The Royal Borough of Kensington and Chelsea,RBKC,,Statutory Year End Accounting,Statutory Year End Accounting,,Skilled Careers Limited,1265647,,,,20/07/2020,2200109983,759.80,,Capitalised salaries,,,,,,No
The Royal Borough of Kensington and Chelsea,RBKC,,Statutory Year End Accounting,Statutory Year End Accounting,,Skilled Careers Limited,1265647,,,,22/07/2020,2200110481,759.80,,Capitalised salaries,,,,,,No
The Royal Borough of Kensington and Chelsea,RBKC,,Statutory Year End Accounting,Statutory Year End Accounting,,Skilled Careers Limited,1265647,,,,22/07/2020,2200110482,943.20,,Capitalised salaries,,,,,,No
The Royal Borough of Kensington and Chelsea,RBKC,,Statutory Year End Accounting,Statutory Year End Accounting,,Skilled Careers Limited,1265647,,,,22/07/2020,2200110483,865.08,,Capitalised salaries,,,,,,No
The Royal Borough of Kensington and Chelsea,RBKC,,Statutory Year End Accounting,Statutory Year End Accounting,,Skilled Careers Limited,1265647,,,,22/07/2020,2200110490,865.08,,Capitalised salaries,,,,,,No
The Royal Borough of Kensington and Chelsea,RBKC,,Statutory Year End Accounting,Statutory Year End Accounting,,Skilled Careers Limited,1265647,,,,31/07/2020,2200111885,864.60,,Capitalised salaries,,,,,,No
The Royal Borough of Kensington and Chelsea,RBKC,,Statutory Year End Accounting,Statutory Year End Accounting,,Skilled Careers Limited,1265647,,,,31/07/2020,2200111887,733.60,,Capitalised salaries,,,,,,No
The Royal Borough of Kensington and Chelsea,RBKC,,Statutory Year End Accounting,Statutory Year End Accounting,,Skilled Careers Limited,1265647,,,,31/07/2020,2200111888,865.08,,Capitalised salaries,,,,,,No
The Royal Borough of Kensington and Chelsea,RBKC,,Statutory Year End Accounting,Statutory Year End Accounting,,Skilled Careers Limited,1265647,,,,31/07/2020,2200111890,865.08,,Capitalised salaries,,,,,,No
The Royal Borough of Kensington and Chelsea,RBKC,,Statutory Year End Accounting,Statutory Year End Accounting,,Skilled Careers Limited,1265647,,,,07/08/2020,2200113221,864.60,,Capitalised salaries,,,,,,No
The Royal Borough of Kensington and Chelsea,RBKC,,Statutory Year End Accounting,Statutory Year End Accounting,,Skilled Careers Limited,1265647,,,,07/08/2020,2200113222,668.10,,Capitalised salaries,,,,,,No
The Royal Borough of Kensington and Chelsea,RBKC,,Statutory Year End Accounting,Statutory Year End Accounting,,Skilled Careers Limited,1265647,,,,07/08/2020,2200113223,865.08,,Capitalised salaries,,,,,,No
The Royal Borough of Kensington and Chelsea,RBKC,,Statutory Year End Accounting,Statutory Year End Accounting,,Skilled Careers Limited,1265647,,,,17/08/2020,2200114773,943.20,,Capitalised salaries,,,,,,No
The Royal Borough of Kensington and Chelsea,RBKC,,Statutory Year End Accounting,Statutory Year End Accounting,,Skilled Careers Limited,1265647,,,,17/08/2020,2200114799,696.87,,Capitalised salaries,,,,,,No
The Royal Borough of Kensington and Chelsea,RBKC,,Statutory Year End Accounting,Statutory Year End Accounting,,Skilled Careers Limited,1265647,,,,17/08/2020,2200114803,943.20,,Capitalised salaries,,,,,,No
The Royal Borough of Kensington and Chelsea,RBKC,,Statutory Year End Accounting,Statutory Year End Accounting,,Skilled Careers Limited,1265647,,,,17/08/2020,2200114805,865.08,,Capitalised salaries,,,,,,No
The Royal Borough of Kensington and Chelsea,RBKC,,Statutory Year End Accounting,Statutory Year End Accounting,,Skilled Careers Limited,1265647,,,,02/09/2020,2200117141,865.08,,Capitalised salaries,,,,,,No
The Royal Borough of Kensington and Chelsea,RBKC,,Statutory Year End Accounting,Statutory Year End Accounting,,Skilled Careers Limited,1265647,,,,02/09/2020,2200117146,865.08,,Capitalised salaries,,,,,,No
The Royal Borough of Kensington and Chelsea,RBKC,,Statutory Year End Accounting,Statutory Year End Accounting,,Skilled Careers Limited,1265647,,,,02/09/2020,2200117147,759.80,,Capitalised salaries,,,,,,No
The Royal Borough of Kensington and Chelsea,RBKC,,Statutory Year End Accounting,Statutory Year End Accounting,,Skilled Careers Limited,1265647,,,,02/09/2020,2200117148,943.20,,Capitalised salaries,,,,,,No
The Royal Borough of Kensington and Chelsea,RBKC,,Statutory Year End Accounting,Statutory Year End Accounting,,Skilled Careers Limited,1265647,,,,02/09/2020,2200117153,943.20,,Capitalised salaries,,,,,,No
The Royal Borough of Kensington and Chelsea,RBKC,,Statutory Year End Accounting,Statutory Year End Accounting,,Skilled Careers Limited,1265647,,,,02/09/2020,2200117158,943.20,,Capitalised salaries,,,,,,No
The Royal Borough of Kensington and Chelsea,RBKC,,Statutory Year End Accounting,Statutory Year End Accounting,,Skilled Careers Limited,1265647,,,,02/09/2020,2200117166,943.20,,Capitalised salaries,,,,,,No
The Royal Borough of Kensington and Chelsea,RBKC,,Statutory Year End Accounting,Statutory Year End Accounting,,Skilled Careers Limited,1265647,,,,02/09/2020,2200117167,696.87,,Capitalised salaries,,,,,,No
The Royal Borough of Kensington and Chelsea,RBKC,,Statutory Year End Accounting,Statutory Year End Accounting,,Skilled Careers Limited,1265647,,,,02/09/2020,2200117168,759.80,,Capitalised salaries,,,,,,No
The Royal Borough of Kensington and Chelsea,RBKC,,Statutory Year End Accounting,Statutory Year End Accounting,,Skilled Careers Limited,1265647,,,,02/09/2020,2200117169,943.20,,Capitalised salaries,,,,,,No
The Royal Borough of Kensington and Chelsea,RBKC,,Statutory Year End Accounting,Statutory Year End Accounting,,Skilled Careers Limited,1265647,,,,02/09/2020,2200117170,865.08,,Capitalised salaries,,,,,,No
The Royal Borough of Kensington and Chelsea,RBKC,,Statutory Year End Accounting,Statutory Year End Accounting,,Skilled Careers Limited,1265647,,,,02/09/2020,2200117171,943.20,,Capitalised salaries,,,,,,No
The Royal Borough of Kensington and Chelsea,RBKC,,Statutory Year End Accounting,Statutory Year End Accounting,,Skilled Careers Limited,1265647,,,,08/09/2020,2200118348,733.60,,Capitalised salaries,,,,,,No
The Royal Borough of Kensington and Chelsea,RBKC,,Statutory Year End Accounting,Statutory Year End Accounting,,Skilled Careers Limited,1265647,,,,08/09/2020,2200118353,696.87,,Capitalised salaries,,,,,,No
The Royal Borough of Kensington and Chelsea,RBKC,,Statutory Year End Accounting,Statutory Year End Accounting,,Skilled Careers Limited,1265647,,,,08/09/2020,2200118354,943.20,,Capitalised salaries,,,,,,No
The Royal Borough of Kensington and Chelsea,RBKC,,Statutory Year End Accounting,Statutory Year End Accounting,,Skilled Careers Limited,1265647,,,,08/09/2020,2200118355,865.08,,Capitalised salaries,,,,,,No
The Royal Borough of Kensington and Chelsea,RBKC,,Statutory Year End Accounting,Statutory Year End Accounting,,Skilled Careers Limited,1265647,,,,08/09/2020,2200118356,759.80,,Capitalised salaries,,,,,,No
The Royal Borough of Kensington and Chelsea,RBKC,,Statutory Year End Accounting,Statutory Year End Accounting,,Skilled Careers Limited,1265647,,,,16/09/2020,2200120140,768.96,,Capitalised salaries,,,,,,No
The Royal Borough of Kensington and Chelsea,RBKC,,Statutory Year End Accounting,Statutory Year End Accounting,,Skilled Careers Limited,1265647,,,,16/09/2020,2200120153,838.40,,Capitalised salaries,,,,,,No
The Royal Borough of Kensington and Chelsea,RBKC,,Statutory Year End Accounting,Statutory Year End Accounting,,Skilled Careers Limited,1265647,,,,16/09/2020,2200120155,"1,048.00",,Capitalised salaries,,,,,,No
The Royal Borough of Kensington and Chelsea,RBKC,,Statutory Year End Accounting,Statutory Year End Accounting,,Skilled Careers Limited,1265647,,,,16/09/2020,2200120156,838.40,,Capitalised salaries,,,,,,No
The Royal Borough of Kensington and Chelsea,RBKC,,Statutory Year End Accounting,Statutory Year End Accounting,,Skilled Careers Limited,1265647,,,,16/09/2020,2200120157,768.96,,Capitalised salaries,,,,,,No
The Royal Borough of Kensington and Chelsea,RBKC,,Statutory Year End Accounting,Statutory Year End Accounting,,Skilled Careers Limited,1265647,,,,18/09/2020,2200120587,937.17,,Capitalised salaries,,,,,,No
The Royal Borough of Kensington and Chelsea,RBKC,,Statutory Year End Accounting,Statutory Year End Accounting,,Skilled Careers Limited,1265647,,,,18/09/2020,2200120588,"1,048.00",,Capitalised salaries,,,,,,No
The Royal Borough of Kensington and Chelsea,RBKC,,Statutory Year End Accounting,Statutory Year End Accounting,,Skilled Careers Limited,1265647,,,,18/09/2020,2200120589,"1,048.00",,Capitalised salaries,,,,,,No
The Royal Borough of Kensington and Chelsea,RBKC,,Statutory Year End Accounting,Statutory Year End Accounting,,Skilled Careers Limited,1265647,,,,18/09/2020,2200120590,"1,048.00",,Capitalised salaries,,,,,,No
The Royal Borough of Kensington and Chelsea,RBKC,,Statutory Year End Accounting,Statutory Year End Accounting,,Skilled Careers Limited,1265647,,,,18/09/2020,2200120592,"1,153.44",,Capitalised salaries,,,,,,No
The Royal Borough of Kensington and Chelsea,RBKC,,Statutory Year End Accounting,Statutory Year End Accounting,,Skilled Careers Limited,1265647,,,,24/09/2020,2200121604,"1,048.00",,Capitalised salaries,,,,,,No
The Royal Borough of Kensington and Chelsea,RBKC,,Statutory Year End Accounting,Statutory Year End Accounting,,Skilled Careers Limited,1265647,,,,24/09/2020,2200121605,961.20,,Capitalised salaries,,,,,,No
The Royal Borough of Kensington and Chelsea,RBKC,,Statutory Year End Accounting,Statutory Year End Accounting,,Skilled Careers Limited,1265647,,,,24/09/2020,2200121606,759.80,,Capitalised salaries,,,,,,No
The Royal Borough of Kensington and Chelsea,RBKC,,Statutory Year End Accounting,Statutory Year End Accounting,,Skilled Careers Limited,1265647,,,,24/09/2020,2200121607,"1,153.44",,Capitalised salaries,,,,,,No
The Royal Borough of Kensington and Chelsea,RBKC,,Statutory Year End Accounting,Statutory Year End Accounting,,Social & Market Strategic Research,1264061,,,,05/08/2020,2200112676,"10,300.00",,Other Consultants,,,,,,No
The Royal Borough of Kensington and Chelsea,RBKC,,Statutory Year End Accounting,Statutory Year End Accounting,,St Francis Of Assisi Rc Church,1235401,,,,24/09/2020,2200121573,"48,000.00",,Other Consultants,,,,,,No
The Royal Borough of Kensington and Chelsea,RBKC,,Statutory Year End Accounting,Statutory Year End Accounting,,Stannah Lift Services Ltd ,1231434,,,,27/07/2020,2200110911,"2,579.00",,Payments to main contractor,,,,,,No
The Royal Borough of Kensington and Chelsea,RBKC,,Statutory Year End Accounting,Statutory Year End Accounting,,Stannah Lift Services Ltd ,1231434,,,,17/08/2020,2200114761,"5,429.00",,Payments to main contractor,,,,,,No
The Royal Borough of Kensington and Chelsea,RBKC,,Statutory Year End Accounting,Statutory Year End Accounting,,Stannah Lift Services Ltd ,1231434,,,,30/09/2020,2200123005,"20,647.25",,Site Works,,,,,,No
The Royal Borough of Kensington and Chelsea,RBKC,,Statutory Year End Accounting,Statutory Year End Accounting,,Streetmaster (South Wales) Ltd,1231577,,,,16/07/2020,2200109447,"6,646.00",,Construction : enhancements,,,,,,No
The Royal Borough of Kensington and Chelsea,RBKC,,Statutory Year End Accounting,Statutory Year End Accounting,,Streetmaster (South Wales) Ltd,1231577,,,,19/08/2020,2200115198,"6,348.00",,Payments to main contractor,,,,,,No
The Royal Borough of Kensington and Chelsea,RBKC,,Statutory Year End Accounting,Statutory Year End Accounting,,Suez Recycling and Recovery UK Ltd ,1235441,,,,18/09/2020,2200120567,"330,364.00",,Purchase of Vehicles,,,,,,No
The Royal Borough of Kensington and Chelsea,RBKC,,Statutory Year End Accounting,Statutory Year End Accounting,,Surefire Services Limited,1263781,,,,28/07/2020,2200111187,"11,700.00",,Payments to main contractor,,,,,,No
The Royal Borough of Kensington and Chelsea,RBKC,,Statutory Year End Accounting,Statutory Year End Accounting,,T Brown Group Ltd,1270313,,,,06/07/2020,2200107450,"9,950.00",,Payments to main contractor,,,,,,No
The Royal Borough of Kensington and Chelsea,RBKC,,Statutory Year End Accounting,Statutory Year End Accounting,,Tace Manchester Limited,1270502,,,,03/09/2020,2200117515,"5,000.00",,Payments to main contractor,,,,,,No
The Royal Borough of Kensington and Chelsea,RBKC,,Statutory Year End Accounting,Statutory Year End Accounting,,TBRE Associates Ltd,1269736,,,,01/07/2020,2200106208,"1,775.00",,Surveyors,,,,,,No
The Royal Borough of Kensington and Chelsea,RBKC,,Statutory Year End Accounting,Statutory Year End Accounting,,TBRE Associates Ltd,1269736,,,,21/07/2020,2200110241,"8,461.00",,Surveyors,,,,,,No
The Royal Borough of Kensington and Chelsea,RBKC,,Statutory Year End Accounting,Statutory Year End Accounting,,Texo Scaffolding & Construction Ltd,1266685,,,,22/07/2020,2200110416,"51,858.24",,Payments to main contractor,,,,,,No
The Royal Borough of Kensington and Chelsea,RBKC,,Statutory Year End Accounting,Statutory Year End Accounting,,Tfl Surface Transport ,1235474,,,,07/09/2020,2200118255,"4,637.64",,Engineering Consultancy Fees,,,,,,No
The Royal Borough of Kensington and Chelsea,RBKC,,Statutory Year End Accounting,Statutory Year End Accounting,,Trail Services Limited,1270872,,,,31/07/2020,2200111864,"44,123.01",,Payments to main contractor,,,,,,No
The Royal Borough of Kensington and Chelsea,RBKC,,Statutory Year End Accounting,Statutory Year End Accounting,,Trail Services Limited,1270872,,,,30/09/2020,2200123036,"61,610.43",,Payments to main contractor,,,,,,No
The Royal Borough of Kensington and Chelsea,RBKC,,Statutory Year End Accounting,Statutory Year End Accounting,,Trail Services Limited,1270872,,,,30/09/2020,2200123037,"78,334.72",,Payments to main contractor,,,,,,No
The Royal Borough of Kensington and Chelsea,RBKC,,Statutory Year End Accounting,Statutory Year End Accounting,,Transport For London,1231876,,,,10/08/2020,2200113521,"1,672.00",,Design Consultant,,,,,,No
The Royal Borough of Kensington and Chelsea,RBKC,,Statutory Year End Accounting,Statutory Year End Accounting,,Transport For London,1231876,,,,23/09/2020,2200121346,608.00,,Design Consultant,,,,,,No
The Royal Borough of Kensington and Chelsea,RBKC,,Statutory Year End Accounting,Statutory Year End Accounting,,Tree Wise Men S.E. Ltd ,1231880,,,,25/09/2020,2200121811,"4,297.00",,Creditors Control : AP GRIR,,,,,,No
The Royal Borough of Kensington and Chelsea,RBKC,,Statutory Year End Accounting,Statutory Year End Accounting,,Uk Power Networks(Operations) Ltd ,1231441,,,,01/07/2020,2200106210,804.00,,Construction : enhancements,,,,,,No
The Royal Borough of Kensington and Chelsea,RBKC,,Statutory Year End Accounting,Statutory Year End Accounting,,Upshot Uk Ltd,1270010,,,,07/07/2020,2200107619,"1,000.00",,Payments to main contractor,,,,,,No
The Royal Borough of Kensington and Chelsea,RBKC,,Statutory Year End Accounting,Statutory Year End Accounting,,V Management Group,1267552,,,,26/08/2020,2200116382,"8,380.00",,Payments to main contractor,,,,,,No
The Royal Borough of Kensington and Chelsea,RBKC,,Statutory Year End Accounting,Statutory Year End Accounting,,V Management Group,1267552,,,,26/08/2020,2200116383,"8,780.00",,Payments to main contractor,,,,,,No
The Royal Borough of Kensington and Chelsea,RBKC,,Statutory Year End Accounting,Statutory Year End Accounting,,V Management Group,1267552,,,,26/08/2020,2200116430,"17,465.00",,Payments to main contractor,,,,,,No
The Royal Borough of Kensington and Chelsea,RBKC,,Statutory Year End Accounting,Statutory Year End Accounting,,V Management Group,1267552,,,,26/08/2020,2200116431,"7,975.00",,Payments to main contractor,,,,,,No
The Royal Borough of Kensington and Chelsea,RBKC,,Statutory Year End Accounting,Statutory Year End Accounting,,Venn Group Ltd ,1231925,,,,04/08/2020,2200112335,"2,090.00",,Capitalised salaries,,,,,,No
The Royal Borough of Kensington and Chelsea,RBKC,,Statutory Year End Accounting,Statutory Year End Accounting,,Venn Group Ltd ,1231925,,,,04/08/2020,2200112337,"2,090.00",,Capitalised salaries,,,,,,No
The Royal Borough of Kensington and Chelsea,RBKC,,Statutory Year End Accounting,Statutory Year End Accounting,,Venn Group Ltd ,1231925,,,,04/08/2020,2200112338,"2,090.00",,Capitalised salaries,,,,,,No
The Royal Borough of Kensington and Chelsea,RBKC,,Statutory Year End Accounting,Statutory Year End Accounting,,Venn Group Ltd ,1231925,,,,04/08/2020,2200112340,"2,090.00",,Capitalised salaries,,,,,,No
The Royal Borough of Kensington and Chelsea,RBKC,,Statutory Year End Accounting,Statutory Year End Accounting,,Venn Group Ltd ,1231925,,,,18/08/2020,2200115086,"2,351.25",,Capitalised salaries,,,,,,No
The Royal Borough of Kensington and Chelsea,RBKC,,Statutory Year End Accounting,Statutory Year End Accounting,,Venn Group Ltd ,1231925,,,,18/08/2020,2200115087,"2,090.00",,Capitalised salaries,,,,,,No
The Royal Borough of Kensington and Chelsea,RBKC,,Statutory Year End Accounting,Statutory Year End Accounting,,Venn Group Ltd ,1231925,,,,18/08/2020,2200115089,"2,612.50",,Capitalised salaries,,,,,,No
The Royal Borough of Kensington and Chelsea,RBKC,,Statutory Year End Accounting,Statutory Year End Accounting,,Venn Group Ltd ,1231925,,,,11/09/2020,2200119327,"2,090.00",,Capitalised salaries,,,,,,No
The Royal Borough of Kensington and Chelsea,RBKC,,Statutory Year End Accounting,Statutory Year End Accounting,,Venn Group Ltd ,1231925,,,,11/09/2020,2200119333,"2,090.00",,Capitalised salaries,,,,,,No
The Royal Borough of Kensington and Chelsea,RBKC,,Statutory Year End Accounting,Statutory Year End Accounting,,Venn Group Ltd ,1231925,,,,11/09/2020,2200119334,"2,090.00",,Capitalised salaries,,,,,,No
The Royal Borough of Kensington and Chelsea,RBKC,,Statutory Year End Accounting,Statutory Year End Accounting,,Venn Group Ltd ,1231925,,,,23/09/2020,2200121328,"1,012.00",,Capitalised salaries,,,,,,No
The Royal Borough of Kensington and Chelsea,RBKC,,Statutory Year End Accounting,Statutory Year End Accounting,,Ventro Ltd,1269242,,,,31/07/2020,2200111875,"1,260.01",,Payments to main contractor,,,,,,No
The Royal Borough of Kensington and Chelsea,RBKC,,Statutory Year End Accounting,Statutory Year End Accounting,,Vpodsolutions Uk Ltd,1271116,,,,21/08/2020,2200115807,"42,150.00",,Construction : enhancements,,,,,,No
The Royal Borough of Kensington and Chelsea,RBKC,,Statutory Year End Accounting,Statutory Year End Accounting,,Redact Details,1269416,,,,01/07/2020,2200106228,"18,142.50",,Payments to main contractor,,,,,,No
The Royal Borough of Kensington and Chelsea,RBKC,,Statutory Year End Accounting,Statutory Year End Accounting,,Redact Details,1269416,,,,21/09/2020,2200120818,"15,420.00",,Payments to main contractor,,,,,,No
The Royal Borough of Kensington and Chelsea,RBKC,,Statutory Year End Accounting,Statutory Year End Accounting,,Redact Details,1269416,,,,21/09/2020,2200120982,"8,080.17",,Payments to main contractor,,,,,,No
The Royal Borough of Kensington and Chelsea,RBKC,,Statutory Year End Accounting,Statutory Year End Accounting,,Warm Company SW Limited,1268878,,,,07/08/2020,2200113129,"1,182.60",,Site Works,,,,,,No
The Royal Borough of Kensington and Chelsea,RBKC,,Statutory Year End Accounting,Statutory Year End Accounting,,Warm Company SW Limited,1268878,,,,17/08/2020,2200114740,"2,304.00",,Site Works,,,,,,No
The Royal Borough of Kensington and Chelsea,RBKC,,Statutory Year End Accounting,Statutory Year End Accounting,,Warm Company SW Limited,1268878,,,,17/08/2020,2200114888,"1,839.65",,Site Works,,,,,,No
The Royal Borough of Kensington and Chelsea,RBKC,,Statutory Year End Accounting,Statutory Year End Accounting,,Wates Construction Ltd ,1235637,,,,29/09/2020,2200122583,"47,974.24",,Payments to main contractor,,,,,,No
The Royal Borough of Kensington and Chelsea,RBKC,,Statutory Year End Accounting,Statutory Year End Accounting,,Woodcraft Uk Ltd,1267738,,,,21/07/2020,2200110281,"2,831.00",,Creditors Control : AP GRIR,,,,,,No
The Royal Borough of Kensington and Chelsea,RBKC,,Statutory Year End Accounting,Statutory Year End Accounting,,Wsp Uk Ltd ,1231981,,,,06/08/2020,2200112856,"6,000.00",,Payments to main contractor,,,,,,No
The Royal Borough of Kensington and Chelsea,RBKC,,Resources & Assets,Financial Management,,Environment Agency ,1230799,,,,03/07/2020,3110202497,"55,749.00",,Levies,,,,,,No
The Royal Borough of Kensington and Chelsea,RBKC,,Resources & Assets,Financial Management,,London Councils ,1231827,,,,14/08/2020,2200114442,"51,821.00",,Levies,,,,,,No
The Royal Borough of Kensington and Chelsea,RBKC,,Resources & Assets,Financial Management,,Transport For London ,1231875,,,,31/08/2020,3110217606,"2,094,070.00",,Payments to Voluntary bodies,,,,,,No
The Royal Borough of Kensington and Chelsea,RBKC,,Grenfell Team,Director for Grenfell,,Redact Details,D000000023,,,,13/08/2020,3110214042,601.57,,Compensation Payments,,,,,,No
The Royal Borough of Kensington and Chelsea,RBKC,,Grenfell Team,Director for Resources and Assets,,Penna Plc ,1231010,,,,06/07/2020,2200107294,"13,750.00",,Agency Staff,,,,,,No
The Royal Borough of Kensington and Chelsea,RBKC,,Grenfell Team,Director for Resources and Assets,,Penna Plc ,1231010,,,,06/07/2020,2200107295,"7,848.75",,Agency Staff,,,,,,No
The Royal Borough of Kensington and Chelsea,RBKC,,Grenfell Team,Director for Resources and Assets,,Penna Plc ,1231010,,,,06/07/2020,2200107296,"11,385.00",,Agency Staff,,,,,,No
The Royal Borough of Kensington and Chelsea,RBKC,,Grenfell Team,Director for Resources and Assets,,Penna Plc ,1231010,,,,07/07/2020,2200107744,"7,475.00",,Agency Staff,,,,,,No
The Royal Borough of Kensington and Chelsea,RBKC,,Grenfell Team,Director for Resources and Assets,,Penna Plc ,1231010,,,,10/08/2020,2200113410,"8,596.25",,Agency Staff,,,,,,No
The Royal Borough of Kensington and Chelsea,RBKC,,Grenfell Team,Director for Resources and Assets,,Penna Plc ,1231010,,,,10/08/2020,2200113412,"14,062.50",,Agency Staff,,,,,,No
The Royal Borough of Kensington and Chelsea,RBKC,,Grenfell Team,Director for Resources and Assets,,Penna Plc ,1231010,,,,10/08/2020,2200113413,"11,902.50",,Agency Staff,,,,,,No
The Royal Borough of Kensington and Chelsea,RBKC,,Grenfell Team,Director for Resources and Assets,,Penna Plc ,1231010,,,,04/09/2020,2200117734,"9,375.00",,Agency Staff,,,,,,No
The Royal Borough of Kensington and Chelsea,RBKC,,Grenfell Team,Director for Resources and Assets,,Penna Plc ,1231010,,,,04/09/2020,2200117735,"5,980.00",,Agency Staff,,,,,,No
The Royal Borough of Kensington and Chelsea,RBKC,,Grenfell Team,Director for Resources and Assets,,Penna Plc ,1231010,,,,09/09/2020,2200118582,"10,350.00",,Agency Staff,,,,,,No
The Royal Borough of Kensington and Chelsea,RBKC,,Grenfell Team,Director for Resources and Assets,,Vivandex Ltd,1258860,,,,06/07/2020,2200107267,"2,551.68",,Agency Staff,,,,,,No
The Royal Borough of Kensington and Chelsea,RBKC,,Grenfell Team,Director for Grenfell,,Redact Details,D000000023,,,,18/08/2020,3110214830,"1,036.30",,Extra Placement Fee,,,,,,No
The Royal Borough of Kensington and Chelsea,RBKC,,Grenfell Team,Director for Grenfell,,Prepaid Financial Services Ltd (Corporate Account),1231050,,,,10/07/2020,3110205378,"75,000.00",,Fees,,,,,,No
The Royal Borough of Kensington and Chelsea,RBKC,,Grenfell Team,Head of Comms and Community Engage,,London Letterbox Marketing ,1234938,,,,09/09/2020,2200118649,"1,993.88",,Postage and Delivery,,,,,,No
The Royal Borough of Kensington and Chelsea,RBKC,,Grenfell Team,Head of Comms and Community Engage,,London Letterbox Marketing ,1234938,,,,09/09/2020,2200118650,"1,993.88",,Postage and Delivery,,,,,,No
The Royal Borough of Kensington and Chelsea,RBKC,,Grenfell Team,Head of Comms and Community Engage,,Fox Managed Solutions Ltd,1268550,,,,02/09/2020,2200117235,"3,684.00",,"Publicity, Promotions and Advertisement",,,,,,No
The Royal Borough of Kensington and Chelsea,RBKC,,Grenfell Team,Head of Comms and Community Engage,,Association For Cultural Advancement Through Visual Art (ACA,1232644,,,,05/08/2020,2200112704,"15,665.00",,Grant Aid and Donations,,,,,,No
The Royal Borough of Kensington and Chelsea,RBKC,,Grenfell Team,Head of Comms and Community Engage,,Azza Supplementary School,1270516,,,,14/09/2020,2200119536,"14,382.00",,Grant Aid and Donations,,,,,,No
The Royal Borough of Kensington and Chelsea,RBKC,,Grenfell Team,Head of Comms and Community Engage,,Redact Details,1265072,,,,06/07/2020,2200107473,"7,000.00",,Fees,,,,,,No
The Royal Borough of Kensington and Chelsea,RBKC,,Grenfell Team,Head of Comms and Community Engage,,Redact Details,1265072,,,,17/08/2020,2200114904,"17,500.00",,Grant Aid and Donations,,,,,,No
The Royal Borough of Kensington and Chelsea,RBKC,,Grenfell Team,Head of Comms and Community Engage,,Community Accountancy Self Help ,1233638,,,,10/09/2020,2200118943,"5,000.00",,Grant Aid and Donations,,,,,,No
The Royal Borough of Kensington and Chelsea,RBKC,,Grenfell Team,Head of Comms and Community Engage,,Community Accountancy Self Help ,1233638,,,,10/09/2020,2200118944,"10,000.00",,Grant Aid and Donations,,,,,,No
The Royal Borough of Kensington and Chelsea,RBKC,,Grenfell Team,Head of Comms and Community Engage,,Community Accountancy Self Help ,1233638,,,,10/09/2020,2200118945,"9,072.00",,Grant Aid and Donations,,,,,,No
The Royal Borough of Kensington and Chelsea,RBKC,,Grenfell Team,Head of Comms and Community Engage,,Community Accountancy Self Help ,1233638,,,,10/09/2020,2200118946,"10,000.00",,Grant Aid and Donations,,,,,,No
The Royal Borough of Kensington and Chelsea,RBKC,,Grenfell Team,Head of Comms and Community Engage,,Community Accountancy Self Help ,1233638,,,,10/09/2020,2200118947,"10,000.00",,Grant Aid and Donations,,,,,,No
The Royal Borough of Kensington and Chelsea,RBKC,,Grenfell Team,Head of Comms and Community Engage,,Community Accountancy Self Help ,1233638,,,,10/09/2020,2200118948,"10,000.00",,Grant Aid and Donations,,,,,,No
The Royal Borough of Kensington and Chelsea,RBKC,,Grenfell Team,Head of Comms and Community Engage,,Community Accountancy Self Help ,1233638,,,,10/09/2020,2200118949,"10,000.00",,Grant Aid and Donations,,,,,,No
The Royal Borough of Kensington and Chelsea,RBKC,,Grenfell Team,Head of Comms and Community Engage,,Community Accountancy Self Help ,1233638,,,,10/09/2020,2200118950,"8,783.00",,Grant Aid and Donations,,,,,,No
The Royal Borough of Kensington and Chelsea,RBKC,,Grenfell Team,Head of Comms and Community Engage,,Community Accountancy Self Help ,1233638,,,,10/09/2020,2200118951,"6,870.00",,Grant Aid and Donations,,,,,,No
The Royal Borough of Kensington and Chelsea,RBKC,,Grenfell Team,Head of Comms and Community Engage,,Community Accountancy Self Help ,1233638,,,,10/09/2020,2200118952,"10,000.00",,Grant Aid and Donations,,,,,,No
The Royal Borough of Kensington and Chelsea,RBKC,,Grenfell Team,Head of Comms and Community Engage,,Community Accountancy Self Help ,1233638,,,,10/09/2020,2200118953,"9,484.00",,Grant Aid and Donations,,,,,,No
The Royal Borough of Kensington and Chelsea,RBKC,,Grenfell Team,Head of Comms and Community Engage,,Community Accountancy Self Help ,1233638,,,,10/09/2020,2200118954,"10,000.00",,Grant Aid and Donations,,,,,,No
The Royal Borough of Kensington and Chelsea,RBKC,,Grenfell Team,Head of Comms and Community Engage,,Community Accountancy Self Help ,1233638,,,,10/09/2020,2200118955,"8,900.00",,Grant Aid and Donations,,,,,,No
The Royal Borough of Kensington and Chelsea,RBKC,,Grenfell Team,Head of Comms and Community Engage,,Community Accountancy Self Help ,1233638,,,,14/09/2020,2200119537,"7,250.00",,Grant Aid and Donations,,,,,,No
The Royal Borough of Kensington and Chelsea,RBKC,,Grenfell Team,Head of Comms and Community Engage,,Fit For Life Youth Cic,1271497,,,,25/08/2020,2200116180,"18,320.00",,Grant Aid and Donations,,,,,,No
The Royal Borough of Kensington and Chelsea,RBKC,,Grenfell Team,Head of Comms and Community Engage,,Fit For Life Youth Cic,1271497,,,,25/08/2020,2200116194,"1,680.00",,Grant Aid and Donations,,,,,,No
The Royal Borough of Kensington and Chelsea,RBKC,,Grenfell Team,Head of Comms and Community Engage,,Fluid Design Ltd ,1234437,,,,03/08/2020,2200112164,"5,000.00",,Fees,,,,,,No
The Royal Borough of Kensington and Chelsea,RBKC,,Grenfell Team,Head of Comms and Community Engage,,Harrow Club W10 ,1230381,,,,28/08/2020,2200116842,"9,822.00",,Grant Aid and Donations,,,,,,No
The Royal Borough of Kensington and Chelsea,RBKC,,Grenfell Team,Head of Comms and Community Engage,,Henry Dickens Court Residents Assoc,1271135,,,,08/09/2020,2200118487,"10,000.00",,Grant Aid and Donations,,,,,,No
The Royal Borough of Kensington and Chelsea,RBKC,,Grenfell Team,Head of Comms and Community Engage,,Kids On The Green ,1234851,,,,21/08/2020,2200115743,"25,000.00",,Grant Aid and Donations,,,,,,No
The Royal Borough of Kensington and Chelsea,RBKC,,Grenfell Team,Head of Comms and Community Engage,,Kids On The Green ,1234851,,,,21/08/2020,2200115745,"25,000.00",,Grant Aid and Donations,,,,,,No
The Royal Borough of Kensington and Chelsea,RBKC,,Grenfell Team,Head of Comms and Community Engage,,Kids On The Green ,1234851,,,,28/08/2020,2200116740,"10,000.00",,Grant Aid and Donations,,,,,,No
The Royal Borough of Kensington and Chelsea,RBKC,,Grenfell Team,Head of Comms and Community Engage,,Maisanda & Co Ltd,1271258,,,,14/08/2020,2200114499,"8,520.00",,Grant Aid and Donations,,,,,,No
The Royal Borough of Kensington and Chelsea,RBKC,,Grenfell Team,Head of Comms and Community Engage,,Mind United F.C.,1265413,,,,17/08/2020,2200114905,"14,800.00",,Grant Aid and Donations,,,,,,No
The Royal Borough of Kensington and Chelsea,RBKC,,Grenfell Team,Head of Comms and Community Engage,,Mind United F.C.,1265413,,,,19/08/2020,2200115297,"2,941.00",,Grant Aid and Donations,,,,,,No
The Royal Borough of Kensington and Chelsea,RBKC,,Grenfell Team,Head of Comms and Community Engage,,MutualGain Ltd,1260929,,,,17/09/2020,2200120315,"1,487.50",,Hire of Accommodation and Facilities,,,,,,No
The Royal Borough of Kensington and Chelsea,RBKC,,Grenfell Team,Head of Comms and Community Engage,,MutualGain Ltd,1260929,,,,17/09/2020,2200120406,"6,086.50",,Hire of Accommodation and Facilities,,,,,,No
The Royal Borough of Kensington and Chelsea,RBKC,,Grenfell Team,Head of Comms and Community Engage,,Portobello Business Centre Ltd ,1231045,,,,17/08/2020,2200114906,"14,496.00",,Grant Aid and Donations,,,,,,No
The Royal Borough of Kensington and Chelsea,RBKC,,Grenfell Team,Head of Comms and Community Engage,,Redact Details,1271417,,,,18/08/2020,2200115103,"20,250.00",,Hired and Contracted Services,,,,,,No
The Royal Borough of Kensington and Chelsea,RBKC,,Grenfell Team,Head of Comms and Community Engage,,Solidarity Sports ,1235374,,,,21/08/2020,2200115741,"20,291.00",,Grant Aid and Donations,,,,,,No
The Royal Borough of Kensington and Chelsea,RBKC,,Grenfell Team,Head of Comms and Community Engage,,Sukha Consulting,1266634,,,,08/09/2020,2200118425,"10,000.00",,Grant Aid and Donations,,,,,,No
The Royal Borough of Kensington and Chelsea,RBKC,,Grenfell Team,Head of Comms and Community Engage,,Tavistock Crescent Residents Associ,1270472,,,,20/08/2020,2200115510,"1,998.00",,Grant Aid and Donations,,,,,,No
The Royal Borough of Kensington and Chelsea,RBKC,,Grenfell Team,Head of Comms and Community Engage,,The Clement James Centre ,1235487,,,,17/08/2020,2200114903,"2,601.00",,Grant Aid and Donations,,,,,,No
The Royal Borough of Kensington and Chelsea,RBKC,,Grenfell Team,Head of Comms and Community Engage,,The Clement James Centre ,1235487,,,,08/09/2020,2200118424,"21,399.00",,Grant Aid and Donations,,,,,,No
The Royal Borough of Kensington and Chelsea,RBKC,,Grenfell Team,Head of Comms and Community Engage,,The Rugby Portobello Trust,1231841,,,,17/08/2020,2200114907,"4,109.00",,Grant Aid and Donations,,,,,,No
The Royal Borough of Kensington and Chelsea,RBKC,,Grenfell Team,Head of Comms and Community Engage,,Vault Consulting Ltd,1271471,,,,25/08/2020,2200116195,"8,000.00",,Grant Aid and Donations,,,,,,No
The Royal Borough of Kensington and Chelsea,RBKC,,Grenfell Team,Head of Comms and Community Engage,,Venture Community Association ,1235609,,,,08/09/2020,2200118423,"11,500.00",,Grant Aid and Donations,,,,,,No
The Royal Borough of Kensington and Chelsea,RBKC,,Grenfell Team,Head of Comms and Community Engage,,Volunteer Centre Kensington & Chelsea,1231936,,,,21/08/2020,2200115746,"10,000.00",,Grant Aid and Donations,,,,,,No
The Royal Borough of Kensington and Chelsea,RBKC,,Grenfell Team,Director for Resources and Assets,,Heart Productions,D000000023,,,,20/07/2020,3110206537,"8,511.50",,"Publicity, Promotions and Advertisement",,,,,,No
The Royal Borough of Kensington and Chelsea,RBKC,,Grenfell Team,Director for Grenfell,,Redact Details,1270569,,,,10/08/2020,2200113422,"5,000.00",,Hired and Contracted Services,,,,,,No
The Royal Borough of Kensington and Chelsea,RBKC,,Grenfell Team,Director for Grenfell,,Redact Details,1270569,,,,01/09/2020,2200116981,"1,863.00",,Hired and Contracted Services,,,,,,No
The Royal Borough of Kensington and Chelsea,RBKC,,Grenfell Team,Director for Grenfell,,T/A Relaxology Massage,1234348,,,,22/07/2020,2200110388,500.00,,Creditors Control : AP GRIR,,,,,,No
The Royal Borough of Kensington and Chelsea,RBKC,,Grenfell Team,Director for Grenfell,,Female Personal Trainer,1266143,,,,29/07/2020,2200111338,"1,500.00",,Hired and Contracted Services,,,,,,No
The Royal Borough of Kensington and Chelsea,RBKC,,Grenfell Team,Director for Grenfell,,Redact Details,1235814,,,,23/07/2020,2200110593,500.00,,Creditors Control : AP GRIR,,,,,,No
The Royal Borough of Kensington and Chelsea,RBKC,,Grenfell Team,Director for Grenfell,,Redact Details,1270655,,,,10/08/2020,2200113423,"5,000.00",,Hired and Contracted Services,,,,,,No
The Royal Borough of Kensington and Chelsea,RBKC,,Grenfell Team,Director for Grenfell,,Redact Details,1270655,,,,01/09/2020,2200117026,"1,090.00",,Hired and Contracted Services,,,,,,No
The Royal Borough of Kensington and Chelsea,RBKC,,Grenfell Team,Director for Grenfell,,Kensington & Chelsea Citizens Advice Bureaux Service,1230530,,,,15/07/2020,2200109179,"15,000.00",,Hired and Contracted Services,,,,,,No
The Royal Borough of Kensington and Chelsea,RBKC,,Grenfell Team,Director for Grenfell,,Kensington & Chelsea Citizens Advice Bureaux Service,1230530,,,,15/07/2020,2200109180,"15,000.00",,Hired and Contracted Services,,,,,,No
The Royal Borough of Kensington and Chelsea,RBKC,,Grenfell Team,Director for Grenfell,,Redact Details,1232594,,,,22/07/2020,2200110387,500.00,,Creditors Control : AP GRIR,,,,,,No
The Royal Borough of Kensington and Chelsea,RBKC,,Grenfell Team,Director for Grenfell,,Prepaid Financial Services,D000000023,,,,22/07/2020,3110208932,"100,000.00",,Hired and Contracted Services,,,,,,No
The Royal Borough of Kensington and Chelsea,RBKC,,Grenfell Team,Director for Grenfell,,Prepaid Financial Services,D000000023,,,,20/08/2020,3110216665,"100,000.00",,Hired and Contracted Services,,,,,,No
The Royal Borough of Kensington and Chelsea,RBKC,,Grenfell Team,Director for Grenfell,,Prepaid Financial Services,D000000023,,,,17/09/2020,3110224654,"100,000.00",,Hired and Contracted Services,,,,,,No
The Royal Borough of Kensington and Chelsea,RBKC,,Grenfell Team,Director for Grenfell,,Redact Details,1265922,,,,16/09/2020,2200120117,"1,525.00",,Creditors Control : AP GRIR,,,,,,No
The Royal Borough of Kensington and Chelsea,RBKC,,Grenfell Team,Director for Grenfell,,Incorpore Limited,1262303,,,,10/09/2020,2200118781,898.00,,Creditors Control : AP GRIR,,,,,,No
The Royal Borough of Kensington and Chelsea,RBKC,,Grenfell Team,Director for Grenfell,,Notting Hill Therapy Clinic Outreac,1271390,,,,02/09/2020,2200117233,"5,570.02",,Hired and Contracted Services,,,,,,No
The Royal Borough of Kensington and Chelsea,RBKC,,Grenfell Team,Director for Grenfell,,Action For Children Services Ltd,1232313,,,,05/08/2020,2200112620,"150,000.00",,Hired and Contracted Services,,,,,,No
The Royal Borough of Kensington and Chelsea,RBKC,,Grenfell Team,Director for Grenfell,,BT Global Services ,1233001,,,,16/07/2020,2200109483,630.00,,Telephone : Rentals,,,,,,No
The Royal Borough of Kensington and Chelsea,RBKC,,Grenfell Team,Director for Grenfell,,BT Global Services ,1233001,,,,10/08/2020,2200113452,630.00,,Telephone : Rentals,,,,,,No
The Royal Borough of Kensington and Chelsea,RBKC,,Grenfell Team,Director for Grenfell,,BT Global Services ,1233001,,,,14/09/2020,2200119601,630.00,,Telephone : Rentals,,,,,,No
The Royal Borough of Kensington and Chelsea,RBKC,,Grenfell Team,Director for Grenfell,,Khoo Teck Puat UK Foundation ,1230545,,,,24/08/2020,3110216819,"2,533.80",,Premises Insurance : General,,,,,,No
The Royal Borough of Kensington and Chelsea,RBKC,,Grenfell Team,Director for Grenfell,,Khoo Teck Puat UK Foundation ,1230545,,,,24/08/2020,3110216821,"2,462.63",,Premises Insurance : General,,,,,,No
The Royal Borough of Kensington and Chelsea,RBKC,,Grenfell Team,Director for Grenfell,,Khoo Teck Puat UK Foundation ,1230545,,,,22/09/2020,3110225866,"51,366.00",,Premises Rent,,,,,,No
The Royal Borough of Kensington and Chelsea,RBKC,,Grenfell Team,Director for Grenfell,,Khoo Teck Puat UK Foundation ,1230545,,,,22/09/2020,3110225866,"6,611.10",,Service Charges : Premises,,,,,,No
The Royal Borough of Kensington and Chelsea,RBKC,,Grenfell Team,Director for Grenfell,,Khoo Teck Puat UK Foundation ,1230545,,,,22/09/2020,3110225867,"6,764.10",,Service Charges : Premises,,,,,,No
The Royal Borough of Kensington and Chelsea,RBKC,,Grenfell Team,Director for Grenfell,,Khoo Teck Puat UK Foundation ,1230545,,,,22/09/2020,3110225867,"53,460.00",,Premises Rent,,,,,,No
The Royal Borough of Kensington and Chelsea,RBKC,,Grenfell Team,Director for Grenfell,,DA Languages Ltd ,1233749,,,,07/07/2020,2200107617,"1,140.84",,Interpreters Fees,,,,,,No
The Royal Borough of Kensington and Chelsea,RBKC,,Grenfell Team,Director for Grenfell,,DA Languages Ltd ,1233749,,,,10/08/2020,2200113424,"1,746.72",,Interpreters Fees,,,,,,No
The Royal Borough of Kensington and Chelsea,RBKC,,Grenfell Team,Director for Grenfell,,Netcall Telecom Ltd ,1230760,,,,28/09/2020,2200122380,"25,245.00",,Creditors Control : AP GRIR,,,,,,No
The Royal Borough of Kensington and Chelsea,RBKC,,Grenfell Team,Director for Grenfell,,Netcall Telecom Ltd ,1230760,,,,28/09/2020,2200122386,"24,120.00",,Creditors Control : AP GRIR,,,,,,No
The Royal Borough of Kensington and Chelsea,RBKC,,Grenfell Team,Director for Grenfell,,Odgers Interim T/A Irg Advisors Llp,1235093,,,,17/07/2020,2200109785,"10,857.22",,Agency Staff,,,,,,No
The Royal Borough of Kensington and Chelsea,RBKC,,Grenfell Team,Director for Grenfell,,Odgers Interim T/A Irg Advisors Llp,1235093,,,,25/08/2020,2200116196,"11,350.73",,Agency Staff,,,,,,No
The Royal Borough of Kensington and Chelsea,RBKC,,Grenfell Team,Director for Grenfell,,Odgers Interim T/A Irg Advisors Llp,1235093,,,,14/09/2020,2200119507,"9,870.20",,Agency Staff,,,,,,No
The Royal Borough of Kensington and Chelsea,RBKC,,Grenfell Team,Director for Grenfell,,Prepaid Financial Services Ltd (Corporate Account),1231050,,,,06/07/2020,2200107506,578.42,,Hired and Contracted Services,,,,,,No
The Royal Borough of Kensington and Chelsea,RBKC,,Grenfell Team,Director for Resources and Assets,,Public Health England ,1230815,,,,17/07/2020,2200109692,"43,742.82",,Creditors Control : AP GRIR,,,,,,No
The Royal Borough of Kensington and Chelsea,RBKC,,Grenfell Team,Director for Grenfell,,8 Colville Terrace Ltd ,1232087,,,,22/07/2020,3110208934,"1,291.06",,Service Charges : Premises,,,,,,No
The Royal Borough of Kensington and Chelsea,RBKC,,Grenfell Team,Director for Grenfell,,Bell Decorating & Building Ltd ,1232723,,,,08/07/2020,2200107899,"23,760.00",,Service Charges : Premises,,,,,,No
The Royal Borough of Kensington and Chelsea,RBKC,,Grenfell Team,Director for Grenfell,,Bell Decorating & Building Ltd ,1232723,,,,08/07/2020,2200107900,"13,830.00",,Service Charges : Premises,,,,,,No
The Royal Borough of Kensington and Chelsea,RBKC,,Grenfell Team,Director for Grenfell,,Best Gapp & Cassells ,1232732,,,,10/09/2020,2200118795,646.10,,Creditors Control : AP GRIR,,,,,,No
The Royal Borough of Kensington and Chelsea,RBKC,,Grenfell Team,Director for Grenfell,,Burlington Estates (London) Ltd,1233017,,,,17/09/2020,3110224667,"2,115.00",,Service Charges : Premises,,,,,,No
The Royal Borough of Kensington and Chelsea,RBKC,,Grenfell Team,Director for Grenfell,,Catalyst Housing Ltd ,1233307,,,,17/09/2020,3110224665,"2,529.05",,Service Charges : Premises,,,,,,No
The Royal Borough of Kensington and Chelsea,RBKC,,Grenfell Team,Director for Grenfell,,Catalyst Housing Ltd ,1233307,,,,21/09/2020,3110225361,"1,061.74",,Service Charges : Premises,,,,,,No
The Royal Borough of Kensington and Chelsea,RBKC,,Grenfell Team,Director for Grenfell,,Redact Details,1233706,,,,11/08/2020,3110213873,"3,000.00",,Service Charges : Premises,,,,,,No
The Royal Borough of Kensington and Chelsea,RBKC,,Grenfell Team,Director for Grenfell,,Redact Details,1233705,,,,18/08/2020,3110214831,"10,322.60",,Service Charges : Premises,,,,,,No
The Royal Borough of Kensington and Chelsea,RBKC,,Grenfell Team,Director for Grenfell,,Craig Sheehan Client Account Re,1233707,,,,08/09/2020,2200118404,"2,465.57",,Creditors Control : AP GRIR,,,,,,No
The Royal Borough of Kensington and Chelsea,RBKC,,Grenfell Team,Director for Grenfell,,Danacom Ltd,1262818,,,,15/09/2020,2200119839,"1,800.00",,General Refuse Collection and Disposal,,,,,,No
The Royal Borough of Kensington and Chelsea,RBKC,,Grenfell Team,Director for Grenfell,,Danebury (Kensington) Ltd ,1233756,,,,06/07/2020,3110202769,750.00,,Service Charges : Premises,,,,,,No
The Royal Borough of Kensington and Chelsea,RBKC,,Grenfell Team,Director for Grenfell,,Direx Ltd T/A Direx Property,1234003,,,,21/07/2020,2200110216,529.73,,Creditors Control : AP GRIR,,,,,,No
The Royal Borough of Kensington and Chelsea,RBKC,,Grenfell Team,Director for Grenfell,,Direx Ltd T/A Direx Property,1234003,,,,21/07/2020,2200110216,629.73,,Creditors Control : AP GRIR,,,,,,No
The Royal Borough of Kensington and Chelsea,RBKC,,Grenfell Team,Director for Grenfell,,ECD Architects Ltd,1234067,,,,14/07/2020,2200108851,"4,825.00",,Fees,,,,,,No
The Royal Borough of Kensington and Chelsea,RBKC,,Grenfell Team,Director for Grenfell,,The Colonnades Client Account,D000000023,,,,20/07/2020,3110206539,"1,121.54",,Service Charges : Premises,,,,,,No
The Royal Borough of Kensington and Chelsea,RBKC,,Grenfell Team,Director for Grenfell,,Ladbroke Grove Apartment Management,D000000023,,,,20/07/2020,3110206540,"2,485.62",,Service Charges : Premises,,,,,,No
The Royal Borough of Kensington and Chelsea,RBKC,,Grenfell Team,Director for Grenfell,,Wharfherne Limited,D000000023,,,,03/08/2020,3110209942,"5,172.10",,Service Charges : Premises,,,,,,No
The Royal Borough of Kensington and Chelsea,RBKC,,Grenfell Team,Director for Grenfell,,Ideal Combi Uk Ltd,D000000023,,,,07/08/2020,3110213012,960.00,,Professional Fees,,,,,,No
The Royal Borough of Kensington and Chelsea,RBKC,,Grenfell Team,Director for Grenfell,,Redact Details,D000000023,,,,11/08/2020,3110213867,"1,275.22",,Service Charges : Premises,,,,,,No
The Royal Borough of Kensington and Chelsea,RBKC,,Grenfell Team,Director for Grenfell,,Urang Property Management Ltd,D000000023,,,,11/08/2020,3110213870,"2,326.21",,Service Charges : Premises,,,,,,No
The Royal Borough of Kensington and Chelsea,RBKC,,Grenfell Team,Director for Grenfell,,Urang Property Management Ltd,D000000023,,,,13/08/2020,3110214041,"1,092.74",,Service Charges : Premises,,,,,,No
The Royal Borough of Kensington and Chelsea,RBKC,,Grenfell Team,Director for Grenfell,,224 Ladbroke Grove Client Account,D000000023,,,,19/08/2020,3110216551,710.00,,Service Charges : Premises,,,,,,No
The Royal Borough of Kensington and Chelsea,RBKC,,Grenfell Team,Director for Grenfell,,Premier Block Management Ltd Client,D000000023,,,,19/08/2020,3110216552,"1,044.25",,Service Charges : Premises,,,,,,No
The Royal Borough of Kensington and Chelsea,RBKC,,Grenfell Team,Director for Grenfell,,Rmg London - Central & Metropolitan,D000000023,,,,20/08/2020,3110216660,885.59,,Service Charges : Premises,,,,,,No
The Royal Borough of Kensington and Chelsea,RBKC,,Grenfell Team,Director for Grenfell,,Rmg London - Central & Metropolitan,D000000023,,,,20/08/2020,3110216661,731.68,,Service Charges : Premises,,,,,,No
The Royal Borough of Kensington and Chelsea,RBKC,,Grenfell Team,Director for Grenfell,,Rmg London - Central & Metropolitan,D000000023,,,,20/08/2020,3110216662,939.84,,Service Charges : Premises,,,,,,No
The Royal Borough of Kensington and Chelsea,RBKC,,Grenfell Team,Director for Grenfell,,G & H Z Limited,D000000023,,,,17/09/2020,3110224655,901.71,,Service Charges : Premises,,,,,,No
The Royal Borough of Kensington and Chelsea,RBKC,,Grenfell Team,Director for Grenfell,,Idealcombi Uk Limited,1270224,,,,27/08/2020,2200116514,"4,444.85",,Fixtures and Fittings,,,,,,No
The Royal Borough of Kensington and Chelsea,RBKC,,Grenfell Team,Director for Grenfell,,Mgi Limited,1264988,,,,18/09/2020,2200120515,"2,450.00",,Training related expenditure,,,,,,No
The Royal Borough of Kensington and Chelsea,RBKC,,Grenfell Team,Director for Grenfell,,Mgi Limited,1264988,,,,18/09/2020,2200120517,"2,851.33",,Training related expenditure,,,,,,No
The Royal Borough of Kensington and Chelsea,RBKC,,Grenfell Team,Director for Grenfell,,Mgi Limited,1264988,,,,18/09/2020,2200120518,760.00,,Training related expenditure,,,,,,No
The Royal Borough of Kensington and Chelsea,RBKC,,Grenfell Team,Director for Grenfell,,Michael Page International Recruitment Ltd,1235002,,,,01/09/2020,2200116983,541.20,,Agency Staff,,,,,,No
The Royal Borough of Kensington and Chelsea,RBKC,,Grenfell Team,Director for Grenfell,,Michael Page International Recruitment Ltd,1235002,,,,18/09/2020,2200120512,551.04,,Agency Staff,,,,,,No
The Royal Borough of Kensington and Chelsea,RBKC,,Grenfell Team,Director for Grenfell,,Michael Page International Recruitment Ltd,1235002,,,,18/09/2020,2200120520,688.80,,Agency Staff,,,,,,No
The Royal Borough of Kensington and Chelsea,RBKC,,Grenfell Team,Director for Grenfell,,Michael Page International Recruitment Ltd,1235002,,,,21/09/2020,2200120934,698.64,,Agency Staff,,,,,,No
The Royal Borough of Kensington and Chelsea,RBKC,,Grenfell Team,Director for Grenfell,,Michael Page International Recruitment Ltd,1235002,,,,29/09/2020,2200122748,688.80,,Agency Staff,,,,,,No
The Royal Borough of Kensington and Chelsea,RBKC,,Grenfell Team,Director for Grenfell,,Miles Commercial Ltd ,1235014,,,,17/08/2020,2200114750,540.82,,Creditors Control : AP GRIR,,,,,,No
The Royal Borough of Kensington and Chelsea,RBKC,,Grenfell Team,Director for Grenfell,,Miles Commercial Ltd ,1235014,,,,17/08/2020,2200114751,626.63,,Creditors Control : AP GRIR,,,,,,No
The Royal Borough of Kensington and Chelsea,RBKC,,Grenfell Team,Director for Grenfell,,Miles Commercial Ltd ,1235014,,,,17/08/2020,2200114754,626.63,,Creditors Control : AP GRIR,,,,,,No
The Royal Borough of Kensington and Chelsea,RBKC,,Grenfell Team,Director for Grenfell,,Miles Commercial Ltd ,1235014,,,,17/08/2020,2200114756,540.82,,Creditors Control : AP GRIR,,,,,,No
The Royal Borough of Kensington and Chelsea,RBKC,,Grenfell Team,Director for Grenfell,,Miles Commercial Ltd ,1235014,,,,17/08/2020,2200114757,626.63,,Creditors Control : AP GRIR,,,,,,No
The Royal Borough of Kensington and Chelsea,RBKC,,Grenfell Team,Director for Grenfell,,Miles Commercial Ltd ,1235014,,,,17/08/2020,2200114759,626.63,,Creditors Control : AP GRIR,,,,,,No
The Royal Borough of Kensington and Chelsea,RBKC,,Grenfell Team,Director for Grenfell,,Miles Commercial Ltd ,1235014,,,,17/08/2020,2200114764,540.82,,Creditors Control : AP GRIR,,,,,,No
The Royal Borough of Kensington and Chelsea,RBKC,,Grenfell Team,Director for Grenfell,,Miles Commercial Ltd ,1235014,,,,17/08/2020,2200114765,626.63,,Creditors Control : AP GRIR,,,,,,No
The Royal Borough of Kensington and Chelsea,RBKC,,Grenfell Team,Director for Grenfell,,Miles Commercial Ltd ,1235014,,,,17/08/2020,2200114767,540.82,,Creditors Control : AP GRIR,,,,,,No
The Royal Borough of Kensington and Chelsea,RBKC,,Grenfell Team,Director for Grenfell,,Miles Commercial Ltd ,1235014,,,,17/08/2020,2200114826,540.82,,Creditors Control : AP GRIR,,,,,,No
The Royal Borough of Kensington and Chelsea,RBKC,,Grenfell Team,Director for Grenfell,,Miles Commercial Ltd ,1235014,,,,17/08/2020,2200114828,540.82,,Creditors Control : AP GRIR,,,,,,No
The Royal Borough of Kensington and Chelsea,RBKC,,Grenfell Team,Director for Grenfell,,Miles Commercial Ltd ,1235014,,,,17/08/2020,2200114829,626.63,,Creditors Control : AP GRIR,,,,,,No
The Royal Borough of Kensington and Chelsea,RBKC,,Grenfell Team,Director for Grenfell,,Occupational Testing Ltd ,1230950,,,,30/07/2020,2200111648,"6,060.00",,Hired and Contracted Services,,,,,,No
The Royal Borough of Kensington and Chelsea,RBKC,,Grenfell Team,Director for Grenfell,,Orbiton Estates Ralph Court,1235114,,,,01/09/2020,3110219363,"2,059.02",,Service Charges : Premises,,,,,,No
The Royal Borough of Kensington and Chelsea,RBKC,,Grenfell Team,Director for Grenfell,,Osborn Associates Ltd,1262963,,,,22/07/2020,2200110435,"33,675.00",,Service Charges : Premises,,,,,,No
The Royal Borough of Kensington and Chelsea,RBKC,,Grenfell Team,Director for Grenfell,,Places For People Homes L,1231102,,,,28/09/2020,2200122223,960.00,,Service Charges : Premises,,,,,,No
The Royal Borough of Kensington and Chelsea,RBKC,,Grenfell Team,Director for Grenfell,,Principia Estate & Asset Management,1231058,,,,27/07/2020,2200110886,"1,117.52",,Service Charges : Premises,,,,,,No
The Royal Borough of Kensington and Chelsea,RBKC,,Grenfell Team,Director for Grenfell,,Quadrant Property Management Ltd ,1235222,,,,14/09/2020,2200119573,"1,932.79",,Creditors Control : AP GRIR,,,,,,No
The Royal Borough of Kensington and Chelsea,RBKC,,Grenfell Team,Director for Grenfell,,ROOFPRO LONDON LIMITED,1269812,,,,06/07/2020,2200107292,"1,270.00",,Service Charges : Premises,,,,,,No
The Royal Borough of Kensington and Chelsea,RBKC,,Grenfell Team,Director for Grenfell,,Repair Restore Rebuild Limited,1259603,,,,07/08/2020,2200113092,"3,300.00",,Service Charges : Premises,,,,,,No
The Royal Borough of Kensington and Chelsea,RBKC,,Grenfell Team,Director for Grenfell,,Shawscreen Products,1258953,,,,09/09/2020,2200118665,"2,123.00",,Creditors Control : AP GRIR,,,,,,No
The Royal Borough of Kensington and Chelsea,RBKC,,Grenfell Team,Director for Grenfell,,Tempus Facilities Management Ltd ,1235468,,,,14/07/2020,2200108889,690.00,,Service Charges : Premises,,,,,,No
The Royal Borough of Kensington and Chelsea,RBKC,,Grenfell Team,Director for Grenfell,,Tempus Facilities Management Ltd ,1235468,,,,14/07/2020,2200108907,"1,306.25",,Service Charges : Premises,,,,,,No
The Royal Borough of Kensington and Chelsea,RBKC,,Grenfell Team,Director for Grenfell,,Tempus Facilities Management Ltd ,1235468,,,,20/07/2020,2200110059,956.25,,Service Charges : Premises,,,,,,No
The Royal Borough of Kensington and Chelsea,RBKC,,Grenfell Team,Director for Grenfell,,Tempus Facilities Management Ltd ,1235468,,,,20/07/2020,2200110064,785.00,,Service Charges : Premises,,,,,,No
The Royal Borough of Kensington and Chelsea,RBKC,,Grenfell Team,Director for Grenfell,,Tempus Facilities Management Ltd ,1235468,,,,20/07/2020,2200110068,"2,750.00",,Service Charges : Premises,,,,,,No
The Royal Borough of Kensington and Chelsea,RBKC,,Grenfell Team,Director for Grenfell,,Tempus Facilities Management Ltd ,1235468,,,,20/07/2020,2200110071,956.25,,Service Charges : Premises,,,,,,No
The Royal Borough of Kensington and Chelsea,RBKC,,Grenfell Team,Director for Grenfell,,Tempus Facilities Management Ltd ,1235468,,,,20/07/2020,2200110073,"1,677.50",,Service Charges : Premises,,,,,,No
The Royal Borough of Kensington and Chelsea,RBKC,,Grenfell Team,Director for Grenfell,,Tempus Facilities Management Ltd ,1235468,,,,20/07/2020,2200110079,"2,454.38",,Service Charges : Premises,,,,,,No
The Royal Borough of Kensington and Chelsea,RBKC,,Grenfell Team,Director for Grenfell,,Tempus Facilities Management Ltd ,1235468,,,,07/08/2020,2200113119,503.55,,Service Charges : Premises,,,,,,No
